Workbook

Sheet Start
A2: East Carolina University
A3: Office of Research Administration
A4: Budget Template
A6: This Template has been updated on
A7: 2019-04-17
B9: RAMSeS Proposal # | D9: Enter # Here | I9: =IF(D9="Enter # Here","✗","✓") -> ✗
B10: PI Name | D10: PI Name | I10: =IF(D10="PI Name","✗","✓") -> ✗
B11: Administrative Unit | D11: Choose Unit | I11: =IF(D11="Choose Unit","✗","✓") -> ✗
B12: Sponsor | D12: Enter Sponsor | I12: =IF(D12="Enter Sponsor","✗","✓") -> ✗
B13: Proposal Title | D13: Enter Title | I13: =IF(D13="Enter Title","✗","✓") -> ✗
B14: Budget Creation Date | D14: Date | I14: =IF(D14="Date","✗","✓") -> ✗ | K14: Optional Use
B15: Initial Fiscal Year | D15: FY 18-19
B16: Project Start Date | D16: Date | I16: =IF(D16="Date","✗","✓") -> ✗ | K16: Target Budget Cap | L16: 0
B17: Project End Date | D17: Date | I17: =IF(D17="Date","✗","✓") -> ✗
B18: Annual Inflation % | D18: 0.03 | K18: Projected Direct Cost | L18: =L16/(1+FARateY1) -> 0
B19: F&A Rates (Federal Agreement) | D19: Research (On-Campus) - 47.5% | I19: =IF(D19="Custom Rate - Enter Rate Here ----------->",IF(H19>0,"✓","✗")," ") ->  | K19: =FARateY1 -> 0.475 | L19: =L18*FARateY1 -> 0
B20: F&A Rate Policy (see Section 8) | D20: =IF(RateSelection=RateOptionCustom,CustomRateText,IF(RateSelection=RateOptionNoFA,ZeroRateText,IF(RateSelection=RateOptionOffCampusAdjacent,OffCampusRateText,IF(RateSelection=RateOptionOffCampusRemote,OffCampusRateText,IF(RateSelection=RateOptionPercentTotalCost,PercentTotalCostText," "))))) ->  | I20: =IF(RateSelection=RateOptionPercentTotalCost,CustomRate/(1-CustomRate)," ") ->  | K20: Projected Total* | L20: =SUM(L18:L19) -> 0
B22: =IF(RateSelection="No F&A - 0%","Sponsor Specifies F&A Rate?",IF(RateSelection="Custom Rate - Enter Rate Here ----------->","Sponsor Specifies F&A Rate?"," ")) ->  | D22: Select Yes or No Here | I22: =IF(B22=" "," ",IF(D22="Select Yes or No Here","✗","✓")) ->  | K22: *Note - these projections are intended as a guide for use at the very intiation of budget creation. Since not all costs are subject to F&A, this projection could differ significantly from the amounts ultimately calculated using the full spreadheet.
B23: F&A Base | D23: =IF(RateSelection=RateOptionCustom,RateBaseTDC,IF(RateSelection=RateOptionPercentTotalCost,RateBaseTDC,RateBaseMTDC)) -> MTDC - Modified Total Direct Costs
B24: NIH Budget? | D24: No
B25: NIH Salary Cap? | D25: Yes
B26: Full Return? | D26: N/A
D50: Only Use The WorkSheet Below If The Sponsor Has A Custom Method of Calculating F&A - Using Only Salaries & Wages For Example
E53: Year 1 | F53: Year 2 | G53: Year 3 | H53: Year 4 | I53: Year 5
D54: F&A Base | E54: 0 | F54: 0 | G54: 0 | H54: 0 | I54: 0
D55: Match Base | E55: 0 | F55: 0 | G55: 0 | H55: 0 | I55: 0

Sheet Allocations
A2: See the Checklist to the right to determine if this project is eligible for F&A Distribution. If the parameters in the checklist appear inaccurate, return to the START tab to select alternate parameters. | E2: F&A Return Eligibility Checklist | J2: Credit Allocation
E3: Standard Rate Used? | F3: =IF(G3<0.26,"✗","✓") -> ✓ | G3: =FARateY1 -> 0.475
E4: Does Sponsor Publish Rate Restrictions? | F4: =IF(FARateY1>=0.26,"N/A",IF(SponsorRestriction="Yes","✓","✗")) -> N/A | G4: =IF(F4="N/A","N/A",IF(SponsorRestriction="Select Yes or No Here","See Start Tab D21",SponsorRestriction)) -> N/A | J4: Credit Allocation is a method of assigning grant activity to the home units of the various investigators involved in a project. Credit allocations drive reporting only - no actual funds will move as a result of these allocations. Credit Allocations will default to the prorata distribution of F&A among the investigators, but alternative allocations unrelated to F&A can be made in the chart below.
E5: Project Eligibility for F&A Distribution (see Policy) | F5: =IF(FAReturn="Yes","✓","✗") -> ✓ | G5: =IF(FullReturn="N/A",IF(FARateY1>=0.26,"Yes",IF(FARateY1=0,"No",IF(SponsorRestriction="Yes","Yes","No"))),"Full Return") -> Yes
A7: =IF(FAReturn="Yes",IF(I21+I25+I38=3,"This form is complete - recovered F&A will be distributed as detailed below.","This project is eligible for F&A distribution, apportion the F&A distribution using the cells below."),IF(FAReturn="Full Return","Per the approval of the Office of Research Administration, all F&A collected will be returned to the administrative department to support the scope of work. Apportion Credit Allocation using the table to the right ------->","This project is NOT eligible for F&A distribution, apportion Credit Allocation using the table to the right --------->")) -> This project is eligible for F&A distribution, apportion the F&A distribution using the cells below.
J10: Credit Allocation (Apportion 100%)
K11: =B28 -> Investigator 1 | L11: =E28 -> Choose Unit | N11: =F28*10 -> 0
F12: Percents | G12: Dollars | K12: Investigator 2 | L12: =E29 -> Choose Unit | N12: 0
K13: Investigator 3 | L13: Choose Unit | N13: 0
A14: Total Project F&A (from Budget Summary) | G14: =fatotal -> 0 | K14: Investigator 4 | L14: Choose Unit | N14: 0
K15: Investigator 5 | L15: Choose Unit | N15: 0
A16: =IF(FAReturn="Full Return","All F&A Returned to Administrative Department","Institutional Portion (Based on Selections Below)") -> Institutional Portion (Based on Selections Below) | D16: =IF(FAReturn="Full Return",AdminUnit," ") ->  | E16: =IF(D16=" "," ",VLOOKUP(D16,UnitFund,3,FALSE)) ->  | F16: =IF(FAReturn="Yes",IF(F21=0,IF(F24=0,70%,60%),IF(F24=0,60%,50%)),1) -> 0.7 | G16: =F16*$G$14 -> 0 | K16: Investigator 6 | L16: Choose Unit | N16: 0
K17: Investigator 7 | L17: Choose Unit | N17: 0
A18: Research Cluster - If Applicable | K18: Investigator 8 | L18: Choose Unit | N18: 0
B19: Research Cluster (Choose from List) | F19: =IF(B19="Research Cluster (Choose from List)",0,10) -> 0 | G19: =IF(FAReturn="Yes",F19*fatotal/100,0) -> 0 | I19: =IF(B19="Research Cluster (Choose from List)",IF(B20="Research Cluster (Choose from List)","No","Yes"),"Yes") -> No | K19: Investigator 9 | L19: Choose Unit | N19: 0
B20: Research Cluster (Choose from List) | F20: 0 | G20: =IF(FAReturn="Yes",F20*fatotal/100,0) -> 0 | K20: =B37 -> Investigator 10 | L20: =E37 -> Choose Unit | N20: =F37*10 -> 0
A21: Total Research Cluster Distributions | F21: =SUM(F19:F20) -> 0 | G21: =IF(FAReturn="Yes",F21/100*$G$14,0) -> 0 | I21: =IF(F22=" ",1,0) -> 1 | J21: Total Investigator Allocations | N21: =SUM(N11:N20) -> 0
F22: =IF(ClusterTag="No",IF(F21=0," ","Error - Select Research Cluster or Reset Allocations to 0%"),IF(FAReturn="Yes",IF(F21=10," ","Error - Research Cluster Allocations Must Total 10%"),IF(F21>0,"Error - Project Not Eligible for F&A Return - Reset Allocations to 0%"," "))) ->  | N22: =IF(N21=100," ","Error - Credit Allocation Must Total 100%") -> Error - Credit Allocation Must Total 100%
A23: Affiliated Center (Apportion 10% if applicable)
B24: Affiliated Center (Choose from List) | F24: =IF(B24="Affiliated Center (Choose from List)",0,10) -> 0 | G24: =IF(FAReturn="Yes",F24*fatotal/100,0) -> 0
A25: Total Affiliate Center Distributions | F25: =SUM(F24:F24)/100 -> 0 | G25: =IF(FAReturn="Yes",F25*$G$14,0) -> 0
F26: =IF(FAReturn="Yes"," ",IF(F25=0," ","Error - Project Not Eligible for F&A Return - Remove Selected Center")) -> 
A27: Investigator Distributions (Apportion 10%) | C27: College | E27: Unit | F27: Percent
B28: Investigator 1 | C28: Choose College | E28: Choose Unit | F28: 0 | G28: =IF(FAReturn="Yes",F28/100*fatotal,0) -> 0 | I28: =IF(F28>0,"Yes", "No") -> No
B29: Investigator 2 | C29: Choose College | E29: Choose Unit | F29: 0 | G29: 0 | I29: =IF(F29>0,"Yes", "No") -> No
B30: Investigator 3 | C30: Choose College | E30: Choose Unit | F30: 0 | G30: 0 | I30: No
B31: Investigator 4 | C31: Choose College | E31: Choose Unit | F31: 0 | G31: 0 | I31: No
B32: Investigator 5 | C32: Choose College | E32: Choose Unit | F32: 0 | G32: 0 | I32: No
B33: Investigator 6 | C33: Choose College | E33: Choose Unit | F33: 0 | G33: 0 | I33: No
B34: Investigator 7 | C34: Choose College | E34: Choose Unit | F34: 0 | G34: 0 | I34: No
B35: Investigator 8 | C35: Choose College | E35: Choose Unit | F35: 0 | G35: 0 | I35: No
B36: Investigator 9 | C36: Choose College | E36: Choose Unit | F36: 0 | G36: 0 | I36: =IF(F36>0,"Yes", "No") -> No
B37: Investigator 10 | C37: Choose College | E37: Choose Unit | F37: 0 | G37: 0 | I37: No
A38: Total Investigator Distributions | F38: =SUM(F28:F37) -> 0 | G38: =IF(FAReturn="Yes",F38/100*$G$14,0) -> 0 | I38: =IF(F39=" ",1,0) -> 0
F39: =IF(FAReturn="Yes",IF(F38=10," ","Error - Investigator Allocations Must Total 10%"),IF(F38>0,"Error - Project Not Eligible for F&A Return - Reset Investigator Allocations to 0%"," ")) -> Error - Investigator Allocations Must Total 10%
E41: This button uses a VB Macro to execute the Refresh Data command. If you don't have macros enabled, you can refresh data manually in a couple ways: 1 - Click the REFRESH ALL button on the Data ribbon (screen shot --->) OR 2 - close and reopen this file (save first!)
A49: Department/Unit Distributions - These are Based on Investigator Distributions Above
B50: =IF('Pivot Tables'!D23="Yes",'Pivot Tables'!A23," ") ->  | E50: =IF(B50=" "," ",VLOOKUP(B50,UnitFund,3,FALSE)) ->  | F50: ='Pivot Tables'!B23/10 -> 0 | G50: =IF(FAReturn="Yes",F50/100*fatotal,0) -> 0
B51: =IF('Pivot Tables'!D24="Yes",'Pivot Tables'!A24," ") ->  | F51: ='Pivot Tables'!B24/10 -> 0 | G51: 0 | K51: Notes on Spreadsheet Errors and Limitations This spreadsheet does not accommodate F&A distributions to more than 6 Department/Units or more than 4 Colleges/Schools. If a project requires a more intricate distributions, please attach a separate summary of the preferred allocation in RAMSeS.
B52: =IF('Pivot Tables'!D25="Yes",'Pivot Tables'!A25," ") ->  | F52: ='Pivot Tables'!B25/10 -> 0 | G52: 0
B53: =IF('Pivot Tables'!D26="Yes",'Pivot Tables'!A26," ") ->  | F53: ='Pivot Tables'!B26/10 -> 0 | G53: 0
B54: =IF('Pivot Tables'!D27="Yes",'Pivot Tables'!A27," ") ->  | F54: ='Pivot Tables'!B27/10 -> 0 | G54: 0
B55: =IF('Pivot Tables'!D28="Yes",'Pivot Tables'!A28," ") ->  | F55: ='Pivot Tables'!B28/10 -> 0 | G55: 0
A56: Total Department/Unit Distributions | F56: =SUM(F50:F55) -> 0 | G56: =IF(FAReturn="Yes",F56/100*$G$14,0) -> 0
F57: =IF('Pivot Tables'!D29="Yes","Error - More than 6 Department/Units"," ") -> 
A58: College/School Distributions - These are Based on Investigator Distributions Above
B59: =IF('Pivot Tables'!I23="Yes",'Pivot Tables'!F23," ") ->  | E59: =IF(B59=" "," ",VLOOKUP(B59,CollegeFund,3,FALSE)) ->  | F59: ='Pivot Tables'!G23/10 -> 0 | G59: =IF(FAReturn="Yes",F59/100*fatotal,0) -> 0
B60: =IF('Pivot Tables'!I24="Yes",'Pivot Tables'!F24," ") ->  | E60: =IF(B60=" "," ",VLOOKUP(B60,CollegeFund,3,FALSE)) ->  | F60: ='Pivot Tables'!G24/10 -> 0 | G60: =IF(FAReturn="Yes",F60/100*fatotal,0) -> 0
B61: =IF('Pivot Tables'!I25="Yes",'Pivot Tables'!F25," ") ->  | E61: =IF(B61=" "," ",VLOOKUP(B61,CollegeFund,3,FALSE)) ->  | F61: ='Pivot Tables'!G25/10 -> 0 | G61: =IF(FAReturn="Yes",F61/100*fatotal,0) -> 0
B62: =IF('Pivot Tables'!I26="Yes",'Pivot Tables'!F26," ") ->  | E62: =IF(B62=" "," ",VLOOKUP(B62,CollegeFund,3,FALSE)) ->  | F62: ='Pivot Tables'!G26/10 -> 0 | G62: =IF(FAReturn="Yes",F62/100*fatotal,0) -> 0
A63: Total College/School Distributions | F63: =SUM(F59:F62) -> 0 | G63: =IF(FAReturn="Yes",F63/100*$G$14,0) -> 0
F64: =IF('Pivot Tables'!I27="Yes","Error - More than 4 College/Schools"," ") -> 

Sheet Personnel
A1: East Carolina University | G1: Sponsored Program Personnel Budget
A2: =proposaltitle -> Enter Title | H2: Date: | I2: =creationdate -> Date | J2: RAMSeS ID: | K2: =ramsesid -> Enter # Here
A3: =piname -> PI Name | G3: Project Period: | I3: =projstartdate -> Date | J3: to | K3: =projenddate -> Date
A4: =sponsor -> Enter Sponsor | G4: Projected Inflation | I4: =Inflation -> 0.03
A6: DIRECT COSTS | B6: Contract Type | C6: # Months | D6: Base Salary | E6: % Effort Funded | F6: Grant Yr1 | G6: % Effort Funded | H6: Grant Yr2 | I6: % Effort Funded | J6: Grant Yr3 | K6: % Effort Funded | L6: Grant Yr4 | M6: % Effort Funded | N6: Grant Yr5 | O6: Total | P6: Notes
A7: EHRA Employees & Faculty
A8: Name | B8: Select | C8: 0 | D8: 0 | E8: 0 | F8: =IF(B8="Select","9 or 12?",(D8*InflationY1/(IF(B8="12-Month",12,9))*C8)*E8) -> 9 or 12? | G8: 0 | H8: =IF(B8="Select","9 or 12?",(D8*InflationY2/(IF(B8="12-Month",12,9))*C8)*G8) -> 9 or 12? | I8: 0 | J8: =IF(B8="Select","9 or 12?",(D8*InflationY3/(IF(B8="12-Month",12,9))*C8)*I8) -> 9 or 12? | K8: 0 | L8: =IF(B8="Select","9 or 12?",(D8*InflationY4/(IF(B8="12-Month",12,9))*C8)*K8) -> 9 or 12? | M8: 0 | N8: =IF(B8="Select","9 or 12?",(D8*InflationY5/(IF(B8="12-Month",12,9))*C8)*M8) -> 9 or 12? | O8: =F8+H8+J8+L8+N8 -> 0 | Q8: This spreadsheet is a planning tool for estimating funds needed to carry out a project. Fringe benefit calculations are based on the position type selected on this tab. Use of the position types listed here for estimation does not guarantee that new positions will be classified as indicated or that new hires will receive specific benefits. Position classifications and benefit eligibility are determined by Human Resources (HR). Please consult with HR during proposal development to determine the appropriate type of position for proposed new grant hires and budget accordingly. In the absence of such a determination, budget for the most inclusive benefit package so that adequate funding is available for any type of position HR eventually approves. When hiring is initiated for a funded project, all regular University procedures for position establishment and recruiting will apply.
A9: Name | B9: Select | C9: 0 | D9: 0 | E9: 0 | F9: 9 or 12? | G9: 0 | H9: 9 or 12? | I9: 0 | J9: 9 or 12? | K9: 0 | L9: 9 or 12? | M9: 0 | N9: 9 or 12? | O9: =F9+H9+J9+L9+N9 -> 0
A10: Name | B10: Select | C10: 0 | D10: 0 | E10: 0 | F10: 9 or 12? | G10: 0 | H10: 9 or 12? | I10: 0 | J10: 9 or 12? | K10: 0 | L10: 9 or 12? | M10: 0 | N10: 9 or 12? | O10: 0
A11: Name | B11: Select | C11: 0 | D11: 0 | E11: 0 | F11: 9 or 12? | G11: 0 | H11: 9 or 12? | I11: 0 | J11: 9 or 12? | K11: 0 | L11: 9 or 12? | M11: 0 | N11: 9 or 12? | O11: 0
A12: Name | B12: Select | C12: 0 | D12: 0 | E12: 0 | F12: 9 or 12? | G12: 0 | H12: 9 or 12? | I12: 0 | J12: 9 or 12? | K12: 0 | L12: 9 or 12? | M12: 0 | N12: 9 or 12? | O12: 0
A13: Name | B13: Select | C13: 0 | D13: 0 | E13: 0 | F13: 9 or 12? | G13: 0 | H13: 9 or 12? | I13: 0 | J13: 9 or 12? | K13: 0 | L13: 9 or 12? | M13: 0 | N13: 9 or 12? | O13: 0
A14: Name | B14: Select | C14: 0 | D14: 0 | E14: 0 | F14: =IF(B14="Select","9 or 12?",(D14*InflationY1/(IF(B14="12-Month",12,9))*C14)*E14) -> 9 or 12? | G14: 0 | H14: =IF(B14="Select","9 or 12?",(D14*InflationY2/(IF(B14="12-Month",12,9))*C14)*G14) -> 9 or 12? | I14: 0 | J14: =IF(B14="Select","9 or 12?",(D14*InflationY3/(IF(B14="12-Month",12,9))*C14)*I14) -> 9 or 12? | K14: 0 | L14: =IF(B14="Select","9 or 12?",(D14*InflationY4/(IF(B14="12-Month",12,9))*C14)*K14) -> 9 or 12? | M14: 0 | N14: =IF(B14="Select","9 or 12?",(D14*InflationY5/(IF(B14="12-Month",12,9))*C14)*M14) -> 9 or 12? | O14: =F14+H14+J14+L14+N14 -> 0
A15: Name | B15: Select | C15: 0 | D15: 0 | E15: 0 | F15: =IF(B15="Select","9 or 12?",(D15*InflationY1/(IF(B15="12-Month",12,9))*C15)*E15) -> 9 or 12? | G15: 0 | H15: =IF(B15="Select","9 or 12?",(D15*InflationY2/(IF(B15="12-Month",12,9))*C15)*G15) -> 9 or 12? | I15: 0 | J15: =IF(B15="Select","9 or 12?",(D15*InflationY3/(IF(B15="12-Month",12,9))*C15)*I15) -> 9 or 12? | K15: 0 | L15: =IF(B15="Select","9 or 12?",(D15*InflationY4/(IF(B15="12-Month",12,9))*C15)*K15) -> 9 or 12? | M15: 0 | N15: =IF(B15="Select","9 or 12?",(D15*InflationY5/(IF(B15="12-Month",12,9))*C15)*M15) -> 9 or 12? | O15: =F15+H15+J15+L15+N15 -> 0
A16: Name | B16: Select | C16: 0 | D16: 0 | E16: 0 | F16: =IF(B16="Select","9 or 12?",(D16*InflationY1/(IF(B16="12-Month",12,9))*C16)*E16) -> 9 or 12? | G16: 0 | H16: =IF(B16="Select","9 or 12?",(D16*InflationY2/(IF(B16="12-Month",12,9))*C16)*G16) -> 9 or 12? | I16: 0 | J16: =IF(B16="Select","9 or 12?",(D16*InflationY3/(IF(B16="12-Month",12,9))*C16)*I16) -> 9 or 12? | K16: 0 | L16: =IF(B16="Select","9 or 12?",(D16*InflationY4/(IF(B16="12-Month",12,9))*C16)*K16) -> 9 or 12? | M16: 0 | N16: =IF(B16="Select","9 or 12?",(D16*InflationY5/(IF(B16="12-Month",12,9))*C16)*M16) -> 9 or 12? | O16: =F16+H16+J16+L16+N16 -> 0
A17: Name | B17: Select | C17: 0 | D17: 0 | E17: 0 | F17: 9 or 12? | G17: 0 | H17: 9 or 12? | I17: 0 | J17: 9 or 12? | K17: 0 | L17: 9 or 12? | M17: 0 | N17: 9 or 12? | O17: 0
A18: Sub-Total | F18: =SUM(F8:F17) -> 0 | H18: =SUM(H8:H17) -> 0 | J18: =SUM(J8:J17) -> 0 | L18: =SUM(L8:L17) -> 0 | N18: =SUM(N8:N17) -> 0 | O18: =SUM(O8:O17) -> 0
A20: EHRA Summer Compensation | C20: Months | D20: Base Salary | E20: % | F20: =F6 -> Grant Yr1 | G20: % | H20: =H6 -> Grant Yr2 | I20: % | J20: =J6 -> Grant Yr3 | K20: % | L20: Grant Yr4 | M20: % | N20: Grant Yr5 | O20: Total
A21: Name | B21: Summer | C21: 0 | D21: 0 | E21: 0 | F21: =IF(B21="Select","9 or 12?",(D21*InflationY1/(IF(B21="12-Month",12,9))*C21)*E21) -> 0 | G21: 0 | H21: =IF(B21="Select","9 or 12?",(D21*InflationY2/(IF(B21="12-Month",12,9))*C21)*G21) -> 0 | I21: 0 | J21: =IF(B21="Select","9 or 12?",(D21*InflationY3/(IF(B21="12-Month",12,9))*C21)*I21) -> 0 | K21: =I21 -> 0 | L21: =IF(B21="Select","9 or 12?",(D21*InflationY4/(IF(B21="12-Month",12,9))*C21)*K21) -> 0 | M21: 0 | N21: =IF(B21="Select","9 or 12?",(D21*InflationY5/(IF(B21="12-Month",12,9))*C21)*M21) -> 0 | O21: =F21+H21+J21+L21+N21 -> 0
A22: Name | B22: Summer | C22: 0 | D22: 0 | E22: 0 | F22: 0 | G22: 0 | H22: 0 | I22: 0 | J22: 0 | K22: 0 | L22: 0 | M22: 0 | N22: 0 | O22: 0
A23: Name | B23: Summer | C23: 0 | D23: 0 | E23: 0 | F23: 0 | G23: 0 | H23: 0 | I23: 0 | J23: 0 | K23: 0 | L23: 0 | M23: 0 | N23: 0 | O23: 0
A24: Name | B24: Summer | C24: 0 | D24: 0 | E24: 0 | F24: 0 | G24: 0 | H24: 0 | I24: 0 | J24: 0 | K24: 0 | L24: 0 | M24: 0 | N24: 0 | O24: 0
A25: Name | B25: Summer | C25: 0 | D25: 0 | E25: 0 | F25: 0 | G25: 0 | H25: 0 | I25: 0 | J25: 0 | K25: 0 | L25: 0 | M25: 0 | N25: 0 | O25: 0
A26: Name | B26: Summer | C26: 0 | D26: 0 | E26: 0 | F26: 0 | G26: 0 | H26: 0 | I26: 0 | J26: 0 | K26: 0 | L26: 0 | M26: 0 | N26: 0 | O26: 0
A27: Name | B27: Summer | C27: 0 | D27: 0 | E27: 0 | F27: 0 | G27: 0 | H27: 0 | I27: 0 | J27: 0 | K27: 0 | L27: 0 | M27: 0 | N27: 0 | O27: 0
A28: Name | B28: Summer | C28: 0 | D28: 0 | E28: 0 | F28: 0 | G28: 0 | H28: 0 | I28: 0 | J28: 0 | K28: 0 | L28: 0 | M28: 0 | N28: 0 | O28: 0
A29: Name | B29: Summer | C29: 0 | D29: 0 | E29: 0 | F29: 0 | G29: 0 | H29: 0 | I29: 0 | J29: 0 | K29: 0 | L29: 0 | M29: 0 | N29: 0 | O29: 0
A30: Name | B30: Summer | C30: 0 | D30: 0 | E30: 0 | F30: 0 | G30: 0 | H30: 0 | I30: 0 | J30: 0 | K30: 0 | L30: 0 | M30: 0 | N30: 0 | O30: 0
A31: Sub-Total | F31: =SUM(F21:F30) -> 0 | H31: =SUM(H21:H30) -> 0 | J31: =SUM(J21:J30) -> 0 | L31: =SUM(L21:L30) -> 0 | N31: =SUM(N21:N30) -> 0 | O31: =SUM(O21:O30) -> 0
A33: SHRA/CSS Staff | C33: Months | D33: Base Salary | E33: % | F33: =F6 -> Grant Yr1 | G33: % | H33: =H20 -> Grant Yr2 | I33: % | J33: Grant Yr3 | K33: % | L33: Grant Yr4 | M33: % | N33: Grant Yr5 | O33: Total
A34: Name | B34: 12-Month | C34: 0 | D34: 0 | E34: 0 | F34: =($D34/12*$C34)*E34*InflationY1 -> 0 | G34: 0 | H34: =($D34/12*$C34)*G34*InflationY2 -> 0 | I34: 0 | J34: =($D34/12*$C34)*I34*InflationY3 -> 0 | K34: 0 | L34: =($D34/12*$C34)*K34*InflationY4 -> 0 | M34: 0 | N34: =($D34/12*$C34)*M34*InflationY5 -> 0 | O34: =F34+H34+J34+L34+N34 -> 0
A35: Name | B35: 12-Month | C35: 0 | D35: 0 | E35: 0 | F35: =($D35/12*$C35)*E35*InflationY1 -> 0 | G35: 0 | H35: =($D35/12*$C35)*G35*InflationY2 -> 0 | I35: 0 | J35: =($D35/12*$C35)*I35*InflationY3 -> 0 | K35: 0 | L35: =($D35/12*$C35)*K35*InflationY4 -> 0 | M35: 0 | N35: =($D35/12*$C35)*M35*InflationY5 -> 0 | O35: =F35+H35+J35+L35+N35 -> 0
A36: Name | B36: 12-Month | C36: 0 | D36: 0 | E36: 0 | F36: =($D36/12*$C36)*E36*InflationY1 -> 0 | G36: 0 | H36: =($D36/12*$C36)*G36*InflationY2 -> 0 | I36: 0 | J36: =($D36/12*$C36)*I36*InflationY3 -> 0 | K36: 0 | L36: =($D36/12*$C36)*K36*InflationY4 -> 0 | M36: 0 | N36: =($D36/12*$C36)*M36*InflationY5 -> 0 | O36: =F36+H36+J36+L36+N36 -> 0
A37: Name | B37: 12-Month | C37: 0 | D37: 0 | E37: 0 | F37: =($D37/12*$C37)*E37*InflationY1 -> 0 | G37: 0 | H37: =($D37/12*$C37)*G37*InflationY2 -> 0 | I37: 0 | J37: =($D37/12*$C37)*I37*InflationY3 -> 0 | K37: 0 | L37: =($D37/12*$C37)*K37*InflationY4 -> 0 | M37: 0 | N37: =($D37/12*$C37)*M37*InflationY5 -> 0 | O37: =F37+H37+J37+L37+N37 -> 0
A38: Sub-Total | F38: =SUM(F34:F37) -> 0 | H38: =SUM(H34:H37) -> 0 | J38: =SUM(J34:J37) -> 0 | L38: =SUM(L34:L37) -> 0 | N38: =SUM(N34:N37) -> 0 | O38: =SUM(O34:O37) -> 0
A40: Hourly/Temp/Undergrad. Employee | D40: Per Hour | E40: Hours | F40: =F33 -> Grant Yr1 | G40: Hours | H40: =H33 -> Grant Yr2 | I40: Hours | J40: Grant Yr3 | K40: Hours | L40: Grant Yr4 | M40: Hours | N40: Grant Yr5 | O40: Total
A41: Name | B41: Hourly | D41: 0 | E41: 0 | F41: =$E41*$D41*InflationY1 -> 0 | G41: 0 | H41: =$G41*$D41*InflationY2 -> 0 | I41: 0 | J41: =$I41*$D41*InflationY3 -> 0 | K41: 0 | L41: =$K41*$D41*InflationY4 -> 0 | M41: 0 | N41: =$M41*$D41*InflationY5 -> 0 | O41: =F41+H41+J41+L41+N41 -> 0
A42: Name | B42: Hourly | D42: 0 | E42: 0 | F42: =$E42*$D42*InflationY1 -> 0 | G42: 0 | H42: =$G42*$D42*InflationY2 -> 0 | I42: 0 | J42: =$I42*$D42*InflationY3 -> 0 | K42: 0 | L42: =$K42*$D42*InflationY4 -> 0 | M42: 0 | N42: =$M42*$D42*InflationY5 -> 0 | O42: =F42+H42+J42+L42+N42 -> 0
A43: Name | B43: Hourly | D43: 0 | E43: 0 | F43: =$E43*$D43*InflationY1 -> 0 | G43: 0 | H43: =$G43*$D43*InflationY2 -> 0 | I43: 0 | J43: =$I43*$D43*InflationY3 -> 0 | K43: 0 | L43: =$K43*$D43*InflationY4 -> 0 | M43: 0 | N43: =$M43*$D43*InflationY5 -> 0 | O43: =F43+H43+J43+L43+N43 -> 0
A44: Name | B44: Hourly | D44: 0 | E44: 0 | F44: =$E44*$D44*InflationY1 -> 0 | G44: 0 | H44: =$G44*$D44*InflationY2 -> 0 | I44: 0 | J44: =$I44*$D44*InflationY3 -> 0 | K44: 0 | L44: =$K44*$D44*InflationY4 -> 0 | M44: 0 | N44: =$M44*$D44*InflationY5 -> 0 | O44: =F44+H44+J44+L44+N44 -> 0
A45: Sub-Total | F45: =SUM(F41:F44) -> 0 | H45: =SUM(H41:H44) -> 0 | J45: =SUM(J41:J44) -> 0 | L45: =SUM(L41:L44) -> 0 | N45: =SUM(N41:N44) -> 0 | O45: =SUM(O41:O44) -> 0
A47: Postdoctoral Associates | C47: Months | D47: Base Salary | E47: % | F47: =F40 -> Grant Yr1 | G47: % | H47: =H40 -> Grant Yr2 | I47: % | J47: Grant Yr3 | K47: % | L47: Grant Yr4 | M47: % | N47: Grant Yr5 | O47: Total
A48: Name | B48: 12-Month | C48: 0 | D48: 0 | E48: 0 | F48: =IF(B48="Select","9 or 12?",(D48*InflationY1/(IF(B48="12-Month",12,9))*C48)*E48) -> 0 | G48: 0 | H48: =IF(B48="Select","9 or 12?",(D48*InflationY2/(IF(B48="12-Month",12,9))*C48)*G48) -> 0 | I48: 0 | J48: =IF(B48="Select","9 or 12?",(D48*InflationY3/(IF(B48="12-Month",12,9))*C48)*I48) -> 0 | K48: 0 | L48: =IF(B48="Select","9 or 12?",(D48*InflationY4/(IF(B48="12-Month",12,9))*C48)*K48) -> 0 | M48: 0 | N48: =IF(B48="Select","9 or 12?",(D48*InflationY5/(IF(B48="12-Month",12,9))*C48)*M48) -> 0 | O48: =F48+H48+J48+L48+N48 -> 0
A49: Name | B49: 12-Month | C49: 0 | D49: 0 | E49: 0 | F49: =IF(B49="Select","9 or 12?",(D49*InflationY1/(IF(B49="12-Month",12,9))*C49)*E49) -> 0 | G49: 0 | H49: =IF(B49="Select","9 or 12?",(D49*InflationY2/(IF(B49="12-Month",12,9))*C49)*G49) -> 0 | I49: 0 | J49: =IF(B49="Select","9 or 12?",(D49*InflationY3/(IF(B49="12-Month",12,9))*C49)*I49) -> 0 | K49: 0 | L49: =IF(B49="Select","9 or 12?",(D49*InflationY4/(IF(B49="12-Month",12,9))*C49)*K49) -> 0 | M49: 0 | N49: =IF(B49="Select","9 or 12?",(D49*InflationY5/(IF(B49="12-Month",12,9))*C49)*M49) -> 0 | O49: =F49+H49+J49+L49+N49 -> 0
A50: Name | B50: 12-Month | C50: 0 | D50: 0 | E50: 0 | F50: =IF(B50="Select","9 or 12?",(D50*InflationY1/(IF(B50="12-Month",12,9))*C50)*E50) -> 0 | G50: 0 | H50: =IF(B50="Select","9 or 12?",(D50*InflationY2/(IF(B50="12-Month",12,9))*C50)*G50) -> 0 | I50: 0 | J50: =IF(B50="Select","9 or 12?",(D50*InflationY3/(IF(B50="12-Month",12,9))*C50)*I50) -> 0 | K50: 0 | L50: =IF(B50="Select","9 or 12?",(D50*InflationY4/(IF(B50="12-Month",12,9))*C50)*K50) -> 0 | M50: 0 | N50: =IF(B50="Select","9 or 12?",(D50*InflationY5/(IF(B50="12-Month",12,9))*C50)*M50) -> 0 | O50: =F50+H50+J50+L50+N50 -> 0
A51: Name | B51: 12-Month | C51: 0 | D51: 0 | E51: 0 | F51: =IF(B51="Select","9 or 12?",(D51*InflationY1/(IF(B51="12-Month",12,9))*C51)*E51) -> 0 | G51: 0 | H51: =IF(B51="Select","9 or 12?",(D51*InflationY2/(IF(B51="12-Month",12,9))*C51)*G51) -> 0 | I51: 0 | J51: =IF(B51="Select","9 or 12?",(D51*InflationY3/(IF(B51="12-Month",12,9))*C51)*I51) -> 0 | K51: 0 | L51: =IF(B51="Select","9 or 12?",(D51*InflationY4/(IF(B51="12-Month",12,9))*C51)*K51) -> 0 | M51: 0 | N51: =IF(B51="Select","9 or 12?",(D51*InflationY5/(IF(B51="12-Month",12,9))*C51)*M51) -> 0 | O51: =F51+H51+J51+L51+N51 -> 0
A52: Sub-Total | F52: =SUM(F48:F51) -> 0 | H52: =SUM(H48:H51) -> 0 | J52: =SUM(J48:J51) -> 0 | L52: =SUM(L48:L51) -> 0 | N52: =SUM(N48:N51) -> 0 | O52: =SUM(O48:O51) -> 0
A54: Graduate Students | C54: Months | D54: Base Salary | E54: % | F54: =F47 -> Grant Yr1 | G54: % | H54: =H47 -> Grant Yr2 | I54: % | J54: Grant Yr3 | K54: % | L54: Grant Yr4 | M54: % | N54: Grant Yr5 | O54: Total
A55: Name | B55: Select | C55: 0 | D55: 0 | E55: 0 | F55: =IF(D55=0,0,IF(GradStudent1="Select","MA or PHD?",($D55/12*$C55)*E55*InflationY1)) -> 0 | G55: 0 | H55: =($D55/12*$C55)*G55*InflationY2 -> 0 | I55: 0 | J55: =($D55/12*$C55)*I55*InflationY3 -> 0 | K55: 0 | L55: =($D55/12*$C55)*K55*InflationY4 -> 0 | M55: 0 | N55: =($D55/12*$C55)*M55*InflationY5 -> 0 | O55: =F55+H55+J55+L55+N55 -> 0
A56: Name | B56: Select | C56: 0 | D56: 0 | E56: 0 | F56: =IF(D56=0,0,IF(GradStudent2="Select","MA or PHD?",($D56/12*$C56)*E56*InflationY1)) -> 0 | G56: 0 | H56: 0 | I56: 0 | J56: 0 | K56: 0 | L56: 0 | M56: 0 | N56: 0 | O56: 0
A57: Name | B57: Select | C57: 0 | D57: 0 | E57: 0 | F57: =IF(D57=0,0,IF(GradStudent3="Select","MA or PHD?",($D57/12*$C57)*E57*InflationY1)) -> 0 | G57: 0 | H57: 0 | I57: 0 | J57: 0 | K57: 0 | L57: 0 | M57: 0 | N57: 0 | O57: 0
A58: Name | B58: Select | C58: 0 | D58: 0 | E58: 0 | F58: =IF(D58=0,0,IF(GradStudent4="Select","MA or PHD?",($D58/12*$C58)*E58*InflationY1)) -> 0 | G58: 0 | H58: 0 | I58: 0 | J58: 0 | K58: 0 | L58: 0 | M58: 0 | N58: 0 | O58: 0
A59: Name | B59: Select | C59: 0 | D59: 0 | E59: 0 | F59: =IF(D59=0,0,IF(GradStudent5="Select","MA or PHD?",($D59/12*$C59)*E59*InflationY1)) -> 0 | G59: 0 | H59: 0 | I59: 0 | J59: 0 | K59: 0 | L59: 0 | M59: 0 | N59: 0 | O59: 0
A60: Name | B60: Select | C60: 0 | D60: 0 | E60: 0 | F60: =IF(D60=0,0,IF(GradStudent6="Select","MA or PHD?",($D60/12*$C60)*E60*InflationY1)) -> 0 | G60: 0 | H60: 0 | I60: 0 | J60: 0 | K60: 0 | L60: 0 | M60: 0 | N60: 0 | O60: 0
A61: Name | B61: Select | C61: 0 | D61: 0 | E61: 0 | F61: =IF(D61=0,0,IF(GradStudent7="Select","MA or PHD?",($D61/12*$C61)*E61*InflationY1)) -> 0 | G61: 0 | H61: 0 | I61: 0 | J61: 0 | K61: 0 | L61: 0 | M61: 0 | N61: 0 | O61: 0
A62: Name | B62: Select | C62: 0 | D62: 0 | E62: 0 | F62: =IF(D62=0,0,IF(GradStudent8="Select","MA or PHD?",($D62/12*$C62)*E62*InflationY1)) -> 0 | G62: 0 | H62: 0 | I62: 0 | J62: 0 | K62: 0 | L62: 0 | M62: 0 | N62: 0 | O62: 0
A63: Name | B63: Select | C63: 0 | D63: 0 | E63: 0 | F63: =IF(D63=0,0,IF(GradStudent9="Select","MA or PHD?",($D63/12*$C63)*E63*InflationY1)) -> 0 | G63: 0 | H63: 0 | I63: 0 | J63: 0 | K63: 0 | L63: 0 | M63: 0 | N63: 0 | O63: 0
A64: Sub-Total | F64: =SUM(F55:F63) -> 0 | H64: =SUM(H55:H63) -> 0 | J64: =SUM(J55:J63) -> 0 | L64: =SUM(L55:L63) -> 0 | N64: =SUM(N55:N63) -> 0 | O64: =SUM(O55:O63) -> 0
A66: Total Salaries & Wages | F66: =F18+F31+F38+F45++F52+F64 -> 0 | H66: =H18+H31+H38+H45++H52+H64 -> 0 | J66: =J18+J31+J38+J45++J52+J64 -> 0 | L66: =L18+L31+L38+L45++L52+L64 -> 0 | N66: =N18+N31+N38+N45++N52+N64 -> 0 | O66: =O18+O31+O38+O45++O52+O64 -> 0
A68: Fringe Benefits | F68: =F54 -> Grant Yr1 | H68: Grant Yr2 | J68: Grant Yr3 | L68: Grant Yr4 | N68: Grant Yr5 | O68: Total
A69: EHRA Employees & Faculty | F69: =F151 -> 0 | H69: =H151 -> 0 | J69: 0 | L69: 0 | N69: 0 | O69: =SUM(F69,H69,J69,L69,N69) -> 0
A70: EHRA Summer Compensation | F70: =F187 -> 0 | H70: =H187 -> 0 | J70: =J187 -> 0 | L70: =L187 -> 0 | N70: =N187 -> 0 | O70: =SUM(F70,H70,J70,L70,N70) -> 0
A71: SHRA/CSS Staff | F71: =F213 -> 0 | H71: =H213 -> 0 | J71: =J213 -> 0 | L71: =L213 -> 0 | N71: =N213 -> 0 | O71: 0
A72: Hourly/Temporary/Undergrad. Employee | F72: =F231 -> 0 | H72: =+H45*G90 -> 0 | J72: =+J45*H90 -> 0 | L72: =+L45*I90 -> 0 | N72: =+N45*J90 -> 0 | O72: 0
A73: Post Doctoral Associates | F73: =F257 -> 0 | H73: =H257 -> 0 | J73: =J257 -> 0 | L73: =L257 -> 0 | N73: =N257 -> 0 | O73: 0
A74: Graduate Student | F74: =F308 -> 0 | H74: =H308 -> 0 | J74: =J308 -> 0 | L74: =L308 -> 0 | N74: =N308 -> 0 | O74: 0
A75: Total Fringe Benefits | F75: =SUM(F69:F74) -> 0 | H75: =SUM(H69:H74) -> 0 | J75: =SUM(J69:J74) -> 0 | L75: =SUM(L69:L74) -> 0 | N75: =SUM(N69:N74) -> 0 | O75: =SUM(O69:O74) -> 0
A77: Total Salaries, Wages & Fringes | F77: =+F66+F75 -> 0 | H77: =+H66+H75 -> 0 | J77: =+J66+J75 -> 0 | L77: =+L66+L75 -> 0 | N77: =+N66+N75 -> 0 | O77: =+O66+O75 -> 0
A82: The data below provides additional detail for reference and administrative purposes. It does not print and has no fields requiring user input.
A85: Fringes Description & Rates: | F85: =F68 -> Grant Yr1 | G85: Grant Yr2 | H85: Grant Yr3 | I85: Grant Yr4 | J85: Grant Yr5 | L85: These fringe rates include retirement contributions, applicable payroll taxes, and allowances for workman's compensation and unemployment - but not health insurance. Health insurance is a fixed dollar amount per employee, so it cannot be depicted as a percentage of any given employee's salary. The current health insurance amount per person is -------------------->
F86: Current | G86: Estimate | H86: Estimate | I86: Estimate | J86: Estimate
A87: EHRA Employees & Faculty | F87: =VLOOKUP($A$87,FringeLookUp,VLOOKUP(FY_1,FYLookUp2,3),FALSE) -> 0.214 | G87: =VLOOKUP($A87,FringeLookUp,VLOOKUP(FY_2,FYLookUp2,3),FALSE) -> 0.219 | H87: =VLOOKUP($A87,FringeLookUp,VLOOKUP(FY_3,FYLookUp2,3),FALSE) -> 0.224 | I87: =VLOOKUP($A87,FringeLookUp,VLOOKUP(FY_4,FYLookUp2,3),FALSE) -> 0.229 | J87: =VLOOKUP($A87,FringeLookUp,VLOOKUP(FY_5,FYLookUp2,3),FALSE) -> 0.234
A88: EHRA Summer Compensation | F88: =VLOOKUP($A88,FringeLookUp,VLOOKUP(FY_1,FYLookUp2,3),FALSE) -> 0.214 | G88: 0.219 | H88: 0.224 | I88: 0.229 | J88: 0.234
A89: SHRA/CSS Staff | F89: =VLOOKUP($A89,FringeLookUp,VLOOKUP(FY_1,FYLookUp2,3),FALSE) -> 0.2659 | G89: 0.2709 | H89: 0.2759 | I89: 0.2809 | J89: 0.2859
A90: Hourly/Temporary/Undergraduates | F90: =VLOOKUP($A90,FringeLookUp,VLOOKUP(FY_1,FYLookUp2,3),FALSE) -> 0.0815 | G90: 0.0815 | H90: 0.0815 | I90: 0.0815 | J90: 0.0815
A91: Post Doctoral Associates | F91: =VLOOKUP($A91,FringeLookUp,VLOOKUP(FY_1,FYLookUp2,3),FALSE) -> 0.0815 | G91: 0.0815 | H91: 0.0815 | I91: 0.0815 | J91: 0.0815
A92: Graduate Student | F92: =VLOOKUP($A92,FringeLookUp,VLOOKUP(FY_1,FYLookUp2,3),FALSE) -> 0.0815 | G92: 0.0815 | H92: 0.0815 | I92: 0.0815 | J92: 0.0815 | P92: =HealthInsurance -> 6104
A97: NIH Salary Cap Active? | B97: =NIHCapSet -> Yes | D97: =IF(NIHCapSet="yes",NIHCap,9999999) -> 192300
A99: SPONSORED PROGRAM PERSONNEL DETAIL
A100: EHRA Employees & Faculty | B100: Contract Type | C100: # Months | E100: Base Salary Year 1 | F100: =F85 -> Grant Yr1 | G100: Base Salary Year 2 | H100: Grant Yr2 | I100: Base Salary Year 3 | J100: Grant Yr3 | K100: Base Salary Year 4 | L100: Grant Yr4 | M100: Base Salary Year 5 | N100: Grant Yr5 | O100: Total
A101: =A8 -> Name | B101: =B8 -> Select | C101: =C8 -> 0 | E101: =D8 -> 0 | F101: =F8*F87 -> 0 | G101: =D8*InflationY2 -> 0 | H101: =H8*G87 -> 0 | I101: =D8*InflationY3 -> 0 | J101: =J8*H87 -> 0 | K101: =D8*InflationY4 -> 0 | L101: =L8*I87 -> 0 | M101: =D8*InflationY5 -> 0 | N101: =N8*J87 -> 0 | O101: =F101+H101+J101+L101+N101 -> 0
A102: Insurance | F102: =HealthInsurance/IF($B8="12-Month",12,9)*MonthsPI17*E8*InflationY1 -> 0 | H102: =HealthInsurance/IF($B8="12-Month",12,9)*MonthsPI17*G8*InflationY2 -> 0 | J102: =HealthInsurance/IF($B8="12-Month",12,9)*MonthsPI17*I8*InflationY3 -> 0 | L102: =HealthInsurance/IF($B8="12-Month",12,9)*MonthsPI17*K8*InflationY4 -> 0 | N102: =HealthInsurance/IF($B8="12-Month",12,9)*MonthsPI17*M8*InflationY5 -> 0 | O102: =F102+H102+J102+L102+N102 -> 0
A103: Total Fringe | F103: =SUM(F101:F102) -> 0 | H103: =SUM(H101:H102) -> 0 | J103: 0 | L103: 0 | N103: 0 | O103: 0
A104: Salary | F104: =F8 -> 9 or 12? | H104: =H8 -> 9 or 12? | J104: 9 or 12? | L104: 9 or 12? | N104: 9 or 12? | O104: 0
A105: Salary & Fringe | F105: =SUM(F103:F104) -> 0 | H105: =SUM(H103:H104) -> 0 | J105: 0 | L105: 0 | N105: 0 | O105: 0
A106: =A9 -> Name | B106: =B9 -> Select | C106: =C9 -> 0 | E106: =D9 -> 0 | F106: =F9*F87 -> 0 | G106: =D9*InflationY2 -> 0 | H106: =H9*G87 -> 0 | I106: =D9*InflationY3 -> 0 | J106: =J9*H87 -> 0 | K106: =D9*InflationY4 -> 0 | L106: =L9*I87 -> 0 | M106: =D9*InflationY5 -> 0 | N106: =N9*J87 -> 0 | O106: 0
A107: Insurance | F107: =HealthInsurance/IF($B9="12-Month",12,9)*$C9*E9*InflationY1 -> 0 | H107: =HealthInsurance/IF($B9="12-Month",12,9)*$C9*G9*InflationY2 -> 0 | J107: =HealthInsurance/IF($B9="12-Month",12,9)*$C9*I9*InflationY3 -> 0 | L107: =HealthInsurance/IF($B9="12-Month",12,9)*$C9*K9*InflationY4 -> 0 | N107: =HealthInsurance/IF($B9="12-Month",12,9)*$C9*M9*InflationY5 -> 0 | O107: 0
A108: Total Fringe | F108: =SUM(F106:F107) -> 0 | H108: =SUM(H106:H107) -> 0 | J108: =SUM(J106:J107) -> 0 | L108: =SUM(L106:L107) -> 0 | N108: =SUM(N106:N107) -> 0 | O108: 0
A109: Salary | F109: =F9 -> 9 or 12? | H109: =H9 -> 9 or 12? | J109: =J9 -> 9 or 12? | L109: =L9 -> 9 or 12? | N109: =N9 -> 9 or 12? | O109: 0
A110: Salary & Fringe | F110: =SUM(F108:F109) -> 0 | H110: =SUM(H108:H109) -> 0 | J110: =SUM(J108:J109) -> 0 | L110: =SUM(L108:L109) -> 0 | N110: =SUM(N108:N109) -> 0 | O110: 0
A111: =A10 -> Name | B111: =B10 -> Select | C111: =C10 -> 0 | E111: =D10 -> 0 | F111: =F10*F87 -> 0 | G111: =D10*InflationY2 -> 0 | H111: =H10*G87 -> 0 | I111: =D10*InflationY3 -> 0 | J111: =J10*H87 -> 0 | K111: =D10*InflationY4 -> 0 | L111: =L10*I87 -> 0 | M111: =D10*InflationY5 -> 0 | N111: =N10*J87 -> 0 | O111: 0
A112: Insurance | F112: =HealthInsurance/IF($B10="12-Month",12,9)*$C10*E10*InflationY1 -> 0 | H112: =HealthInsurance/IF($B10="12-Month",12,9)*$C10*G10*InflationY2 -> 0 | J112: =HealthInsurance/IF($B10="12-Month",12,9)*$C10*I10*InflationY3 -> 0 | L112: =HealthInsurance/IF($B10="12-Month",12,9)*$C10*K10*InflationY4 -> 0 | N112: =HealthInsurance/IF($B10="12-Month",12,9)*$C10*M10*InflationY5 -> 0 | O112: 0
A113: Total Fringe | F113: =SUM(F111:F112) -> 0 | H113: =SUM(H111:H112) -> 0 | J113: =SUM(J111:J112) -> 0 | L113: =SUM(L111:L112) -> 0 | N113: =SUM(N111:N112) -> 0 | O113: 0
A114: Salary | F114: =F10 -> 9 or 12? | H114: =H10 -> 9 or 12? | J114: =J10 -> 9 or 12? | L114: =L10 -> 9 or 12? | N114: =N10 -> 9 or 12? | O114: 0
A115: Salary & Fringe | F115: =SUM(F113:F114) -> 0 | H115: =SUM(H113:H114) -> 0 | J115: =SUM(J113:J114) -> 0 | L115: =SUM(L113:L114) -> 0 | N115: =SUM(N113:N114) -> 0 | O115: 0
A116: =A11 -> Name | B116: =B11 -> Select | C116: =C11 -> 0 | E116: =D11 -> 0 | F116: =F11*F87 -> 0 | G116: =D11*InflationY2 -> 0 | H116: =H11*G87 -> 0 | I116: =D11*InflationY3 -> 0 | J116: =J11*H87 -> 0 | K116: =D11*InflationY4 -> 0 | L116: =L11*I87 -> 0 | M116: =D11*InflationY5 -> 0 | N116: =N11*J87 -> 0 | O116: 0
A117: Insurance | F117: =HealthInsurance/IF($B11="12-Month",12,9)*$C11*E11*InflationY1 -> 0 | H117: =HealthInsurance/IF($B11="12-Month",12,9)*$C11*G11*InflationY2 -> 0 | J117: =HealthInsurance/IF($B11="12-Month",12,9)*$C11*I11*InflationY3 -> 0 | L117: =HealthInsurance/IF($B11="12-Month",12,9)*$C11*K11*InflationY4 -> 0 | N117: =HealthInsurance/IF($B11="12-Month",12,9)*$C11*M11*InflationY5 -> 0 | O117: 0
A118: Total Fringe | F118: =SUM(F116:F117) -> 0 | H118: =SUM(H116:H117) -> 0 | J118: =SUM(J116:J117) -> 0 | L118: =SUM(L116:L117) -> 0 | N118: =SUM(N116:N117) -> 0 | O118: 0
A119: Salary | F119: =F11 -> 9 or 12? | H119: =H11 -> 9 or 12? | J119: =J11 -> 9 or 12? | L119: =L11 -> 9 or 12? | N119: =N11 -> 9 or 12? | O119: =F119+H119+J119+L119+N119 -> 0
A120: Salary & Fringe | F120: =SUM(F118:F119) -> 0 | H120: =SUM(H118:H119) -> 0 | J120: =SUM(J118:J119) -> 0 | L120: =SUM(L118:L119) -> 0 | N120: =SUM(N118:N119) -> 0 | O120: 0
A121: =A12 -> Name | B121: =B12 -> Select | C121: =C12 -> 0 | E121: =D12 -> 0 | F121: =F12*F87 -> 0 | G121: =D12*InflationY2 -> 0 | H121: =H12*G87 -> 0 | I121: =D12*InflationY3 -> 0 | J121: =J12*H87 -> 0 | K121: =D12*InflationY4 -> 0 | L121: =L12*I87 -> 0 | M121: =D12*InflationY5 -> 0 | N121: =N12*J87 -> 0 | O121: 0
A122: Insurance | F122: =HealthInsurance/IF($B12="12-Month",12,9)*$C12*E12*InflationY1 -> 0 | H122: =HealthInsurance/IF($B12="12-Month",12,9)*$C12*G12*InflationY2 -> 0 | J122: =HealthInsurance/IF($B12="12-Month",12,9)*$C12*I12*InflationY3 -> 0 | L122: =HealthInsurance/IF($B12="12-Month",12,9)*$C12*K12*InflationY4 -> 0 | N122: =HealthInsurance/IF($B12="12-Month",12,9)*$C12*M12*InflationY5 -> 0 | O122: 0
A123: Total | F123: =SUM(F121:F122) -> 0 | H123: =SUM(H121:H122) -> 0 | J123: =SUM(J121:J122) -> 0 | L123: =SUM(L121:L122) -> 0 | N123: =SUM(N121:N122) -> 0 | O123: 0
A124: Salary | F124: =F12 -> 9 or 12? | H124: =H12 -> 9 or 12? | J124: =J12 -> 9 or 12? | L124: =L12 -> 9 or 12? | N124: =N12 -> 9 or 12? | O124: 0
A125: Salary & Fringe | F125: =SUM(F123:F124) -> 0 | H125: =SUM(H123:H124) -> 0 | J125: =SUM(J123:J124) -> 0 | L125: =SUM(L123:L124) -> 0 | N125: =SUM(N123:N124) -> 0 | O125: 0
A126: =A13 -> Name | B126: =B13 -> Select | C126: =C13 -> 0 | E126: =D13 -> 0 | F126: =F13*F87 -> 0 | G126: =D13*InflationY2 -> 0 | H126: =H13*G87 -> 0 | I126: =D13*InflationY3 -> 0 | J126: =J13*H87 -> 0 | K126: =D13*InflationY4 -> 0 | L126: =L13*I87 -> 0 | M126: =D13*InflationY5 -> 0 | N126: =N13*J87 -> 0 | O126: 0
A127: Insurance | F127: =HealthInsurance/IF($B13="12-Month",12,9)*$C13*E13*InflationY1 -> 0 | H127: =HealthInsurance/IF($B13="12-Month",12,9)*$C13*G13*InflationY2 -> 0 | J127: =HealthInsurance/IF($B13="12-Month",12,9)*$C13*I13*InflationY3 -> 0 | L127: =HealthInsurance/IF($B13="12-Month",12,9)*$C13*K13*InflationY4 -> 0 | N127: =HealthInsurance/IF($B13="12-Month",12,9)*$C13*M13*InflationY5 -> 0 | O127: 0
A128: Total | F128: =SUM(F126:F127) -> 0 | H128: =SUM(H126:H127) -> 0 | J128: =SUM(J126:J127) -> 0 | L128: =SUM(L126:L127) -> 0 | N128: =SUM(N126:N127) -> 0 | O128: 0
A129: Salary | F129: =F13 -> 9 or 12? | H129: =H13 -> 9 or 12? | J129: =J13 -> 9 or 12? | L129: =L13 -> 9 or 12? | N129: =N13 -> 9 or 12? | O129: 0
A130: Salary & Fringe | F130: =SUM(F128:F129) -> 0 | H130: =SUM(H128:H129) -> 0 | J130: =SUM(J128:J129) -> 0 | L130: =SUM(L128:L129) -> 0 | N130: =SUM(N128:N129) -> 0 | O130: 0
A131: =A14 -> Name | B131: =B14 -> Select | C131: =C14 -> 0 | E131: =D14 -> 0 | F131: =F14*F87 -> 0 | G131: =D14*InflationY2 -> 0 | H131: =H14*G87 -> 0 | I131: =D14*InflationY3 -> 0 | J131: =J14*H87 -> 0 | K131: =D14*InflationY4 -> 0 | L131: =L14*I87 -> 0 | M131: =D14*InflationY5 -> 0 | N131: =N14*J87 -> 0 | O131: 0
A132: Insurance | F132: =HealthInsurance/IF($B14="12-Month",12,9)*$C14*E14*InflationY1 -> 0 | H132: =HealthInsurance/IF($B14="12-Month",12,9)*$C14*G14*InflationY2 -> 0 | J132: =HealthInsurance/IF($B14="12-Month",12,9)*$C14*I14*InflationY3 -> 0 | L132: =HealthInsurance/IF($B14="12-Month",12,9)*$C14*K14*InflationY4 -> 0 | N132: =HealthInsurance/IF($B14="12-Month",12,9)*$C14*M14*InflationY5 -> 0 | O132: 0
A133: Total | F133: =SUM(F131:F132) -> 0 | H133: =SUM(H131:H132) -> 0 | J133: =SUM(J131:J132) -> 0 | L133: =SUM(L131:L132) -> 0 | N133: =SUM(N131:N132) -> 0 | O133: 0
A134: Salary | F134: =F14 -> 9 or 12? | H134: =H14 -> 9 or 12? | J134: =J14 -> 9 or 12? | L134: =L14 -> 9 or 12? | N134: =N14 -> 9 or 12? | O134: 0
A135: Salary & Fringe | F135: =SUM(F133:F134) -> 0 | H135: =SUM(H133:H134) -> 0 | J135: =SUM(J133:J134) -> 0 | L135: =SUM(L133:L134) -> 0 | N135: =SUM(N133:N134) -> 0 | O135: 0
A136: =A15 -> Name | B136: =B15 -> Select | C136: =C15 -> 0 | E136: =D15 -> 0 | F136: =F15*F87 -> 0 | G136: =D15*InflationY2 -> 0 | H136: =H15*G87 -> 0 | I136: =D15*InflationY3 -> 0 | J136: =J15*H87 -> 0 | K136: =D15*InflationY4 -> 0 | L136: =L15*I87 -> 0 | M136: =D15*InflationY5 -> 0 | N136: =N15*J87 -> 0 | O136: 0
A137: Insurance | F137: =HealthInsurance/IF($B15="12-Month",12,9)*$C15*E15*InflationY1 -> 0 | H137: =HealthInsurance/IF($B15="12-Month",12,9)*$C15*G15*InflationY2 -> 0 | J137: =HealthInsurance/IF($B15="12-Month",12,9)*$C15*I15*InflationY3 -> 0 | L137: =HealthInsurance/IF($B15="12-Month",12,9)*$C15*K15*InflationY4 -> 0 | N137: =HealthInsurance/IF($B15="12-Month",12,9)*$C15*M15*InflationY5 -> 0 | O137: 0
A138: Total | F138: =SUM(F136:F137) -> 0 | H138: =SUM(H136:H137) -> 0 | J138: =SUM(J136:J137) -> 0 | L138: =SUM(L136:L137) -> 0 | N138: =SUM(N136:N137) -> 0 | O138: 0
A139: Salary | F139: =F15 -> 9 or 12? | H139: =H15 -> 9 or 12? | J139: =J15 -> 9 or 12? | L139: =L15 -> 9 or 12? | N139: =N15 -> 9 or 12? | O139: 0
A140: Salary & Fringe | F140: =SUM(F138:F139) -> 0 | H140: =SUM(H138:H139) -> 0 | J140: =SUM(J138:J139) -> 0 | L140: =SUM(L138:L139) -> 0 | N140: =SUM(N138:N139) -> 0 | O140: 0
A141: =A16 -> Name | B141: =B16 -> Select | C141: =C16 -> 0 | E141: =D16 -> 0 | F141: =F16*F87 -> 0 | G141: =D16*InflationY2 -> 0 | H141: =H16*G87 -> 0 | I141: =D16*InflationY3 -> 0 | J141: =J16*H87 -> 0 | K141: =D16*InflationY4 -> 0 | L141: =L16*I87 -> 0 | M141: =D16*InflationY5 -> 0 | N141: =N16*J87 -> 0 | O141: 0
A142: Insurance | F142: =HealthInsurance/IF($B16="12-Month",12,9)*$C16*E16*InflationY1 -> 0 | H142: =HealthInsurance/IF($B16="12-Month",12,9)*$C16*G16*InflationY2 -> 0 | J142: =HealthInsurance/IF($B16="12-Month",12,9)*$C16*I16*InflationY3 -> 0 | L142: =HealthInsurance/IF($B16="12-Month",12,9)*$C16*K16*InflationY4 -> 0 | N142: =HealthInsurance/IF($B16="12-Month",12,9)*$C16*M16*InflationY5 -> 0 | O142: 0
A143: Total | F143: =SUM(F141:F142) -> 0 | H143: =SUM(H141:H142) -> 0 | J143: =SUM(J141:J142) -> 0 | L143: =SUM(L141:L142) -> 0 | N143: =SUM(N141:N142) -> 0 | O143: 0
A144: Salary | F144: =F16 -> 9 or 12? | H144: =H16 -> 9 or 12? | J144: =J16 -> 9 or 12? | L144: =L16 -> 9 or 12? | N144: =N16 -> 9 or 12? | O144: 0
A145: Salary & Fringe | F145: =SUM(F143:F144) -> 0 | H145: =SUM(H143:H144) -> 0 | J145: =SUM(J143:J144) -> 0 | L145: =SUM(L143:L144) -> 0 | N145: =SUM(N143:N144) -> 0 | O145: 0
A146: =A17 -> Name | B146: =B17 -> Select | C146: =C17 -> 0 | E146: =D17 -> 0 | F146: =F17*F87 -> 0 | G146: =D17*InflationY2 -> 0 | H146: =H17*G87 -> 0 | I146: =D17*InflationY3 -> 0 | J146: =J17*H87 -> 0 | K146: =D17*InflationY4 -> 0 | L146: =L17*I87 -> 0 | M146: =D17*InflationY5 -> 0 | N146: =N17*J87 -> 0 | O146: 0
A147: Insurance | F147: =HealthInsurance/IF($B17="12-Month",12,9)*$C17*E17*InflationY1 -> 0 | H147: =HealthInsurance/IF($B17="12-Month",12,9)*$C17*G17*InflationY2 -> 0 | J147: =HealthInsurance/IF($B17="12-Month",12,9)*$C17*I17*InflationY3 -> 0 | L147: =HealthInsurance/IF($B17="12-Month",12,9)*$C17*K17*InflationY4 -> 0 | N147: =HealthInsurance/IF($B17="12-Month",12,9)*$C17*M17*InflationY5 -> 0 | O147: 0
A148: Total | F148: =SUM(F146:F147) -> 0 | H148: =SUM(H146:H147) -> 0 | J148: =SUM(J146:J147) -> 0 | L148: =SUM(L146:L147) -> 0 | N148: =SUM(N146:N147) -> 0 | O148: 0
A149: Salary | F149: =F17 -> 9 or 12? | H149: =H17 -> 9 or 12? | J149: =J17 -> 9 or 12? | L149: =L17 -> 9 or 12? | N149: =N17 -> 9 or 12? | O149: 0
A150: Salary & Fringe | F150: =SUM(F148:F149) -> 0 | H150: =SUM(H148:H149) -> 0 | J150: =SUM(J148:J149) -> 0 | L150: =SUM(L148:L149) -> 0 | N150: =SUM(N148:N149) -> 0 | O150: 0
A151: Sub-Total Fringe | F151: =F103+F108+F113+F118+F123+F128+F133+F143+F138+F148 -> 0 | H151: =H103+H108+H113+H118+H123+H128+H133+H143+H138+H148 -> 0 | J151: 0 | L151: 0 | N151: 0 | O151: 0
A152: Sub-Total Salary | F152: =F104+F109+F114+F119+F124+F129+F134+F144+F139+F149 -> 0 | H152: =H104+H109+H114+H119+H124+H129+H134+H144+H139+H149 -> 0 | J152: 0 | L152: 0 | N152: 0 | O152: 0
A153: Sub-Total Salary & Fringe | F153: =F105+F110+F115+F120+F125+F130+F135+F145+F140+F150 -> 0 | H153: =H105+H110+H115+H120+H125+H130+H135+H145+H140+H150 -> 0 | J153: 0 | L153: 0 | N153: 0 | O153: 0
B155: Contract Type | C155: # Months | E155: Base Salary Year 1 | F155: =F6 -> Grant Yr1 | G155: Base Salary Year 2 | H155: Grant Yr2 | I155: Base Salary Year 3 | J155: Grant Yr3 | K155: Base Salary Year 4 | L155: Grant Yr4 | M155: Base Salary Year 5 | N155: Grant Yr5 | O155: Total
A156: EHRA Summer Compensation
A157: =A21 -> Name | B157: =B21 -> Summer | C157: =C21 -> 0 | E157: =D21 -> 0 | F157: =F21*F$88 -> 0 | G157: =D21*InflationY2 -> 0 | H157: =H21*G88 -> 0 | I157: =D21*InflationY3 -> 0 | J157: =J21*H88 -> 0 | K157: =D21*InflationY4 -> 0 | L157: =L21*I88 -> 0 | M157: =D21*InflationY5 -> 0 | N157: =N21*J88 -> 0 | O157: =F157+H157+J157+L157+N157 -> 0
A158: Salary | F158: =F21 -> 0 | H158: =H21 -> 0 | J158: =J21 -> 0 | L158: =L21 -> 0 | N158: =N21 -> 0 | O158: 0
A159: Salary & Fringe | F159: =SUM(F157:F158) -> 0 | H159: =SUM(H157:H158) -> 0 | J159: =SUM(J157:J158) -> 0 | L159: =SUM(L157:L158) -> 0 | N159: =SUM(N157:N158) -> 0 | O159: 0
A160: =A22 -> Name | B160: =B22 -> Summer | C160: =C22 -> 0 | E160: =D22 -> 0 | F160: =F22*F$88 -> 0 | G160: =D22*InflationY2 -> 0 | H160: =H22*G88 -> 0 | I160: =D22*InflationY3 -> 0 | J160: =J22*H88 -> 0 | K160: =D22*InflationY4 -> 0 | L160: =L22*I88 -> 0 | M160: =D22*InflationY5 -> 0 | N160: =N22*J88 -> 0 | O160: 0
A161: Salary | F161: =F22 -> 0 | H161: =H22 -> 0 | J161: =J22 -> 0 | L161: =L22 -> 0 | N161: =N22 -> 0 | O161: 0
A162: Salary & Fringe | F162: =SUM(F160:F161) -> 0 | H162: =SUM(H160:H161) -> 0 | J162: =SUM(J160:J161) -> 0 | L162: =SUM(L160:L161) -> 0 | N162: =SUM(N160:N161) -> 0 | O162: 0
A163: =A23 -> Name | B163: =B23 -> Summer | C163: =C23 -> 0 | E163: =D23 -> 0 | F163: =F23*F$88 -> 0 | G163: =D23*InflationY2 -> 0 | H163: =H23*G88 -> 0 | I163: =D23*InflationY3 -> 0 | J163: =J23*H88 -> 0 | K163: =D23*InflationY4 -> 0 | L163: =L23*I88 -> 0 | M163: =D23*InflationY5 -> 0 | N163: =N23*J88 -> 0 | O163: 0
A164: Salary | F164: =F23 -> 0 | H164: =H23 -> 0 | J164: =J23 -> 0 | L164: =L23 -> 0 | N164: =N23 -> 0 | O164: 0
A165: Salary & Fringe | F165: =SUM(F163:F164) -> 0 | H165: =SUM(H163:H164) -> 0 | J165: =SUM(J163:J164) -> 0 | L165: =SUM(L163:L164) -> 0 | N165: =SUM(N163:N164) -> 0 | O165: 0
A166: =A24 -> Name | B166: =B24 -> Summer | C166: =C24 -> 0 | E166: =D24 -> 0 | F166: =F24*F$88 -> 0 | G166: =D24*InflationY2 -> 0 | H166: =H24*G88 -> 0 | I166: =D24*InflationY3 -> 0 | J166: =J24*H88 -> 0 | K166: =D24*InflationY4 -> 0 | L166: =L24*I88 -> 0 | M166: =D24*InflationY5 -> 0 | N166: =N24*J88 -> 0 | O166: 0
A167: Salary | F167: =F24 -> 0 | H167: =H24 -> 0 | J167: =J24 -> 0 | L167: =L24 -> 0 | N167: =N24 -> 0 | O167: 0
A168: Salary & Fringe | F168: =SUM(F166:F167) -> 0 | H168: =SUM(H166:H167) -> 0 | J168: =SUM(J166:J167) -> 0 | L168: =SUM(L166:L167) -> 0 | N168: =SUM(N166:N167) -> 0 | O168: 0
A169: =A25 -> Name | B169: =B25 -> Summer | C169: =C25 -> 0 | E169: =D25 -> 0 | F169: =F25*F$88 -> 0 | G169: =D25*InflationY2 -> 0 | H169: =H25*G88 -> 0 | I169: =D25*InflationY3 -> 0 | J169: =J25*H88 -> 0 | K169: =D25*InflationY4 -> 0 | L169: =L25*I88 -> 0 | M169: =D25*InflationY5 -> 0 | N169: =N25*J88 -> 0 | O169: 0
A170: Salary | F170: =F25 -> 0 | H170: =H25 -> 0 | J170: =J25 -> 0 | L170: =L25 -> 0 | N170: =N25 -> 0 | O170: 0
A171: Salary & Fringe | F171: =SUM(F169:F170) -> 0 | H171: =SUM(H169:H170) -> 0 | J171: =SUM(J169:J170) -> 0 | L171: =SUM(L169:L170) -> 0 | N171: =SUM(N169:N170) -> 0 | O171: 0
A172: =A26 -> Name | B172: =B26 -> Summer | C172: =C26 -> 0 | E172: =D26 -> 0 | F172: =F26*F$88 -> 0 | G172: =D26*InflationY2 -> 0 | H172: =H26*G88 -> 0 | I172: =D26*InflationY3 -> 0 | J172: =J26*H88 -> 0 | K172: =D26*InflationY4 -> 0 | L172: =L26*I88 -> 0 | M172: =D26*InflationY5 -> 0 | N172: =N26*J88 -> 0 | O172: 0
A173: Salary | F173: =F26 -> 0 | H173: =H26 -> 0 | J173: =J26 -> 0 | L173: =L26 -> 0 | N173: =N26 -> 0 | O173: 0
A174: Salary & Fringe | F174: =SUM(F172:F173) -> 0 | H174: =SUM(H172:H173) -> 0 | J174: =SUM(J172:J173) -> 0 | L174: =SUM(L172:L173) -> 0 | N174: =SUM(N172:N173) -> 0 | O174: 0
A175: =A27 -> Name | B175: =B27 -> Summer | C175: =C27 -> 0 | E175: =D27 -> 0 | F175: =F27*F$88 -> 0 | G175: =D27*InflationY2 -> 0 | H175: =H27*G88 -> 0 | I175: =D27*InflationY3 -> 0 | J175: =J27*H88 -> 0 | K175: =D27*InflationY4 -> 0 | L175: =L27*I88 -> 0 | M175: =D27*InflationY5 -> 0 | N175: =N27*J88 -> 0 | O175: 0
A176: Salary | F176: =F27 -> 0 | H176: =H27 -> 0 | J176: =J27 -> 0 | L176: =L27 -> 0 | N176: =N27 -> 0 | O176: 0
A177: Salary & Fringe | F177: =SUM(F175:F176) -> 0 | H177: =SUM(H175:H176) -> 0 | J177: =SUM(J175:J176) -> 0 | L177: =SUM(L175:L176) -> 0 | N177: =SUM(N175:N176) -> 0 | O177: 0
A178: =A28 -> Name | B178: =B28 -> Summer | C178: =C28 -> 0 | E178: =D28 -> 0 | F178: =F28*F$88 -> 0 | G178: =D28*InflationY2 -> 0 | H178: =H28*G88 -> 0 | I178: =D28*InflationY3 -> 0 | J178: =J28*H88 -> 0 | K178: =D28*InflationY4 -> 0 | L178: =L28*I88 -> 0 | M178: =D28*InflationY5 -> 0 | N178: =N28*J88 -> 0 | O178: 0
A179: Salary | F179: =F28 -> 0 | H179: =H28 -> 0 | J179: =J28 -> 0 | L179: =L28 -> 0 | N179: =N28 -> 0 | O179: 0
A180: Salary & Fringe | F180: =SUM(F178:F179) -> 0 | H180: =SUM(H178:H179) -> 0 | J180: =SUM(J178:J179) -> 0 | L180: =SUM(L178:L179) -> 0 | N180: =SUM(N178:N179) -> 0 | O180: 0
A181: =A29 -> Name | B181: =B29 -> Summer | C181: =C29 -> 0 | E181: =D29 -> 0 | F181: =F29*F$88 -> 0 | G181: =D29*InflationY2 -> 0 | H181: =H29*G88 -> 0 | I181: =D29*InflationY3 -> 0 | J181: =J29*H88 -> 0 | K181: =D29*InflationY4 -> 0 | L181: =L29*I88 -> 0 | M181: =D29*InflationY5 -> 0 | N181: =N29*J88 -> 0 | O181: 0
A182: Salary | F182: =F29 -> 0 | H182: =H29 -> 0 | J182: =J29 -> 0 | L182: =L29 -> 0 | N182: =N29 -> 0 | O182: 0
A183: Salary & Fringe | F183: =SUM(F181:F182) -> 0 | H183: =SUM(H181:H182) -> 0 | J183: =SUM(J181:J182) -> 0 | L183: =SUM(L181:L182) -> 0 | N183: =SUM(N181:N182) -> 0 | O183: 0
A184: =A30 -> Name | B184: =B30 -> Summer | C184: =C30 -> 0 | E184: =D30 -> 0 | F184: =F30*F$88 -> 0 | G184: =D30*InflationY2 -> 0 | H184: =H30*G88 -> 0 | I184: =D30*InflationY3 -> 0 | J184: =J30*H88 -> 0 | K184: =D30*InflationY4 -> 0 | L184: =L30*I88 -> 0 | M184: =D30*InflationY5 -> 0 | N184: =N30*J88 -> 0 | O184: 0
A185: Salary | F185: =F30 -> 0 | H185: =H30 -> 0 | J185: =J30 -> 0 | L185: =L30 -> 0 | N185: =N30 -> 0 | O185: 0
A186: Salary & Fringe | F186: =SUM(F184:F185) -> 0 | H186: =SUM(H184:H185) -> 0 | J186: =SUM(J184:J185) -> 0 | L186: =SUM(L184:L185) -> 0 | N186: =SUM(N184:N185) -> 0 | O186: 0
A187: Sub-Total Fringe | F187: =F157+F160+F163+F166+F169+F172+F175+F178+F181+F184 -> 0 | H187: =H157+H160+H163+H166+H169+H172+H175+H178+H181+H184 -> 0 | J187: 0 | L187: 0 | N187: 0 | O187: 0
A188: Sub-Total Salary | F188: =F158+F161+F164+F167+F170+F173+F176+F179+F182+F185 -> 0 | H188: 0 | J188: 0 | L188: 0 | N188: 0 | O188: 0
A189: Sub-Total Salary & Fringe | F189: =F159+F162+F165+F168+F171+F174+F177+F180+F183+F186 -> 0 | H189: =H159+H162+H165+H168+H171+H174+H177+H180+H183+H186 -> 0 | J189: 0 | L189: 0 | N189: 0 | O189: 0
B191: Contract Type | C191: # Months | E191: Base Salary Year 1 | F191: =F6 -> Grant Yr1 | G191: Base Salary Year 2 | H191: Grant Yr2 | I191: Base Salary Year 3 | J191: Grant Yr3 | K191: Base Salary Year 4 | L191: Grant Yr4 | M191: Base Salary Year 5 | N191: Grant Yr5 | O191: Total
A192: SHRA/CSS Staff
A193: =A34 -> Name | B193: =B34 -> 12-Month | C193: =C34 -> 0 | E193: =D34 -> 0 | F193: =F34*F89 -> 0 | G193: =D34*InflationY2 -> 0 | H193: =H34*G89 -> 0 | I193: =D34*InflationY3 -> 0 | J193: =J34*H89 -> 0 | K193: =D34*InflationY4 -> 0 | L193: =L34*I89 -> 0 | M193: =D34*InflationY5 -> 0 | N193: =N34*J89 -> 0 | O193: =F193+H193+J193+L193+N193 -> 0
A194: Insurance | F194: =HealthInsurance/IF($B34="12-Month",12,9)*C34*E34*InflationY1 -> 0 | H194: =HealthInsurance/IF($B34="12-Month",12,9)*C34*G34*InflationY2 -> 0 | J194: =HealthInsurance/IF($B34="12-Month",12,9)*C34*I34*InflationY3 -> 0 | L194: =HealthInsurance/IF($B34="12-Month",12,9)*C34*K34*InflationY4 -> 0 | N194: =HealthInsurance/IF($B34="12-Month",12,9)*C34*M34*InflationY5 -> 0 | O194: =F194+H194+J194+L194+N194 -> 0
A195: Total | F195: =SUM(F193:F194) -> 0 | H195: =SUM(H193:H194) -> 0 | J195: 0 | L195: 0 | N195: 0 | O195: 0
A196: Salary | F196: =F34 -> 0 | H196: =H34 -> 0 | J196: 0 | L196: 0 | N196: 0 | O196: 0
A197: Salary & Fringe | F197: =SUM(F195:F196) -> 0 | H197: =SUM(H195:H196) -> 0 | J197: 0 | L197: 0 | N197: 0 | O197: 0
A198: =A35 -> Name | B198: =B35 -> 12-Month | C198: =C35 -> 0 | E198: =D35 -> 0 | F198: =F35*F89 -> 0 | G198: =D35*InflationY2 -> 0 | H198: =H35*G89 -> 0 | I198: =D35*InflationY3 -> 0 | J198: =J35*H89 -> 0 | K198: =D35*InflationY4 -> 0 | L198: =L35*I89 -> 0 | M198: =D35*InflationY5 -> 0 | N198: =N35*J89 -> 0 | O198: 0
A199: Insurance | F199: =HealthInsurance/IF($B35="12-Month",12,9)*C35*E35*InflationY1 -> 0 | H199: =HealthInsurance/IF($B35="12-Month",12,9)*C35*G35*InflationY2 -> 0 | J199: =HealthInsurance/IF($B35="12-Month",12,9)*C35*I35*InflationY3 -> 0 | L199: =HealthInsurance/IF($B35="12-Month",12,9)*C35*K35*InflationY4 -> 0 | N199: =HealthInsurance/IF($B35="12-Month",12,9)*C35*M35*InflationY5 -> 0 | O199: 0
A200: Total | F200: =SUM(F198:F199) -> 0 | H200: =SUM(H198:H199) -> 0 | J200: =SUM(J198:J199) -> 0 | L200: =SUM(L198:L199) -> 0 | N200: =SUM(N198:N199) -> 0 | O200: 0
A201: Salary | F201: =F35 -> 0 | H201: =H35 -> 0 | J201: 0 | L201: 0 | N201: 0 | O201: 0
A202: Salary & Fringe | F202: =SUM(F200:F201) -> 0 | H202: =SUM(H200:H201) -> 0 | J202: =SUM(J200:J201) -> 0 | L202: =SUM(L200:L201) -> 0 | N202: =SUM(N200:N201) -> 0 | O202: 0
A203: =A36 -> Name | B203: =B36 -> 12-Month | C203: =C36 -> 0 | E203: =D36 -> 0 | F203: =F36*F89 -> 0 | G203: =D36*InflationY2 -> 0 | H203: =H36*G89 -> 0 | I203: =D36*InflationY3 -> 0 | J203: =J36*H89 -> 0 | K203: =D36*InflationY4 -> 0 | L203: =L36*I89 -> 0 | M203: =D36*InflationY5 -> 0 | N203: =N36*J89 -> 0 | O203: 0
A204: Insurance | F204: =HealthInsurance/IF($B36="12-Month",12,9)*C36*E36*InflationY1 -> 0 | H204: =HealthInsurance/IF($B36="12-Month",12,9)*C36*G36*InflationY2 -> 0 | J204: =HealthInsurance/IF($B36="12-Month",12,9)*C36*I36*InflationY3 -> 0 | L204: =HealthInsurance/IF($B36="12-Month",12,9)*C36*K36*InflationY4 -> 0 | N204: =HealthInsurance/IF($B36="12-Month",12,9)*C36*M36*InflationY5 -> 0 | O204: 0
A205: Total | F205: =SUM(F203:F204) -> 0 | H205: =SUM(H203:H204) -> 0 | J205: =SUM(J203:J204) -> 0 | L205: =SUM(L203:L204) -> 0 | N205: =SUM(N203:N204) -> 0 | O205: 0
A206: Salary | F206: =F36 -> 0 | H206: =H36 -> 0 | J206: 0 | L206: 0 | N206: 0 | O206: 0
A207: Salary & Fringe | F207: =SUM(F205:F206) -> 0 | H207: =SUM(H205:H206) -> 0 | J207: =SUM(J205:J206) -> 0 | L207: =SUM(L205:L206) -> 0 | N207: =SUM(N205:N206) -> 0 | O207: 0
A208: =A37 -> Name | B208: =B37 -> 12-Month | C208: =C37 -> 0 | E208: =D37 -> 0 | F208: =F37*F89 -> 0 | G208: =D37*InflationY2 -> 0 | H208: =H37*G89 -> 0 | I208: =D37*InflationY3 -> 0 | J208: =J37*H89 -> 0 | K208: =D37*InflationY4 -> 0 | L208: =L37*I89 -> 0 | M208: =D37*InflationY5 -> 0 | N208: =N37*J89 -> 0 | O208: 0
A209: Insurance | F209: =HealthInsurance/IF($B37="12-Month",12,9)*C37*E37*InflationY1 -> 0 | H209: =HealthInsurance/IF($B37="12-Month",12,9)*C37*G37*InflationY2 -> 0 | J209: =HealthInsurance/IF($B37="12-Month",12,9)*C37*I37*InflationY3 -> 0 | L209: =HealthInsurance/IF($B37="12-Month",12,9)*C37*K37*InflationY4 -> 0 | N209: =HealthInsurance/IF($B37="12-Month",12,9)*C37*M37*InflationY5 -> 0 | O209: 0
A210: Total | F210: =SUM(F208:F209) -> 0 | H210: =SUM(H208:H209) -> 0 | J210: =SUM(J208:J209) -> 0 | L210: =SUM(L208:L209) -> 0 | N210: =SUM(N208:N209) -> 0 | O210: 0
A211: Salary | F211: =F37 -> 0 | H211: =H37 -> 0 | J211: 0 | L211: 0 | N211: 0 | O211: 0
A212: Salary & Fringe | F212: =SUM(F210:F211) -> 0 | H212: =SUM(H210:H211) -> 0 | J212: =SUM(J210:J211) -> 0 | L212: =SUM(L210:L211) -> 0 | N212: =SUM(N210:N211) -> 0 | O212: 0
A213: Sub-Total Fringe | F213: =F195+F200+F205+F210 -> 0 | H213: =H195+H200+H205+H210 -> 0 | J213: 0 | L213: 0 | N213: 0 | O213: 0
A214: Sub-Total Salary | F214: =F196+F201+F206+F211 -> 0 | H214: =H196+H201+H206+H211 -> 0 | J214: 0 | L214: 0 | N214: 0 | O214: 0
A215: Sub-Total Salary & Fringe | F215: =SUM(F213:F214) -> 0 | H215: =SUM(H213:H214) -> 0 | J215: 0 | L215: 0 | N215: 0 | O215: 0
B217: Contract Type | C217: # Months | E217: Rate | F217: =F6 -> Grant Yr1 | G217: Rate | H217: Grant Yr2 | I217: Rate | J217: Grant Yr3 | K217: Rate | L217: Grant Yr4 | M217: Rate | N217: Grant Yr5 | O217: Total
A218: Hourly/Temp/Undergrad. Employee
A219: =A41 -> Name | B219: =B41 -> Hourly | E219: =F41 -> 0 | F219: =F41*F90 -> 0 | G219: =H41 -> 0 | H219: =H41*G90 -> 0 | I219: =J41 -> 0 | J219: =J41*H90 -> 0 | K219: =L41 -> 0 | L219: =L41*I90 -> 0 | M219: =N41 -> 0 | N219: =N41*J90 -> 0 | O219: =F219+H219+J219+L219+N219 -> 0
A220: Salary | F220: =F41 -> 0 | H220: =H41 -> 0 | J220: =J41 -> 0 | L220: =L41 -> 0 | N220: =N41 -> 0 | O220: 0
A221: Salary & Fringe | F221: =SUM(F219:F220) -> 0 | H221: =SUM(H219:H220) -> 0 | J221: 0 | L221: 0 | N221: 0 | O221: 0
A222: =A42 -> Name | B222: =B42 -> Hourly | E222: =F42 -> 0 | F222: =F42*F90 -> 0 | G222: =H42 -> 0 | H222: =H42*G90 -> 0 | I222: =J42 -> 0 | J222: =J42*H90 -> 0 | K222: =L42 -> 0 | L222: =L42*I90 -> 0 | M222: =N42 -> 0 | N222: =N42*J90 -> 0 | O222: 0
A223: Salary | F223: =F42 -> 0 | H223: =H42 -> 0 | J223: =J42 -> 0 | L223: =L42 -> 0 | N223: =N42 -> 0 | O223: 0
... 85 more rows

Sheet Expenses & Summary
A1: East Carolina University | D1: Sponsored Program Budget Summary
A2: =piname -> PI Name | E2: Creation Date: | F2: =creationdate -> Date | G2: RAMSeS ID: | H2: =ramsesid -> Enter # Here
A3: =proposaltitle -> Enter Title | D3: Project Period: | F3: =projstartdate -> Date | G3: to | H3: =projenddate -> Date
A4: =sponsor -> Enter Sponsor | D4: Projected Inflation | F4: =Inflation -> 0.03
B6: Grant Yr1 | C6: Grant Yr2 | D6: Grant Yr3 | E6: Grant Yr4 | F6: Grant Yr5 | G6: Total | H6: Notes | K6: Expense Category
A7: F&A Rate | B7: =FARateY1 -> 0.475 | C7: =FARateY2 -> 0.475 | D7: =FARateY3 -> 0.475 | E7: =FARateY4 -> 0.475 | F7: =FARateY5 -> 0.475 | I7: =IF(RateSelection="Custom Rate - Enter Rate Here ----------->"," ",IF(RateSelection="No F&A - 0%"," ",IF(RateSelection="Other Activity (On-Campus) - 44.5%"," ",IF(RateSelection="Instruction (On-Campus) - 50%"," ",IF(RateSelection="Research (Off-Campus Adjacent) - 27.7%","NOTE - Assignment of an Off-Campus Rate requires approval of the Director of Sponsored Programs. This approval should be obtained at the beginning of budget preparation - email osp@ecu.edu.",IF(RateSelection="Off-Campus (Remote-All Types) - 26%","NOTE - Assignment of an Off-Campus Rate requires approval of the Director of Sponsored Programs. This approval should be obtained at the beginning of budget preparation - email osp@ecu.edu.",IF(RateSelection="Research (On-Campus) - 47.5%"," "))))))) -> 
A8: EHRA Employees & Faculty | B8: =+Personnel!F18 -> 0 | C8: =+Personnel!H18 -> 0 | D8: =+Personnel!J18 -> 0 | E8: =+Personnel!L18 -> 0 | F8: =+Personnel!N18 -> 0 | G8: =SUM(B8:F8) -> 0 | K8: 1 | M8: Salary & Fringe | N8: 1
A9: EHRA Summer Compensation | B9: =+Personnel!F31 -> 0 | C9: =+Personnel!H31 -> 0 | D9: =+Personnel!J31 -> 0 | E9: =+Personnel!L31 -> 0 | F9: =+Personnel!N31 -> 0 | G9: =SUM(B9:F9) -> 0 | K9: 1 | M9: Equipment | N9: 2
A10: SHRA/CSS Staff | B10: =+Personnel!F38 -> 0 | C10: =+Personnel!H38 -> 0 | D10: =+Personnel!J38 -> 0 | E10: =+Personnel!L38 -> 0 | F10: =+Personnel!N38 -> 0 | G10: 0 | K10: 1 | M10: Supplies | N10: 3
A11: Hourly/Temporary/Undergrad. Employee | B11: =+Personnel!F45 -> 0 | C11: =+Personnel!H45 -> 0 | D11: =+Personnel!J45 -> 0 | E11: =+Personnel!L45 -> 0 | F11: =+Personnel!N45 -> 0 | G11: 0 | K11: 1 | M11: Travel & Meetings | N11: 4
A12: Post Doctoral Associates | B12: =+Personnel!F52 -> 0 | C12: =+Personnel!H52 -> 0 | D12: =+Personnel!J52 -> 0 | E12: =+Personnel!L52 -> 0 | F12: =+Personnel!N52 -> 0 | G12: 0 | K12: 1 | M12: Contracted Services | N12: 5
A13: Graduate Student | B13: =+Personnel!F64 -> 0 | C13: =+Personnel!H64 -> 0 | D13: =+Personnel!J64 -> 0 | E13: =+Personnel!L64 -> 0 | F13: =+Personnel!N64 -> 0 | G13: 0 | K13: 1 | M13: Contracted Services (Exempt) | N13: 6
A14: Total Salaries & Wages (Personnel Worksheet) | B14: =SUM(B8:B13) -> 0 | C14: =SUM(C8:C13) -> 0 | D14: =SUM(D8:D13) -> 0 | E14: =SUM(E8:E13) -> 0 | F14: =SUM(F8:F13) -> 0 | G14: 0 | M14: Participant Support | N14: 7
M15: Tuition & Fees | N15: 8
A16: Fringe Benefits | B16: =+Personnel!F75 -> 0 | C16: =+Personnel!H75 -> 0 | D16: =+Personnel!J75 -> 0 | E16: =+Personnel!L75 -> 0 | F16: =+Personnel!N75 -> 0 | G16: =SUM(B16:F16) -> 0 | K16: 1 | M16: Other | N16: 9
M17: Other (F&A Exempt) | N17: 10
A18: Total Personnel and Fringe | B18: =SUM(B14:B16) -> 0 | C18: =SUM(C14:C16) -> 0 | D18: =SUM(D14:D16) -> 0 | E18: =SUM(E14:E16) -> 0 | F18: =SUM(F14:F16) -> 0 | G18: =SUM(B18:F18) -> 0
A20: Computer Supplies & Software | B20: 0 | C20: 0 | D20: 0 | E20: 0 | F20: 0 | G20: =SUM(B20:F20) -> 0 | I20: =IF(I7="NOTE - Assignment of an Off-Campus Rate requires approval of the Director of Sponsored Programs. This approval should be obtained at the beginning of budget preparation - email osp@ecu.edu.","To view the OSP on- and off-campus guidance, visit:"," ") ->  | K20: 3
A21: Equipment Less than $5,000 per unit | B21: 0 | C21: 0 | D21: 0 | E21: 0 | F21: 0 | G21: 0 | K21: 3
A22: Tech/Sci Supplies | B22: 0 | C22: 0 | D22: 0 | E22: 0 | F22: 0 | G22: =SUM(B22:F22) -> 0 | K22: 3
A23: Animal Care costs and Per Diem | B23: 0 | C23: 0 | D23: 0 | E23: 0 | F23: 0 | G23: =SUM(B23:F23) -> 0 | K23: 3
A24: Other (please identify) | B24: 0 | C24: 0 | D24: 0 | E24: 0 | F24: 0 | G24: =SUM(B24:F24) -> 0 | I24: =IF(I20="To view the OSP on- and off-campus guidance, visit:","OSP Guidance"," ") ->  | K24: 3
A25: Other (please identify) | B25: 0 | C25: 0 | D25: 0 | E25: 0 | F25: 0 | G25: =SUM(B25:F25) -> 0 | K25: 3
A26: Other (please identify) | B26: 0 | C26: 0 | D26: 0 | E26: 0 | F26: 0 | G26: =SUM(B26:F26) -> 0 | K26: 3
A27: Other (please identify) | B27: 0 | C27: 0 | D27: 0 | E27: 0 | F27: 0 | G27: 0 | K27: 3
A28: Other (please identify) | B28: 0 | C28: 0 | D28: 0 | E28: 0 | F28: 0 | G28: 0 | K28: 3
A29: Total Supplies | B29: =SUM(B20:B28) -> 0 | C29: =SUM(C20:C28) -> 0 | D29: =SUM(D20:D28) -> 0 | E29: =SUM(E20:E28) -> 0 | F29: =SUM(F20:F28) -> 0 | G29: 0
A31: Travel - Domestic | B31: 0 | C31: 0 | D31: 0 | E31: 0 | F31: 0 | G31: =SUM(B31:F31) -> 0 | K31: 4
A32: Travel - Foreign | B32: 0 | C32: 0 | D32: 0 | E32: 0 | F32: 0 | G32: =SUM(B32:F32) -> 0 | K32: 4
A33: Total Travel | B33: =SUM(B31:B32) -> 0 | C33: =SUM(C31:C32) -> 0 | D33: =SUM(D31:D32) -> 0 | E33: =SUM(E31:E32) -> 0 | F33: =SUM(F31:F32) -> 0 | G33: =SUM(B33:F33) -> 0
A35: Advertising | B35: 0 | C35: 0 | D35: 0 | E35: 0 | F35: 0 | G35: =SUM(B35:F35) -> 0 | K35: 9
A36: Business Meeting Expenses | B36: 0 | C36: 0 | D36: 0 | E36: 0 | F36: 0 | G36: 0 | K36: 4
A37: Computer Services & Data Storage | B37: 0 | C37: 0 | D37: 0 | E37: 0 | F37: 0 | G37: 0 | K37: 9
A38: Conference Expenses | B38: 0 | C38: 0 | D38: 0 | E38: 0 | F38: 0 | G38: 0 | K38: 4
A39: Consultants and/or Prof. Services | B39: 0 | C39: 0 | D39: 0 | E39: 0 | F39: 0 | G39: 0 | K39: 5
A40: Educ. Services - Fees | B40: 0 | C40: 0 | D40: 0 | E40: 0 | F40: 0 | G40: 0 | K40: 5
A41: Human Subject Payments | B41: 0 | C41: 0 | D41: 0 | E41: 0 | F41: 0 | G41: 0 | K41: 7 | M41: Salary & Fringe | N41: 1
A42: Publication Services | B42: 0 | C42: 0 | D42: 0 | E42: 0 | F42: 0 | G42: 0 | K42: 9 | M42: Equipment | N42: 2
A43: Rent - Equipment | B43: 0 | C43: 0 | D43: 0 | E43: 0 | F43: 0 | G43: 0 | K43: 9 | M43: Supplies | N43: 3
A44: Repair & Maint - Equipment | B44: 0 | C44: 0 | D44: 0 | E44: 0 | F44: 0 | G44: 0 | K44: 9 | M44: Travel & Meetings | N44: 4
A45: Space Usage Fees | B45: 0 | C45: 0 | D45: 0 | E45: 0 | F45: 0 | G45: 0 | K45: 4 | M45: Contracted Services | N45: 5
A46: Telephone - Long Distance | B46: 0 | C46: 0 | D46: 0 | E46: 0 | F46: 0 | G46: 0 | K46: 9 | M46: Contracted Services (Exempt) | N46: 6
A47: Other (please identify) | B47: 0 | C47: 0 | D47: 0 | E47: 0 | F47: 0 | G47: =SUM(B47:F47) -> 0 | K47: 9 | M47: Participant Support | N47: 7
A48: Other (please identify) | B48: 0 | C48: 0 | D48: 0 | E48: 0 | F48: 0 | G48: =SUM(B48:F48) -> 0 | K48: 9 | M48: Tuition & Fees | N48: 8
A49: Other (please identify) | B49: 0 | C49: 0 | D49: 0 | E49: 0 | F49: 0 | G49: =SUM(B49:F49) -> 0 | K49: 9 | M49: Other | N49: 9
A50: Total Other | B50: =SUM(B35:B49) -> 0 | C50: 0 | D50: 0 | E50: 0 | F50: 0 | G50: 0 | M50: Other (F&A Exempt) | N50: 10
A52: Subawards
A53: First $25,000 of Subcontract Expense | B53: =+Subcontracts!D35 -> 0 | C53: =+Subcontracts!E35 -> 0 | D53: =+Subcontracts!F35 -> 0 | E53: =+Subcontracts!G35 -> 0 | F53: =+Subcontracts!H35 -> 0 | G53: =SUM(B53:F53) -> 0 | K53: 5
A54: Subcontract Expense over $25,000 | B54: =+Subcontracts!D45 -> 0 | C54: =+Subcontracts!E45 -> 0 | D54: =+Subcontracts!F45 -> 0 | E54: =+Subcontracts!G45 -> 0 | F54: =+Subcontracts!H45 -> 0 | G54: =SUM(B54:F54) -> 0 | K54: 6
A55: Total Subawards | B55: =SUM(B53:B54) -> 0 | C55: 0 | D55: 0 | E55: 0 | F55: 0 | G55: 0
A57: =IF(RateBase="TDC - Total Direct Costs"," ","Items Exempt from F&A") -> Items Exempt from F&A
A58: Participant Support (Educational Activities Only) | B58: 0 | C58: 0 | D58: 0 | E58: 0 | F58: 0 | G58: =SUM(B58:F58) -> 0 | K58: 7
A59: Equip $5,000 or More per unit | B59: 0 | C59: 0 | D59: 0 | E59: 0 | F59: 0 | G59: 0 | I59: =IF(RateSelection="Custom Rate - Enter Rate Here ----------->"," ",IF(RateSelection="No F&A - 0%"," ",IF(RateSelection="Other Activity (On-Campus) - 44.5%"," ",IF(RateSelection="Instruction (On-Campus) - 50%"," ",IF(RateSelection="Research (Off-Campus Adjacent) - 27.7%","NOTE - Assignment of an Off-Campus Rate requires approval of the Director of Sponsored Programs. This approval should be obtained at the beginning of budget preparation - email osp@ecu.edu.",IF(RateSelection="Off-Campus (Remote-All Types) - 26%","NOTE - Assignment of an Off-Campus Rate requires approval of the Director of Sponsored Programs. This approval should be obtained at the beginning of budget preparation - email osp@ecu.edu.",IF(RateSelection="Research (On-Campus) - 47.5%"," "))))))) ->  | K59: 2
A60: Tuition (Ph.D. Students Only) | B60: =InflationY1*(IF(GradStudent1="PhD",Tuition*GradEffort1Y1,0)+IF(GradStudent2="PhD",Tuition*GradEffort2Y1,0)+IF(GradStudent3="PhD",Tuition*GradEffort3Y1,0)+IF(GradStudent4="PhD",Tuition*GradEffort4Y1,0)+IF(GradStudent5="PhD",Tuition*GradEffort5Y1,0)+IF(GradStudent6="PhD",Tuition*GradEffort6Y1,0)+IF(GradStudent7="PhD",Tuition*GradEffort7Y1,0)+IF(GradStudent8="PhD",Tuition*GradEffort8Y1,0)+IF(GradStudent9="PhD",Tuition*GradEffort9Y1,0)) -> 0 | C60: =InflationY2*(IF(GradStudent1="PhD",Tuition*GradEffort1Y2,0)+IF(GradStudent2="PhD",Tuition*GradEffort2Y2,0)+IF(GradStudent3="PhD",Tuition*GradEffort3Y2,0)+IF(GradStudent4="PhD",Tuition*GradEffort4Y2,0)+IF(GradStudent5="PhD",Tuition*GradEffort5Y2,0)+IF(GradStudent6="PhD",Tuition*GradEffort6Y2,0)+IF(GradStudent7="PhD",Tuition*GradEffort7Y2,0)+IF(GradStudent8="PhD",Tuition*GradEffort8Y2,0)+IF(GradStudent9="PhD",Tuition*GradEffort9Y2,0)) -> 0 | D60: =InflationY3*(IF(GradStudent1="PhD",Tuition*GradEffort1Y3,0)+IF(GradStudent2="PhD",Tuition*GradEffort2Y3,0)+IF(GradStudent3="PhD",Tuition*GradEffort3Y3,0)+IF(GradStudent4="PhD",Tuition*GradEffort4Y3,0)+IF(GradStudent5="PhD",Tuition*GradEffort5Y3,0)+IF(GradStudent6="PhD",Tuition*GradEffort6Y3,0)+IF(GradStudent7="PhD",Tuition*GradEffort7Y3,0)+IF(GradStudent8="PhD",Tuition*GradEffort8Y3,0)+IF(GradStudent9="PhD",Tuition*GradEffort9Y3,0)) -> 0 | E60: =InflationY4*(IF(GradStudent1="PhD",Tuition*GradEffort1Y4,0)+IF(GradStudent2="PhD",Tuition*GradEffort2Y4,0)+IF(GradStudent3="PhD",Tuition*GradEffort3Y4,0)+IF(GradStudent4="PhD",Tuition*GradEffort4Y4,0)+IF(GradStudent5="PhD",Tuition*GradEffort5Y4,0)+IF(GradStudent6="PhD",Tuition*GradEffort6Y4,0)+IF(GradStudent7="PhD",Tuition*GradEffort7Y4,0)+IF(GradStudent8="PhD",Tuition*GradEffort8Y4,0)+IF(GradStudent9="PhD",Tuition*GradEffort9Y4,0)) -> 0 | F60: =InflationY5*(IF(GradStudent1="PhD",Tuition*GradEffort1Y5,0)+IF(GradStudent2="PhD",Tuition*GradEffort2Y5,0)+IF(GradStudent3="PhD",Tuition*GradEffort3Y5,0)+IF(GradStudent4="PhD",Tuition*GradEffort4Y5,0)+IF(GradStudent5="PhD",Tuition*GradEffort5Y5,0)+IF(GradStudent6="PhD",Tuition*GradEffort6Y5,0)+IF(GradStudent7="PhD",Tuition*GradEffort7Y5,0)+IF(GradStudent8="PhD",Tuition*GradEffort8Y5,0)+IF(GradStudent9="PhD",Tuition*GradEffort9Y5,0)) -> 0 | G60: 0 | K60: 8
A61: Fees (Ph.D. Students Only - Remove for Federal Grants) | B61: =InflationY1*(IF(GradStudent1="PhD",(TuFee-Tuition)*GradEffort1Y1,0)+IF(GradStudent2="PhD",(TuFee-Tuition)*GradEffort2Y1,0)+IF(GradStudent3="PhD",(TuFee-Tuition)*GradEffort3Y1,0)+IF(GradStudent4="PhD",(TuFee-Tuition)*GradEffort4Y1,0)+IF(GradStudent5="PhD",(TuFee-Tuition)*GradEffort5Y1,0)+IF(GradStudent6="PhD",(TuFee-Tuition)*GradEffort6Y1,0)+IF(GradStudent7="PhD",(TuFee-Tuition)*GradEffor7Y1,0)+IF(GradStudent8="PhD",(TuFee-Tuition)*GradEffort8Y1,0)+IF(GradStudent9="PhD",(TuFee-Tuition)*GradEffort9Y1,0)) -> 0 | C61: =InflationY2*(IF(GradStudent1="PhD",(TuFee-Tuition)*GradEffort1Y2,0)+IF(GradStudent2="PhD",(TuFee-Tuition)*GradEffort2Y2,0)+IF(GradStudent3="PhD",(TuFee-Tuition)*GradEffort3Y2,0)+IF(GradStudent4="PhD",(TuFee-Tuition)*GradEffort4Y2,0)+IF(GradStudent5="PhD",(TuFee-Tuition)*GradEffort5Y2,0)+IF(GradStudent6="PhD",(TuFee-Tuition)*GradEffort6Y2,0)+IF(GradStudent7="PhD",(TuFee-Tuition)*GradEffor7Y2,0)+IF(GradStudent8="PhD",(TuFee-Tuition)*GradEffort8Y2,0)+IF(GradStudent9="PhD",(TuFee-Tuition)*GradEffort9Y2,0)) -> 0 | D61: =InflationY3*(IF(GradStudent1="PhD",(TuFee-Tuition)*GradEffort1Y3,0)+IF(GradStudent2="PhD",(TuFee-Tuition)*GradEffort2Y3,0)+IF(GradStudent3="PhD",(TuFee-Tuition)*GradEffort3Y3,0)+IF(GradStudent4="PhD",(TuFee-Tuition)*GradEffort4Y3,0)+IF(GradStudent5="PhD",(TuFee-Tuition)*GradEffort5Y3,0)+IF(GradStudent6="PhD",(TuFee-Tuition)*GradEffort6Y3,0)+IF(GradStudent7="PhD",(TuFee-Tuition)*GradEffor7Y3,0)+IF(GradStudent8="PhD",(TuFee-Tuition)*GradEffort8Y3,0)+IF(GradStudent9="PhD",(TuFee-Tuition)*GradEffort9Y3,0)) -> 0 | E61: =InflationY4*(IF(GradStudent1="PhD",(TuFee-Tuition)*GradEffort1Y4,0)+IF(GradStudent2="PhD",(TuFee-Tuition)*GradEffort2Y4,0)+IF(GradStudent3="PhD",(TuFee-Tuition)*GradEffort3Y4,0)+IF(GradStudent4="PhD",(TuFee-Tuition)*GradEffort4Y4,0)+IF(GradStudent5="PhD",(TuFee-Tuition)*GradEffort5Y4,0)+IF(GradStudent6="PhD",(TuFee-Tuition)*GradEffort6Y4,0)+IF(GradStudent7="PhD",(TuFee-Tuition)*GradEffor7Y4,0)+IF(GradStudent8="PhD",(TuFee-Tuition)*GradEffort8Y4,0)+IF(GradStudent9="PhD",(TuFee-Tuition)*GradEffort9Y4,0)) -> 0 | F61: =InflationY5*(IF(GradStudent1="PhD",(TuFee-Tuition)*GradEffort1Y5,0)+IF(GradStudent2="PhD",(TuFee-Tuition)*GradEffort2Y5,0)+IF(GradStudent3="PhD",(TuFee-Tuition)*GradEffort3Y5,0)+IF(GradStudent4="PhD",(TuFee-Tuition)*GradEffort4Y5,0)+IF(GradStudent5="PhD",(TuFee-Tuition)*GradEffort5Y5,0)+IF(GradStudent6="PhD",(TuFee-Tuition)*GradEffort6Y5,0)+IF(GradStudent7="PhD",(TuFee-Tuition)*GradEffor7Y5,0)+IF(GradStudent8="PhD",(TuFee-Tuition)*GradEffort8Y5,0)+IF(GradStudent9="PhD",(TuFee-Tuition)*GradEffort9Y5,0)) -> 0 | G61: =SUM(B61:F61) -> 0 | K61: 8
A62: Patient Care (Not Used by ECU - Depict Effort and Supplies) | B62: 0 | C62: 0 | D62: 0 | E62: 0 | F62: 0 | G62: =SUM(B62:F62) -> 0 | K62: 6
A63: Lease Payments for Off-Campus Facilities | B63: 0 | C63: 0 | D63: 0 | E63: 0 | F63: 0 | G63: 0 | K63: 6
A64: Training Grant-Stipends | B64: 0 | C64: 0 | D64: 0 | E64: 0 | F64: 0 | G64: 0 | K64: 8
A65: Other (please identify) | B65: 0 | C65: 0 | D65: 0 | E65: 0 | F65: 0 | G65: 0 | K65: 10
A66: Other (please identify) | B66: 0 | C66: 0 | D66: 0 | E66: 0 | F66: 0 | G66: 0 | K66: 10
A67: Total | B67: =SUM(B58:B66) -> 0 | C67: 0 | D67: 0 | E67: 0 | F67: 0 | G67: 0
A69: =IF(RateBase="TDC - Total Direct Costs","Total Direct Costs - F&A Base","Total Direct Costs") -> Total Direct Costs | B69: =B18+B29+B33+B50+B55+B67 -> 0 | C69: =C18+C29+C33+C50+C55+C67 -> 0 | D69: =D18+D29+D33+D50+D55+D67 -> 0 | E69: =E18+E29+E33+E50+E55+E67 -> 0 | F69: =F18+F29+F33+F50+F55+F67 -> 0 | G69: =SUM(B69:F69) -> 0
A70: =IF(Modular="Yes","Consortium F&A (NIH Modular Only)"," ") ->  | B70: =IF(Modular="Yes",'NIH Modular'!#REF!," ") ->  | C70: =IF(Modular="Yes",'NIH Modular'!#REF!," ") ->  | D70: =IF(Modular="Yes",'NIH Modular'!#REF!," ") ->  | E70: =IF(Modular="Yes",'NIH Modular'!#REF!," ") ->  | F70: =IF(Modular="Yes",'NIH Modular'!#REF!," ") ->  | G70: =SUM(B70:F70) -> 0
A71: =IF(Modular="Yes - Modular Budget","Direct Cost Minus Consortium F&A (NIH Modular)",IF(Modular="Yes - Full Detail Budget","Direct Cost Minus Consortium F&A (NIH Full Detail Budget)"," ")) ->  | B71: =IF(Modular="No"," ",tdcyear1-sub1fa) ->  | C71: =IF(Modular="No"," ",tdcyear2-sub2fa) ->  | D71: =IF(Modular="No"," ",tdcyear3-sub3fa) ->  | E71: =IF(Modular="No"," ",tdcyear4-sub4fa) ->  | F71: =IF(Modular="No"," ",tdcyear5-sub5fa) ->  | G71: =SUM(B71:F71) -> 0
B72: =IF(Modular="Yes - Modular Budget",IF(B71>250000,"Not Modular",IF((ROUND(B71/25000,0)*25000)=B71,"✓","Not Modular"))," ") ->  | C72: =IF(Modular="Yes - Modular Budget",IF(C71>250000,"Not Modular",IF((ROUND(C71/25000,0)*25000)=C71,"✓","Not Modular"))," ") ->  | D72: =IF(Modular="Yes - Modular Budget",IF(D71>250000,"Not Modular",IF((ROUND(D71/25000,0)*25000)=D71,"✓","Not Modular"))," ") ->  | E72: =IF(Modular="Yes - Modular Budget",IF(E71>250000,"Not Modular",IF((ROUND(E71/25000,0)*25000)=E71,"✓","Not Modular"))," ") ->  | F72: =IF(Modular="Yes - Modular Budget",IF(F71>250000,"Not Modular",IF((ROUND(F71/25000,0)*25000)=F71,"✓","Not Modular"))," ") -> 
A73: =IF(RateBase="MTDC - Modified Total Direct Costs","Modified Total Direct Costs (MTDC) - F&A Base"," ") -> Modified Total Direct Costs (MTDC) - F&A Base | B73: =IF(RateBase="MTDC - Modified Total Direct Costs",B69-B67-B54,0) -> 0 | C73: =IF(RateBase="MTDC - Modified Total Direct Costs",C69-C67-C54,0) -> 0 | D73: =IF(RateBase="MTDC - Modified Total Direct Costs",D69-D67-D54,0) -> 0 | E73: =IF(RateBase="MTDC - Modified Total Direct Costs",E69-E67-E54,0) -> 0 | F73: =IF(RateBase="MTDC - Modified Total Direct Costs",F69-F67-F54,0) -> 0 | G73: =SUM(B73:F73) -> 0
A74: F&A (Indirect Costs) | B74: =IF(RateBase="MTDC - Modified Total Direct Costs",ROUND(FARateY1*MTDCYear1,0),IF(RateBase="TDC - Total Direct Costs",ROUND(FARateY1*tdcyear1,0),ROUND(OtherBaseY1*FARateY1,0))) -> 0 | C74: =IF(RateBase="MTDC - Modified Total Direct Costs",ROUND(FARateY2*mtdcyear2,0),IF(RateBase="TDC - Total Direct Costs",ROUND(FARateY2*tdcyear2,0),ROUND(OtherBaseY2*FARateY2,0))) -> 0 | D74: =IF(RateBase="MTDC - Modified Total Direct Costs",ROUND(FARateY3*mtdcyear3,0),IF(RateBase="TDC - Total Direct Costs",ROUND(FARateY3*tdcyear3,0),ROUND(OtherBaseY3*FARateY3,0))) -> 0 | E74: =IF(RateBase="MTDC - Modified Total Direct Costs",ROUND(FARateY4*mtdcyear4,0),IF(RateBase="TDC - Total Direct Costs",ROUND(FARateY4*tdcyear4,0),ROUND(OtherBaseY4*FARateY4,0))) -> 0 | F74: =IF(RateBase="MTDC - Modified Total Direct Costs",ROUND(FARateY5*mtdcyear5,0),IF(RateBase="TDC - Total Direct Costs",ROUND(FARateY5*tdcyear5,0),ROUND(OtherBaseY5*FARateY5,0))) -> 0 | G74: =SUM(B74:F74) -> 0
A76: Total Requested from Sponsor | B76: =B69+B74 -> 0 | C76: =C69+C74 -> 0 | D76: =D69+D74 -> 0 | E76: =E69+E74 -> 0 | F76: =F69+F74 -> 0 | G76: =SUM(B76:F76) -> 0 | I76: =IF(TotalMatch>0,"Cost-Share Level","") -> 
A77: =IF(TotalMatch>0,"Cost-Share Funds - See Cost-Share Summary"," ") ->  | B77: =IF(TotalMatch>0,'Cost-Share Summary'!B74," ") ->  | C77: =IF(TotalMatch>0,'Cost-Share Summary'!C74," ") ->  | D77: =IF(TotalMatch>0,'Cost-Share Summary'!D74," ") ->  | E77: =IF(TotalMatch>0,'Cost-Share Summary'!E74," ") ->  | F77: =IF(TotalMatch>0,'Cost-Share Summary'!F74," ") ->  | G77: =IF(TotalMatch>0,'Cost-Share Summary'!G74," ") ->  | I77: =IF(TotalMatch>0,"As % of Request","") ->  | J77: =IF(TotalMatch>0,TotalMatch/G76,"") -> 
A78: =IF(TotalMatch>0,"Total Project Cost"," ") ->  | B78: =IF(TotalMatch>0,B76+B77," ") ->  | I78: =IF(TotalMatch>0,"As % of Total Project","") ->  | J78: =IF(TotalMatch>0,TotalMatch/G78,"") -> 
A80: F&A Distribution Recovered F&A will be distributed* as depicted in the columns to the right. Departments, colleges, investigators, and other units divide recovered F&A in accordance with the Distribution of F&A Recovery standard operating procedure. Affiliated Centers and Research Clusters may each receive up to 10% of the recovered F&A - these distributions do not generally impact the college, department, or investigator. Adjustments to these allocations can be made on the "Allocations" tab. *F&A is distributed as grant funds are expended. The depictions here are estimates which will depend on full expenditure of any grant award. | B80: =IF(FAReturn="Full Return",AdminUnit,"Institutional Portion") -> Institutional Portion | D80: =Allocations!F16 -> 0.7 | E80: =Allocations!G16 -> 0 | F80: Credit Allocation The allocations below will determine how proposal, award, and expenditure activity will be reported. These amounts are driven by the reporting allocations on the "Allocations" tab. By default, they match the F&A split among the investigators, but alternate allocations can be made if such are preferred. These allocations drive reporting ONLY - no actual funds will move as a result of these allocations.
B81: =IF(D81=0," ",Allocations!B19) ->  | D81: =Allocations!F19/100 -> 0 | E81: =Allocations!G19 -> 0
B82: =IF(D82=0," ",Allocations!B20) ->  | D82: =Allocations!F20/100 -> 0 | E82: =Allocations!G20 -> 0
B83: =IF(D83=0," ",Allocations!B24) ->  | D83: =Allocations!F24/100 -> 0 | E83: =Allocations!G24 -> 0
B84: =Allocations!B59 ->  | D84: =Allocations!F59/100 -> 0 | E84: =Allocations!G59 -> 0
B85: =Allocations!B60 ->  | D85: =Allocations!F60/100 -> 0 | E85: =Allocations!G60 -> 0
B86: =Allocations!B61 ->  | D86: =Allocations!F61/100 -> 0 | E86: =Allocations!G61 -> 0
B87: =Allocations!B62 ->  | D87: =Allocations!F62/100 -> 0 | E87: =Allocations!G62 -> 0
B88: =Allocations!B50 ->  | D88: =Allocations!F50/100 -> 0 | E88: =Allocations!G50 -> 0
B89: =Allocations!B51 ->  | D89: =Allocations!F51/100 -> 0 | E89: =Allocations!G51 -> 0
B90: =Allocations!B52 ->  | D90: =Allocations!F52/100 -> 0 | E90: =Allocations!G52 -> 0
B91: =Allocations!B53 ->  | D91: =Allocations!F53/100 -> 0 | E91: =Allocations!G53 -> 0
B92: =Allocations!B54 ->  | D92: =Allocations!F54/100 -> 0 | E92: =Allocations!G54 -> 0
B93: =Allocations!B55 ->  | D93: =Allocations!F55/100 -> 0 | E93: =Allocations!G55 -> 0
B94: =IF(Allocations!I28="Yes",Allocations!B28," ") ->  | D94: =Allocations!F28/100 -> 0 | E94: =Allocations!G28 -> 0 | F94: =IF('Pivot Tables'!D37="Yes",'Pivot Tables'!A37," ") ->  | G94: =IF('Pivot Tables'!D37="Yes",'Pivot Tables'!B37/100,0) -> 0 | H94: =G94*TotalSponsorRequest -> 0
B95: =IF(Allocations!I29="Yes",Allocations!B29," ") ->  | D95: =Allocations!F29/100 -> 0 | E95: =Allocations!G29 -> 0 | F95: =IF('Pivot Tables'!D38="Yes",'Pivot Tables'!A38," ") ->  | G95: =IF('Pivot Tables'!D38="Yes",'Pivot Tables'!B38/100,0) -> 0 | H95: =G95*TotalSponsorRequest -> 0
B96: =IF(Allocations!I30="Yes",Allocations!B30," ") ->  | D96: =Allocations!F30/100 -> 0 | E96: =Allocations!G30 -> 0 | F96: =IF('Pivot Tables'!D39="Yes",'Pivot Tables'!A39," ") ->  | G96: =IF('Pivot Tables'!D39="Yes",'Pivot Tables'!B39/100,0) -> 0 | H96: 0
B97: =IF(Allocations!I31="Yes",Allocations!B31," ") ->  | D97: =Allocations!F31/100 -> 0 | E97: =Allocations!G31 -> 0 | F97: =IF('Pivot Tables'!D40="Yes",'Pivot Tables'!A40," ") ->  | G97: =IF('Pivot Tables'!D40="Yes",'Pivot Tables'!B40/100,0) -> 0 | H97: =G97*TotalSponsorRequest -> 0
B98: =IF(Allocations!I32="Yes",Allocations!B32," ") ->  | D98: =Allocations!F32/100 -> 0 | E98: =Allocations!G32 -> 0 | F98: =IF('Pivot Tables'!D41="Yes",'Pivot Tables'!A41," ") ->  | G98: =IF('Pivot Tables'!D41="Yes",'Pivot Tables'!B41/100,0) -> 0 | H98: 0
B99: =IF(Allocations!I33="Yes",Allocations!B33," ") ->  | D99: =Allocations!F33/100 -> 0 | E99: =Allocations!G33 -> 0 | F99: =IF('Pivot Tables'!D42="Yes",'Pivot Tables'!A42," ") ->  | G99: =IF('Pivot Tables'!D42="Yes",'Pivot Tables'!B42/100,0) -> 0 | H99: 0
B100: =IF(Allocations!I34="Yes",Allocations!B34," ") ->  | D100: =Allocations!F34/100 -> 0 | E100: =Allocations!G34 -> 0 | F100: =IF('Pivot Tables'!D43="Yes",'Pivot Tables'!A43," ") -> 
B101: =IF(Allocations!I35="Yes",Allocations!B35," ") ->  | D101: =Allocations!F35/100 -> 0 | E101: =Allocations!G35 -> 0 | F101: =IF('Pivot Tables'!D44="Yes",'Pivot Tables'!A44," ") -> 
B102: =IF(Allocations!I36="Yes",Allocations!B36," ") ->  | D102: =Allocations!F36/100 -> 0 | E102: =Allocations!G36 -> 0 | F102: =IF('Pivot Tables'!D45="Yes",'Pivot Tables'!A45," ") -> 
B103: =IF(Allocations!I37="Yes",Allocations!B37," ") ->  | D103: =Allocations!F37/100 -> 0 | E103: =Allocations!G37 -> 0 | F103: =IF('Pivot Tables'!D46="Yes",'Pivot Tables'!A46," ") -> 

Sheet Subcontracts
A1: East Carolina University | F1: Subcontractor Budget Summary
A2: =piname -> PI Name | F2: Creation Date: | G2: =creationdate -> Date | H2: RAMSeS ID: | I2: =ramsesid -> Enter # Here
A3: =proposaltitle -> Enter Title | F3: Project Period | G3: =projstartdate -> Date | H3: to | I3: =projenddate -> Date
A4: =sponsor -> Enter Sponsor | F4: Projected Inflation | H4: =Inflation -> 0.03
B6: Subcontract/Consortium Expense
B8: List Name of Subcontractor | D8: Grant Yr1 | E8: Grant Yr2 | F8: Grant Yr3 | G8: Grant Yr4 | H8: Grant Yr5 | I8: Total
A9: 1 | B9: Subcontractor #1 | C9: Directs | D9: 0 | E9: 0 | F9: 0 | G9: 0 | H9: 0 | I9: =SUM(D9:H9) -> 0
A10: 2 | C10: F&A | D10: 0 | E10: 0 | F10: 0 | G10: 0 | H10: 0 | I10: =SUM(D10:H10) -> 0
A11: 3 | B11: Subcontractor #2 | C11: Directs | D11: 0 | E11: 0 | F11: 0 | G11: 0 | H11: 0 | I11: =SUM(D11:H11) -> 0
A12: 4 | C12: F&A | D12: 0 | E12: 0 | F12: 0 | G12: 0 | H12: 0 | I12: =SUM(D12:H12) -> 0
A13: 5 | B13: Subcontractor #3 | C13: Directs | D13: 0 | E13: 0 | F13: 0 | G13: 0 | H13: 0 | I13: =SUM(D13:H13) -> 0
A14: 6 | C14: F&A | D14: 0 | E14: 0 | F14: 0 | G14: 0 | H14: 0 | I14: 0
A15: 7 | B15: Subcontractor #4 | C15: Directs | D15: 0 | E15: 0 | F15: 0 | G15: 0 | H15: 0 | I15: 0
A16: 8 | C16: F&A | D16: 0 | E16: 0 | F16: 0 | G16: 0 | H16: 0 | I16: 0
A17: 9 | B17: Subcontractor #5 | C17: Directs | D17: 0 | E17: 0 | F17: 0 | G17: 0 | H17: 0 | I17: 0
A18: 10 | C18: F&A | D18: 0 | E18: 0 | F18: 0 | G18: 0 | H18: 0 | I18: 0
B19: Total | D19: =SUM(D9:D18) -> 0 | E19: 0 | F19: 0 | G19: 0 | H19: 0 | I19: 0
B21: All Subcontract Direct | D21: =SUM(D9+D11+D13+D15+D17) -> 0 | E21: 0 | F21: 0 | G21: 0 | H21: 0 | I21: 0
B22: All Subcontractor F&A | D22: 0 | E22: 0 | F22: 0 | G22: 0 | H22: 0 | I22: 0
B25: BELOW THIS LINE INTERNAL USE ONLY
B27: First $25,000 of Subcontract Expense
B29: List Name of Subcontractor | D29: Grant Yr1 | E29: Grant Yr2 | F29: Grant Yr3 | G29: Grant Yr4 | H29: Grant Yr5 | I29: Total
A30: 1 | B30: =B9 -> Subcontractor #1 | D30: =IF(SUM(D9:D10)<25001,SUM(D9:D10),25000) -> 0 | E30: =IF(SUM($D30:D30)>=25000,0,IF(SUM(E9:E10)<=25000-SUM($D30:D30),SUM(E9:E10),25000-SUM($D30:D30))) -> 0 | F30: =IF(SUM($D30:E30)>=25000,0,IF(SUM(F9:F10)<=25000-SUM($D30:E30),SUM(F9:F10),25000-SUM($D30:E30))) -> 0 | G30: =IF(SUM($D30:F30)>=25000,0,IF(SUM(G9:G10)<=25000-SUM($D30:F30),SUM(G9:G10),25000-SUM($D30:F30))) -> 0 | H30: =IF(SUM($D30:G30)>=25000,0,IF(SUM(H9:H10)<=25000-SUM($D30:G30),SUM(H9:H10),25000-SUM($D30:G30))) -> 0 | I30: =SUM(D30:H30) -> 0
A31: 3 | B31: =B11 -> Subcontractor #2 | D31: =IF(SUM(D11:D12)<25001,SUM(D11:D12),25000) -> 0 | E31: =IF(SUM($D31:D31)>=25000,0,IF(SUM(E11:E12)<=25000-SUM($D31:D31),SUM(E11:E12),25000-SUM($D31:D31))) -> 0 | F31: =IF(SUM($D31:E31)>=25000,0,IF(SUM(F11:F12)<=25000-SUM($D31:E31),SUM(F11:F12),25000-SUM($D31:E31))) -> 0 | G31: =IF(SUM($D31:F31)>=25000,0,IF(SUM(G11:G12)<=25000-SUM($D31:F31),SUM(G11:G12),25000-SUM($D31:F31))) -> 0 | H31: =IF(SUM($D31:G31)>=25000,0,IF(SUM(H11:H12)<=25000-SUM($D31:G31),SUM(H11:H12),25000-SUM($D31:G31))) -> 0 | I31: =SUM(D31:H31) -> 0
A32: 5 | B32: =B13 -> Subcontractor #3 | D32: =IF(SUM(D13:D14)<25001,SUM(D13:D14),25000) -> 0 | E32: =IF(SUM($D32:D32)>=25000,0,IF(SUM(E13:E14)<=25000-SUM($D32:D32),SUM(E13:E14),25000-SUM($D32:D32))) -> 0 | F32: =IF(SUM($D32:E32)>=25000,0,IF(SUM(F13:F14)<=25000-SUM($D32:E32),SUM(F13:F14),25000-SUM($D32:E32))) -> 0 | G32: =IF(SUM($D32:F32)>=25000,0,IF(SUM(G13:G14)<=25000-SUM($D32:F32),SUM(G13:G14),25000-SUM($D32:F32))) -> 0 | H32: =IF(SUM($D32:G32)>=25000,0,IF(SUM(H13:H14)<=25000-SUM($D32:G32),SUM(H13:H14),25000-SUM($D32:G32))) -> 0 | I32: =SUM(D32:H32) -> 0
A33: 7 | B33: =B15 -> Subcontractor #4 | D33: =IF(SUM(D15:D16)<25001,SUM(D15:D16),25000) -> 0 | E33: =IF(SUM($D33:D33)>=25000,0,IF(SUM(E15:E16)<=25000-SUM($D33:D33),SUM(E15:E16),25000-SUM($D33:D33))) -> 0 | F33: =IF(SUM($D33:E33)>=25000,0,IF(SUM(F15:F16)<=25000-SUM($D33:E33),SUM(F15:F16),25000-SUM($D33:E33))) -> 0 | G33: =IF(SUM($D33:F33)>=25000,0,IF(SUM(G15:G16)<=25000-SUM($D33:F33),SUM(G15:G16),25000-SUM($D33:F33))) -> 0 | H33: =IF(SUM($D33:G33)>=25000,0,IF(SUM(H15:H16)<=25000-SUM($D33:G33),SUM(H15:H16),25000-SUM($D33:G33))) -> 0 | I33: =SUM(D33:H33) -> 0
A34: 9 | B34: =B17 -> Subcontractor #5 | D34: =IF(SUM(D17:D18)<25001,SUM(D17:D18),25000) -> 0 | E34: =IF(SUM($D34:D34)>=25000,0,IF(SUM(E17:E18)<=25000-SUM($D34:D34),SUM(E17:E18),25000-SUM($D34:D34))) -> 0 | F34: =IF(SUM($D34:E34)>=25000,0,IF(SUM(F17:F18)<=25000-SUM($D34:E34),SUM(F17:F18),25000-SUM($D34:E34))) -> 0 | G34: =IF(SUM($D34:F34)>=25000,0,IF(SUM(G17:G18)<=25000-SUM($D34:F34),SUM(G17:G18),25000-SUM($D34:F34))) -> 0 | H34: =IF(SUM($D34:G34)>=25000,0,IF(SUM(H17:H18)<=25000-SUM($D34:G34),SUM(H17:H18),25000-SUM($D34:G34))) -> 0 | I34: =SUM(D34:H34) -> 0
B35: Total First Expense <$25K | D35: =SUM(D30:D34) -> 0 | E35: 0 | F35: 0 | G35: 0 | H35: 0 | I35: 0
B37: Subcontract Expense over $25,000
B39: List Name of Subcontractor | D39: Grant Yr1 | E39: Grant Yr2 | F39: Grant Yr3 | G39: Grant Yr4 | H39: Grant Yr5 | I39: Total
A40: 1 | B40: =B9 -> Subcontractor #1 | D40: =D9+D10-D30 -> 0 | E40: =E9+E10-E30 -> 0 | F40: =F9+F10-F30 -> 0 | G40: =G9+G10-G30 -> 0 | H40: =H9+H10-H30 -> 0 | I40: =SUM(D40:H40) -> 0
A41: 3 | B41: =B11 -> Subcontractor #2 | D41: =D11+D12-D31 -> 0 | E41: =E11+E12-E31 -> 0 | F41: =F11+F12-F31 -> 0 | G41: =G11+G12-G31 -> 0 | H41: =H11+H12-H31 -> 0 | I41: =SUM(D41:H41) -> 0
A42: 5 | B42: =B13 -> Subcontractor #3 | D42: =D13+D14-D32 -> 0 | E42: =E13+E14-E32 -> 0 | F42: =F13+F14-F32 -> 0 | G42: =G13+G14-G32 -> 0 | H42: =H13+H14-H32 -> 0 | I42: =SUM(D42:H42) -> 0
A43: 7 | B43: =B15 -> Subcontractor #4 | D43: =D15+D16-D33 -> 0 | E43: =E15+E16-E33 -> 0 | F43: =F15+F16-F33 -> 0 | G43: =G15+G16-G33 -> 0 | H43: =H15+H16-H33 -> 0 | I43: =SUM(D43:H43) -> 0
A44: 9 | B44: =B17 -> Subcontractor #5 | D44: =D17+D18-D34 -> 0 | E44: =E17+E18-E34 -> 0 | F44: =F17+F18-F34 -> 0 | G44: =G17+G18-G34 -> 0 | H44: =H17+H18-H34 -> 0 | I44: =SUM(D44:H44) -> 0
B45: Total Expense Over >$25K | D45: =SUM(D40:D44) -> 0 | E45: 0 | F45: 0 | G45: 0 | H45: 0 | I45: 0

Sheet Cost-Share Personnel
A1: East Carolina University | G1: Cost-Share Personnel Budget
A2: =proposaltitle -> Enter Title | H2: Date: | I2: =creationdate -> Date | J2: RAMSeS ID: | K2: =ramsesid -> Enter # Here
A3: =piname -> PI Name | G3: Project Period: | I3: =projstartdate -> Date | J3: to | K3: =projenddate -> Date
A4: =sponsor -> Enter Sponsor | G4: Projected Inflation | I4: =Inflation -> 0.03
A6: DIRECT COSTS | B6: Contract Type | C6: # Months | D6: Base Salary | E6: % Effort Funded | F6: Grant Yr1 | G6: % Effort Funded | H6: Grant Yr2 | I6: % Effort Funded | J6: Grant Yr3 | K6: % Effort Funded | L6: Grant Yr4 | M6: % Effort Funded | N6: Grant Yr5 | O6: Total | P6: Notes
A7: EHRA Employees & Faculty
A8: Name | B8: Select | C8: 0 | D8: 0 | E8: 0 | F8: =IF(B8="Select","9 or 12?",(D8*InflationY1/(IF(B8="12-Month",12,9))*C8)*E8) -> 9 or 12? | G8: 0 | H8: =IF(B8="Select","9 or 12?",(D8*InflationY2/(IF(B8="12-Month",12,9))*C8)*G8) -> 9 or 12? | I8: 0 | J8: =IF(B8="Select","9 or 12?",(D8*InflationY3/(IF(B8="12-Month",12,9))*C8)*I8) -> 9 or 12? | K8: 0 | L8: =IF(B8="Select","9 or 12?",(D8*InflationY4/(IF(B8="12-Month",12,9))*C8)*K8) -> 9 or 12? | M8: 0 | N8: =IF(B8="Select","9 or 12?",(D8*InflationY5/(IF(B8="12-Month",12,9))*C8)*M8) -> 9 or 12? | O8: =F8+H8+J8+L8+N8 -> 0
A9: Name | B9: Select | C9: 0 | D9: 0 | E9: 0 | F9: 9 or 12? | G9: 0 | H9: 9 or 12? | I9: 0 | J9: 9 or 12? | K9: 0 | L9: 9 or 12? | M9: 0 | N9: 9 or 12? | O9: =F9+H9+J9+L9+N9 -> 0
A10: Name | B10: Select | C10: 0 | D10: 0 | E10: 0 | F10: 9 or 12? | G10: 0 | H10: 9 or 12? | I10: 0 | J10: 9 or 12? | K10: 0 | L10: 9 or 12? | M10: 0 | N10: 9 or 12? | O10: 0
A11: Name | B11: Select | C11: 0 | D11: 0 | E11: 0 | F11: 9 or 12? | G11: 0 | H11: 9 or 12? | I11: 0 | J11: 9 or 12? | K11: 0 | L11: 9 or 12? | M11: 0 | N11: 9 or 12? | O11: 0
A12: Name | B12: Select | C12: 0 | D12: 0 | E12: 0 | F12: 9 or 12? | G12: 0 | H12: 9 or 12? | I12: 0 | J12: 9 or 12? | K12: 0 | L12: 9 or 12? | M12: 0 | N12: 9 or 12? | O12: 0
A13: Name | B13: Select | C13: 0 | D13: 0 | E13: 0 | F13: 9 or 12? | G13: 0 | H13: 9 or 12? | I13: 0 | J13: 9 or 12? | K13: 0 | L13: 9 or 12? | M13: 0 | N13: 9 or 12? | O13: 0
A14: Name | B14: Select | C14: 0 | D14: 0 | E14: 0 | F14: 9 or 12? | G14: 0 | H14: 9 or 12? | I14: 0 | J14: 9 or 12? | K14: 0 | L14: 9 or 12? | M14: 0 | N14: 9 or 12? | O14: 0
A15: Name | B15: Select | C15: 0 | D15: 0 | E15: 0 | F15: 9 or 12? | G15: 0 | H15: 9 or 12? | I15: 0 | J15: 9 or 12? | K15: 0 | L15: 9 or 12? | M15: 0 | N15: 9 or 12? | O15: 0
A16: Name | B16: Select | C16: 0 | D16: 0 | E16: 0 | F16: 9 or 12? | G16: 0 | H16: 9 or 12? | I16: 0 | J16: 9 or 12? | K16: 0 | L16: 9 or 12? | M16: 0 | N16: 9 or 12? | O16: 0
A17: Name | B17: Select | C17: 0 | D17: 0 | E17: 0 | F17: 9 or 12? | G17: 0 | H17: 9 or 12? | I17: 0 | J17: 9 or 12? | K17: 0 | L17: 9 or 12? | M17: 0 | N17: 9 or 12? | O17: 0
A18: Sub-Total | F18: =SUM(F8:F17) -> 0 | H18: =SUM(H8:H17) -> 0 | J18: =SUM(J8:J17) -> 0 | L18: =SUM(L8:L17) -> 0 | N18: =SUM(N8:N17) -> 0 | O18: =SUM(O8:O17) -> 0
A20: EHRA Summer Compensation | C20: Months | D20: Base Salary | E20: % | F20: Grant Yr1 | G20: % | H20: Grant Yr2 | I20: % | J20: Grant Yr3 | K20: % | L20: Grant Yr4 | M20: % | N20: Grant Yr5 | O20: Total
A21: Name | B21: Summer | C21: 0 | D21: 0 | E21: 0 | F21: =IF(B21="Select","9 or 12?",(D21*InflationY1/(IF(B21="12-Month",12,9))*C21)*E21) -> 0 | G21: 0 | H21: =IF(B21="Select","9 or 12?",(D21*InflationY2/(IF(B21="12-Month",12,9))*C21)*G21) -> 0 | I21: 0 | J21: =IF(B21="Select","9 or 12?",(D21*InflationY3/(IF(B21="12-Month",12,9))*C21)*I21) -> 0 | K21: 0 | L21: =IF(B21="Select","9 or 12?",(D21*InflationY4/(IF(B21="12-Month",12,9))*C21)*K21) -> 0 | M21: 0 | N21: =IF(B21="Select","9 or 12?",(D21*InflationY5/(IF(B21="12-Month",12,9))*C21)*M21) -> 0 | O21: =F21+H21+J21+L21+N21 -> 0
A22: Name | B22: Summer | C22: 0 | D22: 0 | E22: 0 | F22: 0 | G22: 0 | H22: 0 | I22: 0 | J22: 0 | K22: 0 | L22: 0 | M22: 0 | N22: 0 | O22: 0
A23: Name | B23: Summer | C23: 0 | D23: 0 | E23: 0 | F23: 0 | G23: 0 | H23: 0 | I23: 0 | J23: 0 | K23: 0 | L23: 0 | M23: 0 | N23: 0 | O23: 0
A24: Name | B24: Summer | C24: 0 | D24: 0 | E24: 0 | F24: 0 | G24: 0 | H24: 0 | I24: 0 | J24: 0 | K24: 0 | L24: 0 | M24: 0 | N24: 0 | O24: 0
A25: Name | B25: Summer | C25: 0 | D25: 0 | E25: 0 | F25: 0 | G25: 0 | H25: 0 | I25: 0 | J25: 0 | K25: 0 | L25: 0 | M25: 0 | N25: 0 | O25: 0
A26: Name | B26: Summer | C26: 0 | D26: 0 | E26: 0 | F26: 0 | G26: 0 | H26: 0 | I26: 0 | J26: 0 | K26: 0 | L26: 0 | M26: 0 | N26: 0 | O26: 0
A27: Name | B27: Summer | C27: 0 | D27: 0 | E27: 0 | F27: 0 | G27: 0 | H27: 0 | I27: 0 | J27: 0 | K27: 0 | L27: 0 | M27: 0 | N27: 0 | O27: 0
A28: Name | B28: Summer | C28: 0 | D28: 0 | E28: 0 | F28: 0 | G28: 0 | H28: 0 | I28: 0 | J28: 0 | K28: 0 | L28: 0 | M28: 0 | N28: 0 | O28: 0
A29: Name | B29: Summer | C29: 0 | D29: 0 | E29: 0 | F29: 0 | G29: 0 | H29: 0 | I29: 0 | J29: 0 | K29: 0 | L29: 0 | M29: 0 | N29: 0 | O29: 0
A30: Name | B30: Summer | C30: 0 | D30: 0 | E30: 0 | F30: 0 | G30: 0 | H30: 0 | I30: 0 | J30: 0 | K30: 0 | L30: 0 | M30: 0 | N30: 0 | O30: 0
A31: Sub-Total | F31: =SUM(F21:F30) -> 0 | H31: =SUM(H21:H30) -> 0 | J31: =SUM(J21:J30) -> 0 | L31: =SUM(L21:L30) -> 0 | N31: =SUM(N21:N30) -> 0 | O31: =SUM(O21:O30) -> 0
A33: SHRA/CSS Staff | C33: Months | D33: Base Salary | E33: % | F33: Grant Yr1 | G33: % | H33: Grant Yr2 | I33: % | J33: Grant Yr3 | K33: % | L33: Grant Yr4 | M33: % | N33: Grant Yr5 | O33: Total
A34: Name | B34: 12-Month | C34: 0 | D34: 0 | E34: 0 | F34: =($D34/12*$C34)*E34*InflationY1 -> 0 | G34: 0 | H34: =($D34/12*$C34)*G34*InflationY2 -> 0 | I34: 0 | J34: =($D34/12*$C34)*I34*InflationY3 -> 0 | K34: 0 | L34: =($D34/12*$C34)*K34*InflationY4 -> 0 | M34: 0 | N34: =($D34/12*$C34)*M34*InflationY5 -> 0 | O34: =F34+H34+J34+L34+N34 -> 0
A35: Name | B35: 12-Month | C35: 0 | D35: 0 | E35: 0 | F35: =($D35/12*$C35)*E35*InflationY1 -> 0 | G35: 0 | H35: =($D35/12*$C35)*G35*InflationY2 -> 0 | I35: 0 | J35: =($D35/12*$C35)*I35*InflationY3 -> 0 | K35: 0 | L35: =($D35/12*$C35)*K35*InflationY4 -> 0 | M35: 0 | N35: =($D35/12*$C35)*M35*InflationY5 -> 0 | O35: =F35+H35+J35+L35+N35 -> 0
A36: Name | B36: 12-Month | C36: 0 | D36: 0 | E36: 0 | F36: =($D36/12*$C36)*E36*InflationY1 -> 0 | G36: 0 | H36: =($D36/12*$C36)*G36*InflationY2 -> 0 | I36: 0 | J36: =($D36/12*$C36)*I36*InflationY3 -> 0 | K36: 0 | L36: =($D36/12*$C36)*K36*InflationY4 -> 0 | M36: 0 | N36: =($D36/12*$C36)*M36*InflationY5 -> 0 | O36: =F36+H36+J36+L36+N36 -> 0
A37: Name | B37: 12-Month | C37: 0 | D37: 0 | E37: 0 | F37: =($D37/12*$C37)*E37*InflationY1 -> 0 | G37: 0 | H37: =($D37/12*$C37)*G37*InflationY2 -> 0 | I37: 0 | J37: =($D37/12*$C37)*I37*InflationY3 -> 0 | K37: 0 | L37: =($D37/12*$C37)*K37*InflationY4 -> 0 | M37: 0 | N37: =($D37/12*$C37)*M37*InflationY5 -> 0 | O37: =F37+H37+J37+L37+N37 -> 0
A38: Sub-Total | F38: =SUM(F34:F37) -> 0 | H38: =SUM(H34:H37) -> 0 | J38: =SUM(J34:J37) -> 0 | L38: =SUM(L34:L37) -> 0 | N38: =SUM(N34:N37) -> 0 | O38: =SUM(O34:O37) -> 0
A40: Hourly/Temp/Undergrad. Employee | D40: Per Hour | E40: Hours | F40: Grant Yr1 | G40: Hours | H40: Grant Yr2 | I40: Hours | J40: Grant Yr3 | K40: Hours | L40: Grant Yr4 | M40: Hours | N40: Grant Yr5 | O40: Total
A41: Name | B41: Hourly | D41: 0 | E41: 0 | F41: =$E41*$D41*InflationY1 -> 0 | G41: 0 | H41: =$G41*$D41*InflationY2 -> 0 | I41: 0 | J41: =$I41*$D41*InflationY3 -> 0 | K41: 0 | L41: =$K41*$D41*InflationY4 -> 0 | M41: 0 | N41: =$M41*$D41*InflationY5 -> 0 | O41: =F41+H41+J41+L41+N41 -> 0
A42: Name | B42: Hourly | D42: 0 | E42: 0 | F42: =$E42*$D42*InflationY1 -> 0 | G42: 0 | H42: =$G42*$D42*InflationY2 -> 0 | I42: 0 | J42: =$I42*$D42*InflationY3 -> 0 | K42: 0 | L42: =$K42*$D42*InflationY4 -> 0 | M42: 0 | N42: =$M42*$D42*InflationY5 -> 0 | O42: =F42+H42+J42+L42+N42 -> 0
A43: Name | B43: Hourly | D43: 0 | E43: 0 | F43: =$E43*$D43*InflationY1 -> 0 | G43: 0 | H43: =$G43*$D43*InflationY2 -> 0 | I43: 0 | J43: =$I43*$D43*InflationY3 -> 0 | K43: 0 | L43: =$K43*$D43*InflationY4 -> 0 | M43: 0 | N43: =$M43*$D43*InflationY5 -> 0 | O43: =F43+H43+J43+L43+N43 -> 0
A44: Name | B44: Hourly | D44: 0 | E44: 0 | F44: =$E44*$D44*InflationY1 -> 0 | G44: 0 | H44: =$G44*$D44*InflationY2 -> 0 | I44: 0 | J44: =$I44*$D44*InflationY3 -> 0 | K44: 0 | L44: =$K44*$D44*InflationY4 -> 0 | M44: 0 | N44: =$M44*$D44*InflationY5 -> 0 | O44: =F44+H44+J44+L44+N44 -> 0
A45: Sub-Total | F45: =SUM(F41:F44) -> 0 | H45: =SUM(H41:H44) -> 0 | J45: =SUM(J41:J44) -> 0 | L45: =SUM(L41:L44) -> 0 | N45: =SUM(N41:N44) -> 0 | O45: =SUM(O41:O44) -> 0
A47: Postdoctoral Associates | C47: Months | D47: Base Salary | E47: % | F47: Grant Yr1 | G47: % | H47: Grant Yr2 | I47: % | J47: Grant Yr3 | K47: % | L47: Grant Yr4 | M47: % | N47: Grant Yr5 | O47: Total
A48: Name | B48: 12-Month | C48: 0 | D48: 0 | E48: 0 | F48: =IF(B48="Select","9 or 12?",(D48*InflationY1/(IF(B48="12-Month",12,9))*C48)*E48) -> 0 | G48: 0 | H48: =IF(B48="Select","9 or 12?",(D48*InflationY2/(IF(B48="12-Month",12,9))*C48)*G48) -> 0 | I48: 0 | J48: =IF(B48="Select","9 or 12?",(D48*InflationY3/(IF(B48="12-Month",12,9))*C48)*I48) -> 0 | K48: 0 | L48: =IF(B48="Select","9 or 12?",(D48*InflationY4/(IF(B48="12-Month",12,9))*C48)*K48) -> 0 | M48: 0 | N48: =IF(B48="Select","9 or 12?",(D48*InflationY5/(IF(B48="12-Month",12,9))*C48)*M48) -> 0 | O48: =F48+H48+J48+L48+N48 -> 0
A49: Name | B49: 12-Month | C49: 0 | D49: 0 | E49: 0 | F49: =IF(B49="Select","9 or 12?",(D49*InflationY1/(IF(B49="12-Month",12,9))*C49)*E49) -> 0 | G49: 0 | H49: =IF(B49="Select","9 or 12?",(D49*InflationY2/(IF(B49="12-Month",12,9))*C49)*G49) -> 0 | I49: 0 | J49: =IF(B49="Select","9 or 12?",(D49*InflationY3/(IF(B49="12-Month",12,9))*C49)*I49) -> 0 | K49: 0 | L49: =IF(B49="Select","9 or 12?",(D49*InflationY4/(IF(B49="12-Month",12,9))*C49)*K49) -> 0 | M49: 0 | N49: =IF(B49="Select","9 or 12?",(D49*InflationY5/(IF(B49="12-Month",12,9))*C49)*M49) -> 0 | O49: =F49+H49+J49+L49+N49 -> 0
A50: Name | B50: 12-Month | C50: 0 | D50: 0 | E50: 0 | F50: =IF(B50="Select","9 or 12?",(D50*InflationY1/(IF(B50="12-Month",12,9))*C50)*E50) -> 0 | G50: 0 | H50: =IF(B50="Select","9 or 12?",(D50*InflationY2/(IF(B50="12-Month",12,9))*C50)*G50) -> 0 | I50: 0 | J50: =IF(B50="Select","9 or 12?",(D50*InflationY3/(IF(B50="12-Month",12,9))*C50)*I50) -> 0 | K50: 0 | L50: =IF(B50="Select","9 or 12?",(D50*InflationY4/(IF(B50="12-Month",12,9))*C50)*K50) -> 0 | M50: 0 | N50: =IF(B50="Select","9 or 12?",(D50*InflationY5/(IF(B50="12-Month",12,9))*C50)*M50) -> 0 | O50: =F50+H50+J50+L50+N50 -> 0
A51: Name | B51: 12-Month | C51: 0 | D51: 0 | E51: 0 | F51: =IF(B51="Select","9 or 12?",(D51*InflationY1/(IF(B51="12-Month",12,9))*C51)*E51) -> 0 | G51: 0 | H51: =IF(B51="Select","9 or 12?",(D51*InflationY2/(IF(B51="12-Month",12,9))*C51)*G51) -> 0 | I51: 0 | J51: =IF(B51="Select","9 or 12?",(D51*InflationY3/(IF(B51="12-Month",12,9))*C51)*I51) -> 0 | K51: 0 | L51: =IF(B51="Select","9 or 12?",(D51*InflationY4/(IF(B51="12-Month",12,9))*C51)*K51) -> 0 | M51: 0 | N51: =IF(B51="Select","9 or 12?",(D51*InflationY5/(IF(B51="12-Month",12,9))*C51)*M51) -> 0 | O51: =F51+H51+J51+L51+N51 -> 0
A52: Sub-Total | F52: =SUM(F48:F51) -> 0 | H52: =SUM(H48:H51) -> 0 | J52: =SUM(J48:J51) -> 0 | L52: =SUM(L48:L51) -> 0 | N52: =SUM(N48:N51) -> 0 | O52: =SUM(O48:O51) -> 0
A54: Graduate Students | C54: Months | D54: Base Salary | E54: % | F54: Grant Yr1 | G54: % | H54: Grant Yr2 | I54: % | J54: Grant Yr3 | K54: % | L54: Grant Yr4 | M54: % | N54: Grant Yr5 | O54: Total
A55: Name | B55: Select | C55: 0 | D55: 0 | E55: 0 | F55: =IF(D55=0,0,IF(GradStudent1="Select","MA or PHD?",($D55/12*$C55)*E55*InflationY1)) -> 0 | G55: 0 | H55: =($D55/12*$C55)*G55*InflationY2 -> 0 | I55: 0 | J55: =($D55/12*$C55)*I55*InflationY3 -> 0 | K55: 0 | L55: =($D55/12*$C55)*K55*InflationY4 -> 0 | M55: 0 | N55: =($D55/12*$C55)*M55*InflationY5 -> 0 | O55: =F55+H55+J55+L55+N55 -> 0
A56: Name | B56: Select | C56: 0 | D56: 0 | E56: 0 | F56: =IF(D56=0,0,IF(GradStudent2="Select","MA or PHD?",($D56/12*$C56)*E56*InflationY1)) -> 0 | G56: 0 | H56: =($D56/12*$C56)*G56*InflationY2 -> 0 | I56: 0 | J56: =($D56/12*$C56)*I56*InflationY3 -> 0 | K56: 0 | L56: =($D56/12*$C56)*K56*InflationY4 -> 0 | M56: 0 | N56: =($D56/12*$C56)*M56*InflationY5 -> 0 | O56: =F56+H56+J56+L56+N56 -> 0
A57: Name | B57: Select | C57: 0 | D57: 0 | E57: 0 | F57: =IF(D57=0,0,IF(GradStudent3="Select","MA or PHD?",($D57/12*$C57)*E57*InflationY1)) -> 0 | G57: 0 | H57: =($D57/12*$C57)*G57*InflationY2 -> 0 | I57: 0 | J57: =($D57/12*$C57)*I57*InflationY3 -> 0 | K57: 0 | L57: =($D57/12*$C57)*K57*InflationY4 -> 0 | M57: 0 | N57: =($D57/12*$C57)*M57*InflationY5 -> 0 | O57: =F57+H57+J57+L57+N57 -> 0
A58: Name | B58: Select | C58: 0 | D58: 0 | E58: 0 | F58: =IF(D58=0,0,IF(GradStudent4="Select","MA or PHD?",($D58/12*$C58)*E58*InflationY1)) -> 0 | G58: 0 | H58: =($D58/12*$C58)*G58*InflationY2 -> 0 | I58: 0 | J58: =($D58/12*$C58)*I58*InflationY3 -> 0 | K58: 0 | L58: =($D58/12*$C58)*K58*InflationY4 -> 0 | M58: 0 | N58: =($D58/12*$C58)*M58*InflationY5 -> 0 | O58: =F58+H58+J58+L58+N58 -> 0
A59: Name | B59: Select | C59: 0 | D59: 0 | E59: 0 | F59: =IF(D59=0,0,IF(GradStudent5="Select","MA or PHD?",($D59/12*$C59)*E59*InflationY1)) -> 0 | G59: 0 | H59: =($D59/12*$C59)*G59*InflationY2 -> 0 | I59: 0 | J59: =($D59/12*$C59)*I59*InflationY3 -> 0 | K59: 0 | L59: =($D59/12*$C59)*K59*InflationY4 -> 0 | M59: 0 | N59: =($D59/12*$C59)*M59*InflationY5 -> 0 | O59: =F59+H59+J59+L59+N59 -> 0
A60: Sub-Total | F60: =SUM(F55:F59) -> 0 | H60: =SUM(H55:H59) -> 0 | J60: =SUM(J55:J59) -> 0 | L60: =SUM(L55:L59) -> 0 | N60: =SUM(N55:N59) -> 0 | O60: =SUM(O55:O59) -> 0
A62: Total Salaries & Wages | F62: =F18+F31+F38+F45++F52+F60 -> 0 | H62: =H18+H31+H38+H45++H52+H60 -> 0 | J62: =J18+J31+J38+J45++J52+J60 -> 0 | L62: =L18+L31+L38+L45++L52+L60 -> 0 | N62: =N18+N31+N38+N45++N52+N60 -> 0 | O62: =O18+O31+O38+O45++O52+O60 -> 0
A64: Fringe Benefits | F64: Grant Yr1 | H64: Grant Yr2 | J64: Grant Yr3 | L64: Grant Yr4 | N64: Grant Yr5 | O64: Total
A65: EHRA Employees & Faculty | F65: =F147 -> 0 | H65: =H147 -> 0 | J65: 0 | L65: 0 | N65: 0 | O65: =SUM(F65,H65,J65,L65,N65) -> 0
A66: EHRA Summer Compensation | F66: =F183 -> 0 | H66: =H183 -> 0 | J66: =J183 -> 0 | L66: =L183 -> 0 | N66: =N183 -> 0 | O66: =SUM(F66,H66,J66,L66,N66) -> 0
A67: SHRA/CSS Staff | F67: =F209 -> 0 | H67: =H209 -> 0 | J67: =J209 -> 0 | L67: =L209 -> 0 | N67: =N209 -> 0 | O67: 0
A68: Hourly/Temporary/Undergrad. Employee | F68: =F227 -> 0 | H68: =+H45*G86 -> 0 | J68: =+J45*H86 -> 0 | L68: =+L45*I86 -> 0 | N68: =+N45*J86 -> 0 | O68: 0
A69: Post Doctoral Associates | F69: =F253 -> 0 | H69: =H253 -> 0 | J69: =J253 -> 0 | L69: =L253 -> 0 | N69: =N253 -> 0 | O69: 0
A70: Graduate Student | F70: =F284 -> 0 | H70: =H284 -> 0 | J70: =J284 -> 0 | L70: =L284 -> 0 | N70: =N284 -> 0 | O70: 0
A71: Total Fringe Benefits | F71: =SUM(F65:F70) -> 0 | H71: =SUM(H65:H70) -> 0 | J71: =SUM(J65:J70) -> 0 | L71: =SUM(L65:L70) -> 0 | N71: =SUM(N65:N70) -> 0 | O71: =SUM(O65:O70) -> 0
A73: Total Salaries, Wages & Fringes | F73: =+F62+F71 -> 0 | H73: =+H62+H71 -> 0 | J73: =+J62+J71 -> 0 | L73: =+L62+L71 -> 0 | N73: =+N62+N71 -> 0 | O73: =+O62+O71 -> 0
A78: The data below provides additional detail for reference and administrative purposes. It does not print and has no fields requiring user input.
A81: Fringes Description & Rates: | F81: Grant Yr1 | G81: Grant Yr2 | H81: Grant Yr3 | I81: Grant Yr4 | J81: Grant Yr5
F82: Current | G82: Estimate | H82: Estimate | I82: Estimate | J82: Estimate | L82: These fringe rates include retirement contributions and applicable payroll taxes - but not health insurance. Health insurance is a fixed dollar amount per employee, so it cannot be depicted as a percentage of any given employee's salary. The current health insurance amount per person is ----->
A83: EHRA Employees & Faculty | F83: =VLOOKUP($A$83,FringeLookUp,VLOOKUP(FY_1,FYLookUp2,3),FALSE) -> 0.214 | G83: =VLOOKUP($A83,FringeLookUp,VLOOKUP(FY_2,FYLookUp2,3),FALSE) -> 0.219 | H83: =VLOOKUP($A83,FringeLookUp,VLOOKUP(FY_3,FYLookUp2,3),FALSE) -> 0.224 | I83: =VLOOKUP($A83,FringeLookUp,VLOOKUP(FY_4,FYLookUp2,3),FALSE) -> 0.229 | J83: =VLOOKUP($A83,FringeLookUp,VLOOKUP(FY_5,FYLookUp2,3),FALSE) -> 0.234
A84: EHRA Summer Compensation | F84: =VLOOKUP($A84,FringeLookUp,VLOOKUP(FY_1,FYLookUp2,3),FALSE) -> 0.214 | G84: 0.219 | H84: 0.224 | I84: 0.229 | J84: 0.234
A85: SHRA/CSS Staff | F85: =VLOOKUP($A85,FringeLookUp,VLOOKUP(FY_1,FYLookUp2,3),FALSE) -> 0.2659 | G85: 0.2709 | H85: 0.2759 | I85: 0.2809 | J85: 0.2859
A86: Hourly/Temporary/Undergraduates | F86: =VLOOKUP($A86,FringeLookUp,VLOOKUP(FY_1,FYLookUp2,3),FALSE) -> 0.0815 | G86: 0.0815 | H86: 0.0815 | I86: 0.0815 | J86: 0.0815
A87: Post Doctoral Associates | F87: =VLOOKUP($A87,FringeLookUp,VLOOKUP(FY_1,FYLookUp2,3),FALSE) -> 0.0815 | G87: 0.0815 | H87: 0.0815 | I87: 0.0815 | J87: 0.0815 | P87: =HealthInsurance -> 6104
A88: Graduate Student | F88: =VLOOKUP($A88,FringeLookUp,VLOOKUP(FY_1,FYLookUp2,3),FALSE) -> 0.0815 | G88: 0.0815 | H88: 0.0815 | I88: 0.0815 | J88: 0.0815
A93: NIH Salary Cap Active? | B93: =NIHCapSet -> Yes | D93: =IF(NIHCapSet="yes",NIHCap,9999999) -> 192300
A95: SPONSORED PROGRAM PERSONNEL DETAIL
A96: EHRA Employees & Faculty | B96: Contract Type | C96: # Months | E96: Base Salary Year 1 | F96: Grant Yr1 | G96: Base Salary Year 2 | H96: Grant Yr2 | I96: Base Salary Year 3 | J96: Grant Yr3 | K96: Base Salary Year 4 | L96: Grant Yr4 | M96: Base Salary Year 5 | N96: Grant Yr5 | O96: Total
A97: =A8 -> Name | B97: =B8 -> Select | C97: =C8 -> 0 | E97: =D8 -> 0 | F97: =F8*F83 -> 0 | G97: =D8*InflationY2 -> 0 | H97: =H8*G83 -> 0 | I97: =D8*InflationY3 -> 0 | J97: =J8*H83 -> 0 | K97: =D8*InflationY4 -> 0 | L97: =L8*I83 -> 0 | M97: =D8*InflationY5 -> 0 | N97: =N8*J83 -> 0 | O97: =F97+H97+J97+L97+N97 -> 0
A98: Insurance | F98: =HealthInsurance/IF($B8="12-Month",12,9)*MonthsPI17*E8*InflationY1 -> 0 | H98: =HealthInsurance/IF($B8="12-Month",12,9)*MonthsPI17*G8*InflationY2 -> 0 | J98: =HealthInsurance/IF($B8="12-Month",12,9)*MonthsPI17*I8*InflationY3 -> 0 | L98: =HealthInsurance/IF($B8="12-Month",12,9)*MonthsPI17*K8*InflationY4 -> 0 | N98: =HealthInsurance/IF($B8="12-Month",12,9)*MonthsPI17*M8*InflationY5 -> 0 | O98: =F98+H98+J98+L98+N98 -> 0
A99: Total Fringe | F99: =SUM(F97:F98) -> 0 | H99: =SUM(H97:H98) -> 0 | J99: 0 | L99: 0 | N99: 0 | O99: 0
A100: Salary | F100: =F8 -> 9 or 12? | H100: =H8 -> 9 or 12? | J100: 9 or 12? | L100: 9 or 12? | N100: 9 or 12? | O100: 0
A101: Salary & Fringe | F101: =SUM(F99:F100) -> 0 | H101: =SUM(H99:H100) -> 0 | J101: 0 | L101: 0 | N101: 0 | O101: 0
A102: =A9 -> Name | B102: =B9 -> Select | C102: =C9 -> 0 | E102: =D9 -> 0 | F102: =F9*F83 -> 0 | G102: =D9*InflationY2 -> 0 | H102: =H9*G83 -> 0 | I102: =D9*InflationY3 -> 0 | J102: =J9*H83 -> 0 | K102: =D9*InflationY4 -> 0 | L102: =L9*I83 -> 0 | M102: =D9*InflationY5 -> 0 | N102: =N9*J83 -> 0 | O102: 0
A103: Insurance | F103: =HealthInsurance/IF($B9="12-Month",12,9)*$C9*E9*InflationY1 -> 0 | H103: =HealthInsurance/IF($B9="12-Month",12,9)*$C9*G9*InflationY2 -> 0 | J103: =HealthInsurance/IF($B9="12-Month",12,9)*$C9*I9*InflationY3 -> 0 | L103: =HealthInsurance/IF($B9="12-Month",12,9)*$C9*K9*InflationY4 -> 0 | N103: =HealthInsurance/IF($B9="12-Month",12,9)*$C9*M9*InflationY5 -> 0 | O103: 0
A104: Total Fringe | F104: =SUM(F102:F103) -> 0 | H104: =SUM(H102:H103) -> 0 | J104: =SUM(J102:J103) -> 0 | L104: =SUM(L102:L103) -> 0 | N104: =SUM(N102:N103) -> 0 | O104: 0
A105: Salary | F105: =F9 -> 9 or 12? | H105: =H9 -> 9 or 12? | J105: =J9 -> 9 or 12? | L105: =L9 -> 9 or 12? | N105: =N9 -> 9 or 12? | O105: 0
A106: Salary & Fringe | F106: =SUM(F104:F105) -> 0 | H106: =SUM(H104:H105) -> 0 | J106: =SUM(J104:J105) -> 0 | L106: =SUM(L104:L105) -> 0 | N106: =SUM(N104:N105) -> 0 | O106: 0
A107: =A10 -> Name | B107: =B10 -> Select | C107: =C10 -> 0 | E107: =D10 -> 0 | F107: =F10*F83 -> 0 | G107: =D10*InflationY2 -> 0 | H107: =H10*G83 -> 0 | I107: =D10*InflationY3 -> 0 | J107: =J10*H83 -> 0 | K107: =D10*InflationY4 -> 0 | L107: =L10*I83 -> 0 | M107: =D10*InflationY5 -> 0 | N107: =N10*J83 -> 0 | O107: 0
A108: Insurance | F108: =HealthInsurance/IF($B10="12-Month",12,9)*$C10*E10*InflationY1 -> 0 | H108: =HealthInsurance/IF($B10="12-Month",12,9)*$C10*G10*InflationY2 -> 0 | J108: =HealthInsurance/IF($B10="12-Month",12,9)*$C10*I10*InflationY3 -> 0 | L108: =HealthInsurance/IF($B10="12-Month",12,9)*$C10*K10*InflationY4 -> 0 | N108: =HealthInsurance/IF($B10="12-Month",12,9)*$C10*M10*InflationY5 -> 0 | O108: 0
A109: Total Fringe | F109: =SUM(F107:F108) -> 0 | H109: =SUM(H107:H108) -> 0 | J109: =SUM(J107:J108) -> 0 | L109: =SUM(L107:L108) -> 0 | N109: =SUM(N107:N108) -> 0 | O109: 0
A110: Salary | F110: =F10 -> 9 or 12? | H110: =H10 -> 9 or 12? | J110: =J10 -> 9 or 12? | L110: =L10 -> 9 or 12? | N110: =N10 -> 9 or 12? | O110: 0
A111: Salary & Fringe | F111: =SUM(F109:F110) -> 0 | H111: =SUM(H109:H110) -> 0 | J111: =SUM(J109:J110) -> 0 | L111: =SUM(L109:L110) -> 0 | N111: =SUM(N109:N110) -> 0 | O111: 0
A112: =A11 -> Name | B112: =B11 -> Select | C112: =C11 -> 0 | E112: =D11 -> 0 | F112: =F11*F83 -> 0 | G112: =D11*InflationY2 -> 0 | H112: =H11*G83 -> 0 | I112: =D11*InflationY3 -> 0 | J112: =J11*H83 -> 0 | K112: =D11*InflationY4 -> 0 | L112: =L11*I83 -> 0 | M112: =D11*InflationY5 -> 0 | N112: =N11*J83 -> 0 | O112: 0
A113: Insurance | F113: =HealthInsurance/IF($B11="12-Month",12,9)*$C11*E11*InflationY1 -> 0 | H113: =HealthInsurance/IF($B11="12-Month",12,9)*$C11*G11*InflationY2 -> 0 | J113: =HealthInsurance/IF($B11="12-Month",12,9)*$C11*I11*InflationY3 -> 0 | L113: =HealthInsurance/IF($B11="12-Month",12,9)*$C11*K11*InflationY4 -> 0 | N113: =HealthInsurance/IF($B11="12-Month",12,9)*$C11*M11*InflationY5 -> 0 | O113: 0
A114: Total Fringe | F114: =SUM(F112:F113) -> 0 | H114: =SUM(H112:H113) -> 0 | J114: =SUM(J112:J113) -> 0 | L114: =SUM(L112:L113) -> 0 | N114: =SUM(N112:N113) -> 0 | O114: 0
A115: Salary | F115: =F11 -> 9 or 12? | H115: =H11 -> 9 or 12? | J115: =J11 -> 9 or 12? | L115: =L11 -> 9 or 12? | N115: =N11 -> 9 or 12? | O115: 0
A116: Salary & Fringe | F116: =SUM(F114:F115) -> 0 | H116: =SUM(H114:H115) -> 0 | J116: =SUM(J114:J115) -> 0 | L116: =SUM(L114:L115) -> 0 | N116: =SUM(N114:N115) -> 0 | O116: 0
A117: =A12 -> Name | B117: =B12 -> Select | C117: =C12 -> 0 | E117: =D12 -> 0 | F117: =F12*F83 -> 0 | G117: =D12*InflationY2 -> 0 | H117: =H12*G83 -> 0 | I117: =D12*InflationY3 -> 0 | J117: =J12*H83 -> 0 | K117: =D12*InflationY4 -> 0 | L117: =L12*I83 -> 0 | M117: =D12*InflationY5 -> 0 | N117: =N12*J83 -> 0 | O117: =F117+H117+J117+L117+N117 -> 0
A118: Insurance | F118: =HealthInsurance/IF($B12="12-Month",12,9)*$C12*E12*InflationY1 -> 0 | H118: =HealthInsurance/IF($B12="12-Month",12,9)*$C12*G12*InflationY2 -> 0 | J118: =HealthInsurance/IF($B12="12-Month",12,9)*$C12*I12*InflationY3 -> 0 | L118: =HealthInsurance/IF($B12="12-Month",12,9)*$C12*K12*InflationY4 -> 0 | N118: =HealthInsurance/IF($B12="12-Month",12,9)*$C12*M12*InflationY5 -> 0 | O118: 0
A119: Total | F119: =SUM(F117:F118) -> 0 | H119: =SUM(H117:H118) -> 0 | J119: =SUM(J117:J118) -> 0 | L119: =SUM(L117:L118) -> 0 | N119: =SUM(N117:N118) -> 0 | O119: 0
A120: Salary | F120: =F12 -> 9 or 12? | H120: =H12 -> 9 or 12? | J120: =J12 -> 9 or 12? | L120: =L12 -> 9 or 12? | N120: =N12 -> 9 or 12? | O120: 0
A121: Salary & Fringe | F121: =SUM(F119:F120) -> 0 | H121: =SUM(H119:H120) -> 0 | J121: =SUM(J119:J120) -> 0 | L121: =SUM(L119:L120) -> 0 | N121: =SUM(N119:N120) -> 0 | O121: 0
A122: =A13 -> Name | B122: =B13 -> Select | C122: =C13 -> 0 | E122: =D13 -> 0 | F122: =F13*F83 -> 0 | G122: =D13*InflationY2 -> 0 | H122: =H13*G83 -> 0 | I122: =D13*InflationY3 -> 0 | J122: =J13*H83 -> 0 | K122: =D13*InflationY4 -> 0 | L122: =L13*I83 -> 0 | M122: =D13*InflationY5 -> 0 | N122: =N13*J83 -> 0 | O122: =F122+H122+J122+L122+N122 -> 0
A123: Insurance | F123: =HealthInsurance/IF($B13="12-Month",12,9)*$C13*E13*InflationY1 -> 0 | H123: =HealthInsurance/IF($B13="12-Month",12,9)*$C13*G13*InflationY2 -> 0 | J123: =HealthInsurance/IF($B13="12-Month",12,9)*$C13*I13*InflationY3 -> 0 | L123: =HealthInsurance/IF($B13="12-Month",12,9)*$C13*K13*InflationY4 -> 0 | N123: =HealthInsurance/IF($B13="12-Month",12,9)*$C13*M13*InflationY5 -> 0 | O123: 0
A124: Total | F124: =SUM(F122:F123) -> 0 | H124: =SUM(H122:H123) -> 0 | J124: =SUM(J122:J123) -> 0 | L124: =SUM(L122:L123) -> 0 | N124: =SUM(N122:N123) -> 0 | O124: 0
A125: Salary | F125: =F13 -> 9 or 12? | H125: =H13 -> 9 or 12? | J125: =J13 -> 9 or 12? | L125: =L13 -> 9 or 12? | N125: =N13 -> 9 or 12? | O125: 0
A126: Salary & Fringe | F126: =SUM(F124:F125) -> 0 | H126: =SUM(H124:H125) -> 0 | J126: =SUM(J124:J125) -> 0 | L126: =SUM(L124:L125) -> 0 | N126: =SUM(N124:N125) -> 0 | O126: 0
A127: =A14 -> Name | B127: =B14 -> Select | C127: =C14 -> 0 | E127: =D14 -> 0 | F127: =F14*F83 -> 0 | G127: =D14*InflationY2 -> 0 | H127: =H14*G83 -> 0 | I127: =D14*InflationY3 -> 0 | J127: =J14*H83 -> 0 | K127: =D14*InflationY4 -> 0 | L127: =L14*I83 -> 0 | M127: =D14*InflationY5 -> 0 | N127: =N14*J83 -> 0 | O127: 0
A128: Insurance | F128: =HealthInsurance/IF($B14="12-Month",12,9)*$C14*E14*InflationY1 -> 0 | H128: =HealthInsurance/IF($B14="12-Month",12,9)*$C14*G14*InflationY2 -> 0 | J128: =HealthInsurance/IF($B14="12-Month",12,9)*$C14*I14*InflationY3 -> 0 | L128: =HealthInsurance/IF($B14="12-Month",12,9)*$C14*K14*InflationY4 -> 0 | N128: =HealthInsurance/IF($B14="12-Month",12,9)*$C14*M14*InflationY5 -> 0 | O128: 0
A129: Total | F129: =SUM(F127:F128) -> 0 | H129: =SUM(H127:H128) -> 0 | J129: =SUM(J127:J128) -> 0 | L129: =SUM(L127:L128) -> 0 | N129: =SUM(N127:N128) -> 0 | O129: 0
A130: Salary | F130: =F14 -> 9 or 12? | H130: =H14 -> 9 or 12? | J130: =J14 -> 9 or 12? | L130: =L14 -> 9 or 12? | N130: =N14 -> 9 or 12? | O130: 0
A131: Salary & Fringe | F131: =SUM(F129:F130) -> 0 | H131: =SUM(H129:H130) -> 0 | J131: =SUM(J129:J130) -> 0 | L131: =SUM(L129:L130) -> 0 | N131: =SUM(N129:N130) -> 0 | O131: 0
A132: =A15 -> Name | B132: =B15 -> Select | C132: =C15 -> 0 | E132: =D15 -> 0 | F132: =F15*F83 -> 0 | G132: =D15*InflationY2 -> 0 | H132: =H15*G83 -> 0 | I132: =D15*InflationY3 -> 0 | J132: =J15*H83 -> 0 | K132: =D15*InflationY4 -> 0 | L132: =L15*I83 -> 0 | M132: =D15*InflationY5 -> 0 | N132: =N15*J83 -> 0 | O132: 0
A133: Insurance | F133: =HealthInsurance/IF($B15="12-Month",12,9)*$C15*E15*InflationY1 -> 0 | H133: =HealthInsurance/IF($B15="12-Month",12,9)*$C15*G15*InflationY2 -> 0 | J133: =HealthInsurance/IF($B15="12-Month",12,9)*$C15*I15*InflationY3 -> 0 | L133: =HealthInsurance/IF($B15="12-Month",12,9)*$C15*K15*InflationY4 -> 0 | N133: =HealthInsurance/IF($B15="12-Month",12,9)*$C15*M15*InflationY5 -> 0 | O133: 0
A134: Total | F134: =SUM(F132:F133) -> 0 | H134: =SUM(H132:H133) -> 0 | J134: =SUM(J132:J133) -> 0 | L134: =SUM(L132:L133) -> 0 | N134: =SUM(N132:N133) -> 0 | O134: 0
A135: Salary | F135: =F15 -> 9 or 12? | H135: =H15 -> 9 or 12? | J135: =J15 -> 9 or 12? | L135: =L15 -> 9 or 12? | N135: =N15 -> 9 or 12? | O135: 0
A136: Salary & Fringe | F136: =SUM(F134:F135) -> 0 | H136: =SUM(H134:H135) -> 0 | J136: =SUM(J134:J135) -> 0 | L136: =SUM(L134:L135) -> 0 | N136: =SUM(N134:N135) -> 0 | O136: 0
A137: =A16 -> Name | B137: =B16 -> Select | C137: =C16 -> 0 | E137: =D16 -> 0 | F137: =F16*F83 -> 0 | G137: =D16*InflationY2 -> 0 | H137: =H16*G83 -> 0 | I137: =D16*InflationY3 -> 0 | J137: =J16*H83 -> 0 | K137: =D16*InflationY4 -> 0 | L137: =L16*I83 -> 0 | M137: =D16*InflationY5 -> 0 | N137: =N16*J83 -> 0 | O137: 0
A138: Insurance | F138: =HealthInsurance/IF($B16="12-Month",12,9)*$C16*E16*InflationY1 -> 0 | H138: =HealthInsurance/IF($B16="12-Month",12,9)*$C16*G16*InflationY2 -> 0 | J138: =HealthInsurance/IF($B16="12-Month",12,9)*$C16*I16*InflationY3 -> 0 | L138: =HealthInsurance/IF($B16="12-Month",12,9)*$C16*K16*InflationY4 -> 0 | N138: =HealthInsurance/IF($B16="12-Month",12,9)*$C16*M16*InflationY5 -> 0 | O138: 0
A139: Total | F139: =SUM(F137:F138) -> 0 | H139: =SUM(H137:H138) -> 0 | J139: =SUM(J137:J138) -> 0 | L139: =SUM(L137:L138) -> 0 | N139: =SUM(N137:N138) -> 0 | O139: 0
A140: Salary | F140: =F16 -> 9 or 12? | H140: =H16 -> 9 or 12? | J140: =J16 -> 9 or 12? | L140: =L16 -> 9 or 12? | N140: =N16 -> 9 or 12? | O140: 0
A141: Salary & Fringe | F141: =SUM(F139:F140) -> 0 | H141: =SUM(H139:H140) -> 0 | J141: =SUM(J139:J140) -> 0 | L141: =SUM(L139:L140) -> 0 | N141: =SUM(N139:N140) -> 0 | O141: 0
A142: =A17 -> Name | B142: =B17 -> Select | C142: =C17 -> 0 | E142: =D17 -> 0 | F142: =F17*F83 -> 0 | G142: =D17*InflationY2 -> 0 | H142: =H17*G83 -> 0 | I142: =D17*InflationY3 -> 0 | J142: =J17*H83 -> 0 | K142: =D17*InflationY4 -> 0 | L142: =L17*I83 -> 0 | M142: =D17*InflationY5 -> 0 | N142: =N17*J83 -> 0 | O142: 0
A143: Insurance | F143: =HealthInsurance/IF($B17="12-Month",12,9)*$C17*E17*InflationY1 -> 0 | H143: =HealthInsurance/IF($B17="12-Month",12,9)*$C17*G17*InflationY2 -> 0 | J143: =HealthInsurance/IF($B17="12-Month",12,9)*$C17*I17*InflationY3 -> 0 | L143: =HealthInsurance/IF($B17="12-Month",12,9)*$C17*K17*InflationY4 -> 0 | N143: =HealthInsurance/IF($B17="12-Month",12,9)*$C17*M17*InflationY5 -> 0 | O143: =F143+H143+J143+L143+N143 -> 0
A144: Total | F144: =SUM(F142:F143) -> 0 | H144: =SUM(H142:H143) -> 0 | J144: =SUM(J142:J143) -> 0 | L144: =SUM(L142:L143) -> 0 | N144: =SUM(N142:N143) -> 0 | O144: 0
A145: Salary | F145: =F17 -> 9 or 12? | H145: =H17 -> 9 or 12? | J145: =J17 -> 9 or 12? | L145: =L17 -> 9 or 12? | N145: =N17 -> 9 or 12? | O145: 0
A146: Salary & Fringe | F146: =SUM(F144:F145) -> 0 | H146: =SUM(H144:H145) -> 0 | J146: =SUM(J144:J145) -> 0 | L146: =SUM(L144:L145) -> 0 | N146: =SUM(N144:N145) -> 0 | O146: 0
A147: Sub-Total Fringe | F147: =F99+F104+F109+F114+F119+F124+F129+F139+F134+F144 -> 0 | H147: =H99+H104+H109+H114+H119+H124+H129+H139+H134+H144 -> 0 | J147: 0 | L147: 0 | N147: 0 | O147: 0
A148: Sub-Total Salary | F148: =F100+F105+F110+F115+F120+F125+F130+F140+F135+F145 -> 0 | H148: 0 | J148: 0 | L148: 0 | N148: 0 | O148: 0
A149: Sub-Total Salary & Fringe | F149: =F101+F106+F111+F116+F121+F126+F131+F141+F136+F146 -> 0 | H149: 0 | J149: 0 | L149: 0 | N149: 0 | O149: 0
B151: Contract Type | C151: # Months | E151: Base Salary Year 1 | F151: Grant Yr1 | G151: Base Salary Year 2 | H151: Grant Yr2 | I151: Base Salary Year 3 | J151: Grant Yr3 | K151: Base Salary Year 4 | L151: Grant Yr4 | M151: Base Salary Year 5 | N151: Grant Yr5 | O151: Total
A152: EHRA Summer Compensation
A153: =piname -> PI Name | B153: =B21 -> Summer | C153: =C21 -> 0 | E153: =D21 -> 0 | F153: =F21*F$84 -> 0 | G153: =D21*InflationY2 -> 0 | H153: =H21*G84 -> 0 | I153: =D21*InflationY3 -> 0 | J153: =J21*H84 -> 0 | K153: =D21*InflationY4 -> 0 | L153: =L21*I84 -> 0 | M153: =D21*InflationY5 -> 0 | N153: =N21*J84 -> 0 | O153: =F153+H153+J153+L153+N153 -> 0
A154: Salary | F154: =F21 -> 0 | H154: =H21 -> 0 | J154: =J21 -> 0 | L154: =L21 -> 0 | N154: =N21 -> 0 | O154: 0
A155: Salary & Fringe | F155: =SUM(F153:F154) -> 0 | H155: =SUM(H153:H154) -> 0 | J155: =SUM(J153:J154) -> 0 | L155: =SUM(L153:L154) -> 0 | N155: =SUM(N153:N154) -> 0 | O155: 0
A156: =A22 -> Name | B156: =B22 -> Summer | C156: =C22 -> 0 | E156: =D22 -> 0 | F156: =F22*F$84 -> 0 | G156: =D22*InflationY2 -> 0 | H156: =H22*G84 -> 0 | I156: =D22*InflationY3 -> 0 | J156: =J22*H84 -> 0 | K156: =D22*InflationY4 -> 0 | L156: =L22*I84 -> 0 | M156: =D22*InflationY5 -> 0 | N156: =N22*J84 -> 0 | O156: 0
A157: Salary | F157: =F22 -> 0 | H157: =H22 -> 0 | J157: =J22 -> 0 | L157: =L22 -> 0 | N157: =N22 -> 0 | O157: 0
A158: Salary & Fringe | F158: =SUM(F156:F157) -> 0 | H158: =SUM(H156:H157) -> 0 | J158: =SUM(J156:J157) -> 0 | L158: =SUM(L156:L157) -> 0 | N158: =SUM(N156:N157) -> 0 | O158: 0
A159: =A23 -> Name | B159: =B23 -> Summer | C159: =C23 -> 0 | E159: =D23 -> 0 | F159: =F23*F$84 -> 0 | G159: =D23*InflationY2 -> 0 | H159: =H23*G84 -> 0 | I159: =D23*InflationY3 -> 0 | J159: =J23*H84 -> 0 | K159: =D23*InflationY4 -> 0 | L159: =L23*I84 -> 0 | M159: =D23*InflationY5 -> 0 | N159: =N23*J84 -> 0 | O159: 0
A160: Salary | F160: =F23 -> 0 | H160: =H23 -> 0 | J160: =J23 -> 0 | L160: =L23 -> 0 | N160: =N23 -> 0 | O160: 0
A161: Salary & Fringe | F161: =SUM(F159:F160) -> 0 | H161: =SUM(H159:H160) -> 0 | J161: =SUM(J159:J160) -> 0 | L161: =SUM(L159:L160) -> 0 | N161: =SUM(N159:N160) -> 0 | O161: 0
A162: =A24 -> Name | B162: =B24 -> Summer | C162: =C24 -> 0 | E162: =D24 -> 0 | F162: =F24*F$84 -> 0 | G162: =D24*InflationY2 -> 0 | H162: =H24*G84 -> 0 | I162: =D24*InflationY3 -> 0 | J162: =J24*H84 -> 0 | K162: =D24*InflationY4 -> 0 | L162: =L24*I84 -> 0 | M162: =D24*InflationY5 -> 0 | N162: =N24*J84 -> 0 | O162: 0
A163: Salary | F163: =F24 -> 0 | H163: =H24 -> 0 | J163: =J24 -> 0 | L163: =L24 -> 0 | N163: =N24 -> 0 | O163: 0
A164: Salary & Fringe | F164: =SUM(F162:F163) -> 0 | H164: =SUM(H162:H163) -> 0 | J164: =SUM(J162:J163) -> 0 | L164: =SUM(L162:L163) -> 0 | N164: =SUM(N162:N163) -> 0 | O164: 0
A165: =A25 -> Name | B165: =B25 -> Summer | C165: =C25 -> 0 | E165: =D25 -> 0 | F165: =F25*F$84 -> 0 | G165: =D25*InflationY2 -> 0 | H165: =H25*G84 -> 0 | I165: =D25*InflationY3 -> 0 | J165: =J25*H84 -> 0 | K165: =D25*InflationY4 -> 0 | L165: =L25*I84 -> 0 | M165: =D25*InflationY5 -> 0 | N165: =N25*J84 -> 0 | O165: 0
A166: Salary | F166: =F25 -> 0 | H166: =H25 -> 0 | J166: =J25 -> 0 | L166: =L25 -> 0 | N166: =N25 -> 0 | O166: 0
A167: Salary & Fringe | F167: =SUM(F165:F166) -> 0 | H167: =SUM(H165:H166) -> 0 | J167: =SUM(J165:J166) -> 0 | L167: =SUM(L165:L166) -> 0 | N167: =SUM(N165:N166) -> 0 | O167: 0
A168: =A26 -> Name | B168: =B26 -> Summer | C168: =C26 -> 0 | E168: =D26 -> 0 | F168: =F26*F$84 -> 0 | G168: =D26*InflationY2 -> 0 | H168: =H26*G84 -> 0 | I168: =D26*InflationY3 -> 0 | J168: =J26*H84 -> 0 | K168: =D26*InflationY4 -> 0 | L168: =L26*I84 -> 0 | M168: =D26*InflationY5 -> 0 | N168: =N26*J84 -> 0 | O168: 0
A169: Salary | F169: =F26 -> 0 | H169: =H26 -> 0 | J169: =J26 -> 0 | L169: =L26 -> 0 | N169: =N26 -> 0 | O169: 0
A170: Salary & Fringe | F170: =SUM(F168:F169) -> 0 | H170: =SUM(H168:H169) -> 0 | J170: =SUM(J168:J169) -> 0 | L170: =SUM(L168:L169) -> 0 | N170: =SUM(N168:N169) -> 0 | O170: 0
A171: =A27 -> Name | B171: =B27 -> Summer | C171: =C27 -> 0 | E171: =D27 -> 0 | F171: =F27*F$84 -> 0 | G171: =D27*InflationY2 -> 0 | H171: =H27*G84 -> 0 | I171: =D27*InflationY3 -> 0 | J171: =J27*H84 -> 0 | K171: =D27*InflationY4 -> 0 | L171: =L27*I84 -> 0 | M171: =D27*InflationY5 -> 0 | N171: =N27*J84 -> 0 | O171: 0
A172: Salary | F172: =F27 -> 0 | H172: =H27 -> 0 | J172: =J27 -> 0 | L172: =L27 -> 0 | N172: =N27 -> 0 | O172: 0
A173: Salary & Fringe | F173: =SUM(F171:F172) -> 0 | H173: =SUM(H171:H172) -> 0 | J173: =SUM(J171:J172) -> 0 | L173: =SUM(L171:L172) -> 0 | N173: =SUM(N171:N172) -> 0 | O173: 0
A174: =A28 -> Name | B174: =B28 -> Summer | C174: =C28 -> 0 | E174: =D28 -> 0 | F174: =F28*F$84 -> 0 | G174: =D28*InflationY2 -> 0 | H174: =H28*G84 -> 0 | I174: =D28*InflationY3 -> 0 | J174: =J28*H84 -> 0 | K174: =D28*InflationY4 -> 0 | L174: =L28*I84 -> 0 | M174: =D28*InflationY5 -> 0 | N174: =N28*J84 -> 0 | O174: 0
A175: Salary | F175: =F28 -> 0 | H175: =H28 -> 0 | J175: =J28 -> 0 | L175: =L28 -> 0 | N175: =N28 -> 0 | O175: 0
A176: Salary & Fringe | F176: =SUM(F174:F175) -> 0 | H176: =SUM(H174:H175) -> 0 | J176: =SUM(J174:J175) -> 0 | L176: =SUM(L174:L175) -> 0 | N176: =SUM(N174:N175) -> 0 | O176: 0
A177: =A29 -> Name | B177: =B29 -> Summer | C177: =C29 -> 0 | E177: =D29 -> 0 | F177: =F29*F$84 -> 0 | G177: =D29*InflationY2 -> 0 | H177: =H29*G84 -> 0 | I177: =D29*InflationY3 -> 0 | J177: =J29*H84 -> 0 | K177: =D29*InflationY4 -> 0 | L177: =L29*I84 -> 0 | M177: =D29*InflationY5 -> 0 | N177: =N29*J84 -> 0 | O177: 0
A178: Salary | F178: =F29 -> 0 | H178: =H29 -> 0 | J178: =J29 -> 0 | L178: =L29 -> 0 | N178: =N29 -> 0 | O178: 0
A179: Salary & Fringe | F179: =SUM(F177:F178) -> 0 | H179: =SUM(H177:H178) -> 0 | J179: =SUM(J177:J178) -> 0 | L179: =SUM(L177:L178) -> 0 | N179: =SUM(N177:N178) -> 0 | O179: 0
A180: =A30 -> Name | B180: =B30 -> Summer | C180: =C30 -> 0 | E180: =D30 -> 0 | F180: =F30*F$84 -> 0 | G180: =D30*InflationY2 -> 0 | H180: =H30*G84 -> 0 | I180: =D30*InflationY3 -> 0 | J180: =J30*H84 -> 0 | K180: =D30*InflationY4 -> 0 | L180: =L30*I84 -> 0 | M180: =D30*InflationY5 -> 0 | N180: =N30*J84 -> 0 | O180: 0
A181: Salary | F181: =F30 -> 0 | H181: =H30 -> 0 | J181: =J30 -> 0 | L181: =L30 -> 0 | N181: =N30 -> 0 | O181: 0
A182: Salary & Fringe | F182: =SUM(F180:F181) -> 0 | H182: =SUM(H180:H181) -> 0 | J182: =SUM(J180:J181) -> 0 | L182: =SUM(L180:L181) -> 0 | N182: =SUM(N180:N181) -> 0 | O182: 0
A183: Sub-Total Fringe | F183: =F153+F156+F159+F162+F165+F168+F171+F174+F177+F180 -> 0 | H183: =H153+H156+H159+H162+H165+H168+H171+H174+H177+H180 -> 0 | J183: 0 | L183: 0 | N183: 0 | O183: 0
A184: Sub-Total Salary | F184: =F154+F157+F160+F163+F166+F169+F172+F175+F178+F181 -> 0 | H184: 0 | J184: 0 | L184: 0 | N184: 0 | O184: 0
A185: Sub-Total Salary & Fringe | F185: =F155+F158+F161+F164+F167+F170+F173+F176+F179+F182 -> 0 | H185: 0 | J185: 0 | L185: 0 | N185: 0 | O185: 0
B187: Contract Type | C187: # Months | E187: Base Salary Year 1 | F187: Grant Yr1 | G187: Base Salary Year 2 | H187: Grant Yr2 | I187: Base Salary Year 3 | J187: Grant Yr3 | K187: Base Salary Year 4 | L187: Grant Yr4 | M187: Base Salary Year 5 | N187: Grant Yr5 | O187: Total
A188: SHRA/CSS Staff
A189: =A34 -> Name | B189: =B34 -> 12-Month | C189: =C34 -> 0 | E189: =D34 -> 0 | F189: =F34*F85 -> 0 | G189: =D34*InflationY2 -> 0 | H189: =H34*G85 -> 0 | I189: =D34*InflationY3 -> 0 | J189: =J34*H85 -> 0 | K189: =D34*InflationY4 -> 0 | L189: =L34*I85 -> 0 | M189: =D34*InflationY5 -> 0 | N189: =N34*J85 -> 0 | O189: =F189+H189+J189+L189+N189 -> 0
A190: Insurance | F190: =HealthInsurance/IF($B34="12-Month",12,9)*C34*E34*InflationY1 -> 0 | H190: =HealthInsurance/IF($B34="12-Month",12,9)*C34*G34*InflationY2 -> 0 | J190: =HealthInsurance/IF($B34="12-Month",12,9)*C34*I34*InflationY3 -> 0 | L190: =HealthInsurance/IF($B34="12-Month",12,9)*C34*K34*InflationY4 -> 0 | N190: =HealthInsurance/IF($B34="12-Month",12,9)*C34*M34*InflationY5 -> 0 | O190: =F190+H190+J190+L190+N190 -> 0
A191: Total | F191: =SUM(F189:F190) -> 0 | H191: =SUM(H189:H190) -> 0 | J191: 0 | L191: 0 | N191: 0 | O191: 0
A192: Salary | F192: =F34 -> 0 | H192: =H34 -> 0 | J192: 0 | L192: 0 | N192: 0 | O192: 0
A193: Salary & Fringe | F193: =SUM(F191:F192) -> 0 | H193: =SUM(H191:H192) -> 0 | J193: 0 | L193: 0 | N193: 0 | O193: 0
A194: =A35 -> Name | B194: =B35 -> 12-Month | C194: =C35 -> 0 | E194: =D35 -> 0 | F194: =F35*F85 -> 0 | G194: =D35*InflationY2 -> 0 | H194: =H35*G85 -> 0 | I194: =D35*InflationY3 -> 0 | J194: =J35*H85 -> 0 | K194: =D35*InflationY4 -> 0 | L194: =L35*I85 -> 0 | M194: =D35*InflationY5 -> 0 | N194: =N35*J85 -> 0 | O194: 0
A195: Insurance | F195: =HealthInsurance/IF($B35="12-Month",12,9)*C35*E35*InflationY1 -> 0 | H195: =HealthInsurance/IF($B35="12-Month",12,9)*C35*G35*InflationY2 -> 0 | J195: =HealthInsurance/IF($B35="12-Month",12,9)*C35*I35*InflationY3 -> 0 | L195: =HealthInsurance/IF($B35="12-Month",12,9)*C35*K35*InflationY4 -> 0 | N195: =HealthInsurance/IF($B35="12-Month",12,9)*C35*M35*InflationY5 -> 0 | O195: 0
A196: Total | F196: =SUM(F194:F195) -> 0 | H196: =SUM(H194:H195) -> 0 | J196: =SUM(J194:J195) -> 0 | L196: =SUM(L194:L195) -> 0 | N196: =SUM(N194:N195) -> 0 | O196: 0
A197: Salary | F197: =F35 -> 0 | H197: =H35 -> 0 | J197: 0 | L197: 0 | N197: 0 | O197: 0
A198: Salary & Fringe | F198: =SUM(F196:F197) -> 0 | H198: =SUM(H196:H197) -> 0 | J198: =SUM(J196:J197) -> 0 | L198: =SUM(L196:L197) -> 0 | N198: =SUM(N196:N197) -> 0 | O198: 0
A199: =A36 -> Name | B199: =B36 -> 12-Month | C199: =C36 -> 0 | E199: =D36 -> 0 | F199: =F36*F85 -> 0 | G199: =D36*InflationY2 -> 0 | H199: =H36*G85 -> 0 | I199: =D36*InflationY3 -> 0 | J199: =J36*H85 -> 0 | K199: =D36*InflationY4 -> 0 | L199: =L36*I85 -> 0 | M199: =D36*InflationY5 -> 0 | N199: =N36*J85 -> 0 | O199: 0
A200: Insurance | F200: =HealthInsurance/IF($B36="12-Month",12,9)*C36*E36*InflationY1 -> 0 | H200: =HealthInsurance/IF($B36="12-Month",12,9)*C36*G36*InflationY2 -> 0 | J200: =HealthInsurance/IF($B36="12-Month",12,9)*C36*I36*InflationY3 -> 0 | L200: =HealthInsurance/IF($B36="12-Month",12,9)*C36*K36*InflationY4 -> 0 | N200: =HealthInsurance/IF($B36="12-Month",12,9)*C36*M36*InflationY5 -> 0 | O200: 0
A201: Total | F201: =SUM(F199:F200) -> 0 | H201: =SUM(H199:H200) -> 0 | J201: =SUM(J199:J200) -> 0 | L201: =SUM(L199:L200) -> 0 | N201: =SUM(N199:N200) -> 0 | O201: 0
A202: Salary | F202: =F36 -> 0 | H202: =H36 -> 0 | J202: 0 | L202: 0 | N202: 0 | O202: 0
A203: Salary & Fringe | F203: =SUM(F201:F202) -> 0 | H203: =SUM(H201:H202) -> 0 | J203: =SUM(J201:J202) -> 0 | L203: =SUM(L201:L202) -> 0 | N203: =SUM(N201:N202) -> 0 | O203: 0
A204: =A37 -> Name | B204: =B37 -> 12-Month | C204: =C37 -> 0 | E204: =D37 -> 0 | F204: =F37*F85 -> 0 | G204: =D37*InflationY2 -> 0 | H204: =H37*G85 -> 0 | I204: =D37*InflationY3 -> 0 | J204: =J37*H85 -> 0 | K204: =D37*InflationY4 -> 0 | L204: =L37*I85 -> 0 | M204: =D37*InflationY5 -> 0 | N204: =N37*J85 -> 0 | O204: 0
A205: Insurance | F205: =HealthInsurance/IF($B37="12-Month",12,9)*C37*E37*InflationY1 -> 0 | H205: =HealthInsurance/IF($B37="12-Month",12,9)*C37*G37*InflationY2 -> 0 | J205: =HealthInsurance/IF($B37="12-Month",12,9)*C37*I37*InflationY3 -> 0 | L205: =HealthInsurance/IF($B37="12-Month",12,9)*C37*K37*InflationY4 -> 0 | N205: =HealthInsurance/IF($B37="12-Month",12,9)*C37*M37*InflationY5 -> 0 | O205: 0
A206: Total | F206: =SUM(F204:F205) -> 0 | H206: =SUM(H204:H205) -> 0 | J206: =SUM(J204:J205) -> 0 | L206: =SUM(L204:L205) -> 0 | N206: =SUM(N204:N205) -> 0 | O206: 0
A207: Salary | F207: =F37 -> 0 | H207: =H37 -> 0 | J207: 0 | L207: 0 | N207: 0 | O207: 0
A208: Salary & Fringe | F208: =SUM(F206:F207) -> 0 | H208: =SUM(H206:H207) -> 0 | J208: =SUM(J206:J207) -> 0 | L208: =SUM(L206:L207) -> 0 | N208: =SUM(N206:N207) -> 0 | O208: 0
A209: Sub-Total Fringe | F209: =F191+F196+F201+F206 -> 0 | H209: =H191+H196+H201+H206 -> 0 | J209: 0 | L209: 0 | N209: 0 | O209: 0
A210: Sub-Total Salary | F210: =F192+F197+F202+F207 -> 0 | H210: 0 | J210: 0 | L210: 0 | N210: 0 | O210: 0
A211: Sub-Total Salary & Fringe | F211: =SUM(F209:F210) -> 0 | H211: =SUM(H209:H210) -> 0 | J211: 0 | L211: 0 | N211: 0 | O211: 0
B213: Contract Type | C213: # Months | E213: Rate | F213: Grant Yr1 | G213: Rate | H213: Grant Yr2 | I213: Rate | J213: Grant Yr3 | K213: Rate | L213: Grant Yr4 | M213: Rate | N213: Grant Yr5 | O213: Total
A214: Hourly/Temp/Undergrad. Employee
A215: =A41 -> Name | B215: =B41 -> Hourly | E215: =F41 -> 0 | F215: =F41*F86 -> 0 | G215: =H41 -> 0 | H215: =H41*G86 -> 0 | I215: =J41 -> 0 | J215: =J41*H86 -> 0 | K215: =L41 -> 0 | L215: =L41*I86 -> 0 | M215: =N41 -> 0 | N215: =N41*J86 -> 0 | O215: =F215+H215+J215+L215+N215 -> 0
A216: Salary | F216: =F41 -> 0 | H216: =H41 -> 0 | J216: =J41 -> 0 | L216: =L41 -> 0 | N216: =N41 -> 0 | O216: 0
A217: Salary & Fringe | F217: =SUM(F215:F216) -> 0 | H217: =SUM(H215:H216) -> 0 | J217: 0 | L217: 0 | N217: 0 | O217: 0
A218: =A42 -> Name | B218: =B42 -> Hourly | E218: =F42 -> 0 | F218: =F42*F86 -> 0 | G218: =H42 -> 0 | H218: =H42*G86 -> 0 | I218: =J42 -> 0 | J218: =J42*H86 -> 0 | K218: =L42 -> 0 | L218: =L42*I86 -> 0 | M218: =N42 -> 0 | N218: =N42*J86 -> 0 | O218: 0
A219: Salary | F219: =F42 -> 0 | H219: =H42 -> 0 | J219: =J42 -> 0 | L219: =L42 -> 0 | N219: =N42 -> 0 | O219: 0
A220: Salary & Fringe | F220: =SUM(F218:F219) -> 0 | H220: =SUM(H218:H219) -> 0 | J220: =SUM(J218:J219) -> 0 | L220: =SUM(L218:L219) -> 0 | N220: =SUM(N218:N219) -> 0 | O220: 0
A221: =A43 -> Name | B221: =B43 -> Hourly | E221: =F43 -> 0 | F221: =F43*F86 -> 0 | G221: =H43 -> 0 | H221: =H43*G86 -> 0 | I221: =J43 -> 0 | J221: =J43*H86 -> 0 | K221: =L43 -> 0 | L221: =L43*I86 -> 0 | M221: =N43 -> 0 | N221: =N43*J86 -> 0 | O221: 0
A222: Salary | F222: =F43 -> 0 | H222: =H43 -> 0 | J222: =J43 -> 0 | L222: =L43 -> 0 | N222: =N43 -> 0 | O222: 0
A223: Salary & Fringe | F223: =SUM(F221:F222) -> 0 | H223: =SUM(H221:H222) -> 0 | J223: =SUM(J221:J222) -> 0 | L223: =SUM(L221:L222) -> 0 | N223: =SUM(N221:N222) -> 0 | O223: 0
... 61 more rows

Sheet Cost-Share Summary
A1: East Carolina University | D1: Cost-Share Summary
A2: =piname -> PI Name | E2: Creation Date: | F2: =creationdate -> Date | G2: RAMSeS ID: | H2: =ramsesid -> Enter # Here
A3: =proposaltitle -> Enter Title | D3: Project Period: | F3: =projstartdate -> Date | G3: to | H3: =projenddate -> Date
A4: =sponsor -> Enter Sponsor | D4: Projected Inflation | F4: =Inflation -> 0.03
B6: Grant Yr1 | C6: Grant Yr2 | D6: Grant Yr3 | E6: Grant Yr4 | F6: Grant Yr5 | G6: Total | H6: Notes
A7: F&A Rate | B7: =FARateY1 -> 0.475 | C7: =FARateY2 -> 0.475 | D7: =FARateY3 -> 0.475 | E7: =FARateY4 -> 0.475 | F7: =FARateY5 -> 0.475 | G7: =IF(RateSelection="Custom Rate - Enter Rate Here ----------->",CustomRate,VLOOKUP(RateSelection,RatesData,6)) -> 0.475
A8: EHRA Employees & Faculty | B8: =+'Cost-Share Personnel'!F18 -> 0 | C8: =+'Cost-Share Personnel'!H18 -> 0 | D8: =+'Cost-Share Personnel'!J18 -> 0 | E8: =+'Cost-Share Personnel'!L18 -> 0 | F8: =+'Cost-Share Personnel'!N18 -> 0 | G8: =SUM(B8:F8) -> 0
A9: EHRA Summer Compensation | B9: =+'Cost-Share Personnel'!F31 -> 0 | C9: =+'Cost-Share Personnel'!H31 -> 0 | D9: =+'Cost-Share Personnel'!J31 -> 0 | E9: =+'Cost-Share Personnel'!L31 -> 0 | F9: =+'Cost-Share Personnel'!N31 -> 0 | G9: =SUM(B9:F9) -> 0
A10: SHRA/CSS Staff | B10: =+'Cost-Share Personnel'!F38 -> 0 | C10: =+'Cost-Share Personnel'!H38 -> 0 | D10: =+'Cost-Share Personnel'!J38 -> 0 | E10: =+'Cost-Share Personnel'!L38 -> 0 | F10: =+'Cost-Share Personnel'!N38 -> 0 | G10: 0
A11: Hourly/Temporary/Undergrad. Employee | B11: =+'Cost-Share Personnel'!F45 -> 0 | C11: =+'Cost-Share Personnel'!H45 -> 0 | D11: =+'Cost-Share Personnel'!J45 -> 0 | E11: =+'Cost-Share Personnel'!L45 -> 0 | F11: =+'Cost-Share Personnel'!N45 -> 0 | G11: 0
A12: Post Doctoral Associates | B12: =+'Cost-Share Personnel'!F52 -> 0 | C12: =+'Cost-Share Personnel'!H52 -> 0 | D12: =+'Cost-Share Personnel'!J52 -> 0 | E12: =+'Cost-Share Personnel'!L52 -> 0 | F12: =+'Cost-Share Personnel'!N52 -> 0 | G12: 0
A13: Graduate Student | B13: =+'Cost-Share Personnel'!F60 -> 0 | C13: =+'Cost-Share Personnel'!H60 -> 0 | D13: =+'Cost-Share Personnel'!J60 -> 0 | E13: =+'Cost-Share Personnel'!L60 -> 0 | F13: =+'Cost-Share Personnel'!N60 -> 0 | G13: 0
A14: Total Salaries & Wages (Personnel Worksheet) | B14: =SUM(B8:B13) -> 0 | C14: =SUM(C8:C13) -> 0 | D14: =SUM(D8:D13) -> 0 | E14: =SUM(E8:E13) -> 0 | F14: =SUM(F8:F13) -> 0 | G14: 0
A16: Fringe Benefits | B16: =+'Cost-Share Personnel'!F71 -> 0 | C16: =+'Cost-Share Personnel'!H71 -> 0 | D16: =+'Cost-Share Personnel'!J71 -> 0 | E16: =+'Cost-Share Personnel'!L71 -> 0 | F16: =+'Cost-Share Personnel'!N71 -> 0 | G16: =SUM(B16:F16) -> 0
A18: Total Personnel and Fringe | B18: =SUM(B14:B16) -> 0 | C18: =SUM(C14:C16) -> 0 | D18: =SUM(D14:D16) -> 0 | E18: =SUM(E14:E16) -> 0 | F18: =SUM(F14:F16) -> 0 | G18: =SUM(B18:F18) -> 0
A20: Computer Supplies & Software | B20: 0 | C20: 0 | D20: 0 | E20: 0 | F20: 0 | G20: =SUM(B20:F20) -> 0
A21: Equipment Less than $5,000 per unit | B21: 0 | C21: 0 | D21: 0 | E21: 0 | F21: 0 | G21: 0
A22: Tech/Sci Supplies | B22: 0 | C22: 0 | D22: 0 | E22: 0 | F22: 0 | G22: =SUM(B22:F22) -> 0
A23: Animal Care costs and Per Diem | B23: 0 | C23: 0 | D23: 0 | E23: 0 | F23: 0 | G23: =SUM(B23:F23) -> 0
A24: Other (please identify) | B24: 0 | C24: 0 | D24: 0 | E24: 0 | F24: 0 | G24: =SUM(B24:F24) -> 0
A25: Other (please identify) | B25: 0 | C25: 0 | D25: 0 | E25: 0 | F25: 0 | G25: =SUM(B25:F25) -> 0
A26: Other (please identify) | B26: 0 | C26: 0 | D26: 0 | E26: 0 | F26: 0 | G26: =SUM(B26:F26) -> 0
A27: Other (please identify) | B27: 0 | C27: 0 | D27: 0 | E27: 0 | F27: 0 | G27: 0
A28: Other (please identify) | B28: 0 | C28: 0 | D28: 0 | E28: 0 | F28: 0 | G28: 0
A29: Total Supplies | B29: =SUM(B20:B28) -> 0 | C29: =SUM(C20:C28) -> 0 | D29: =SUM(D20:D28) -> 0 | E29: =SUM(E20:E28) -> 0 | F29: =SUM(F20:F28) -> 0 | G29: 0
A31: Travel - Domestic | B31: 0 | C31: 0 | D31: 0 | E31: 0 | F31: 0 | G31: =SUM(B31:F31) -> 0
A32: Travel - Foreign | B32: 0 | C32: 0 | D32: 0 | E32: 0 | F32: 0 | G32: =SUM(B32:F32) -> 0
A33: Total Travel | B33: =SUM(B31:B32) -> 0 | C33: =SUM(C31:C32) -> 0 | D33: =SUM(D31:D32) -> 0 | E33: =SUM(E31:E32) -> 0 | F33: =SUM(F31:F32) -> 0 | G33: =SUM(B33:F33) -> 0
A35: Advertising | B35: 0 | C35: 0 | D35: 0 | E35: 0 | F35: 0 | G35: =SUM(B35:F35) -> 0
A36: Business Meeting Expenses | B36: 0 | C36: 0 | D36: 0 | E36: 0 | F36: 0 | G36: 0
A37: Computer Services & Data Storage | B37: 0 | C37: 0 | D37: 0 | E37: 0 | F37: 0 | G37: 0
A38: Conference Expenses | B38: 0 | C38: 0 | D38: 0 | E38: 0 | F38: 0 | G38: 0
A39: Consultants and/or Prof. Services | B39: 0 | C39: 0 | D39: 0 | E39: 0 | F39: 0 | G39: 0
A40: Educ. Services - Fees | B40: 0 | C40: 0 | D40: 0 | E40: 0 | F40: 0 | G40: 0
A41: Human Subject Payments | B41: 0 | C41: 0 | D41: 0 | E41: 0 | F41: 0 | G41: 0
A42: Publication Services | B42: 0 | C42: 0 | D42: 0 | E42: 0 | F42: 0 | G42: 0
A43: Rent - Equipment | B43: 0 | C43: 0 | D43: 0 | E43: 0 | F43: 0 | G43: 0
A44: Repair & Maint - Equipment | B44: 0 | C44: 0 | D44: 0 | E44: 0 | F44: 0 | G44: 0
A45: Space Usage Fees | B45: 0 | C45: 0 | D45: 0 | E45: 0 | F45: 0 | G45: 0
A46: Telephone - Long Distance | B46: 0 | C46: 0 | D46: 0 | E46: 0 | F46: 0 | G46: 0
A47: Other (please identify) | B47: 0 | C47: 0 | D47: 0 | E47: 0 | F47: 0 | G47: =SUM(B47:F47) -> 0
A48: Other (please identify) | B48: 0 | C48: 0 | D48: 0 | E48: 0 | F48: 0 | G48: =SUM(B48:F48) -> 0
A49: Other (please identify) | B49: 0 | C49: 0 | D49: 0 | E49: 0 | F49: 0 | G49: =SUM(B49:F49) -> 0
A50: Total Other | B50: =SUM(B35:B49) -> 0 | C50: 0 | D50: 0 | E50: 0 | F50: 0 | G50: 0
A52: Subawards
A53: First $25,000 of Subcontract Expense | B53: 0 | C53: 0 | D53: 0 | E53: 0 | F53: 0 | G53: =SUM(B53:F53) -> 0
A54: Subcontract Expense over $25,000 | B54: 0 | C54: 0 | D54: 0 | E54: 0 | F54: 0 | G54: =SUM(B54:F54) -> 0
A55: Total Subawards | B55: =SUM(B53:B54) -> 0 | C55: 0 | D55: 0 | E55: 0 | F55: 0 | G55: 0
A57: =IF(RateBase="TDC - Total Direct Costs"," ","Items Exempt from F&A") -> Items Exempt from F&A
A58: Participant Support (Educational Activities Only) | B58: 0 | C58: 0 | D58: 0 | E58: 0 | F58: 0 | G58: =SUM(B58:F58) -> 0
A59: Equip $5,000 or More per unit | B59: 0 | C59: 0 | D59: 0 | E59: 0 | F59: 0 | G59: 0
A60: Tuition (Ph.D. Students Only) | B60: 0 | C60: 0 | D60: 0 | E60: 0 | F60: 0 | G60: 0
A61: Fees (Ph.D. Students Only) | B61: 0 | C61: 0 | D61: 0 | E61: 0 | F61: 0 | G61: =SUM(B61:F61) -> 0
A62: Patient Care (Not Used by ECU - Depict Effort and Supplies) | B62: 0 | C62: 0 | D62: 0 | E62: 0 | F62: 0 | G62: =SUM(B62:F62) -> 0
A63: Lease Payments for Off-Campus Facilities | B63: 0 | C63: 0 | D63: 0 | E63: 0 | F63: 0 | G63: =SUM(B63:F63) -> 0
A64: Training Grant-Stipends | B64: 0 | C64: 0 | D64: 0 | E64: 0 | F64: 0 | G64: 0
A65: Other (please identify) | B65: 0 | C65: 0 | D65: 0 | E65: 0 | F65: 0 | G65: 0
A66: Other (please identify) | B66: 0 | C66: 0 | D66: 0 | E66: 0 | F66: 0 | G66: 0
A67: Total | B67: =SUM(B58:B66) -> 0 | C67: 0 | D67: 0 | E67: 0 | F67: 0 | G67: 0
A69: =IF(RateBase="TDC - Total Direct Costs","Total Direct Costs - F&A Base","Total Direct Costs") -> Total Direct Costs | B69: =B18+B29+B33+B50+B55+B67 -> 0 | C69: =C18+C29+C33+C50+C55+C67 -> 0 | D69: =D18+D29+D33+D50+D55+D67 -> 0 | E69: =E18+E29+E33+E50+E55+E67 -> 0 | F69: =F18+F29+F33+F50+F55+F67 -> 0 | G69: =SUM(B69:F69) -> 0
A71: =IF(RateBase="MTDC - Modified Total Direct Costs","Modified Total Direct Costs (MTDC) - F&A Base"," ") -> Modified Total Direct Costs (MTDC) - F&A Base | B71: =IF(RateBase="MTDC - Modified Total Direct Costs",B69-B67-B54,0) -> 0 | C71: =IF(RateBase="MTDC - Modified Total Direct Costs",C69-C67-C54,0) -> 0 | D71: =IF(RateBase="MTDC - Modified Total Direct Costs",D69-D67-D54,0) -> 0 | E71: =IF(RateBase="MTDC - Modified Total Direct Costs",E69-E67-E54,0) -> 0 | F71: =IF(RateBase="MTDC - Modified Total Direct Costs",F69-F67-F54,0) -> 0 | G71: =SUM(B71:F71) -> 0
A72: F&A (Indirect Costs) | B72: =IF(RateBase="MTDC - Modified Total Direct Costs",ROUND(FARateY1*MatchMTDCY1,0),IF(RateBase="TDC - Total Direct Costs",ROUND(FARateY1*MatchTDCY1,0),ROUND(OtherMatchBaseY1*FARateY1,0))) -> 0 | C72: =IF(RateBase="MTDC - Modified Total Direct Costs",ROUND(FARateY2*MatchMTDCY2,0),IF(RateBase="TDC - Total Direct Costs",ROUND(FARateY2*MatchTDCY2,0),ROUND(OtherMatchBaseY2*FARateY2,0))) -> 0 | D72: =IF(RateBase="MTDC - Modified Total Direct Costs",ROUND(FARateY3*MatchMTDCY3,0),IF(RateBase="TDC - Total Direct Costs",ROUND(FARateY3*MatchTDCY3,0),ROUND(OtherMatchBaseY3*FARateY3,0))) -> 0 | E72: =IF(RateBase="MTDC - Modified Total Direct Costs",ROUND(FARateY4*MatchMTDCY4,0),IF(RateBase="TDC - Total Direct Costs",ROUND(FARateY4*MatchTDCY4,0),ROUND(OtherMatchBaseY4*FARateY4,0))) -> 0 | F72: =IF(RateBase="MTDC - Modified Total Direct Costs",ROUND(FARateY5*MatchMTDCY5,0),IF(RateBase="TDC - Total Direct Costs",ROUND(FARateY5*MatchTDCY5,0),ROUND(OtherMatchBaseY5*FARateY5,0))) -> 0 | G72: =SUM(B72:F72) -> 0
A74: Total Cost-Share Budget | B74: =B69+B72 -> 0 | C74: =C69+C72 -> 0 | D74: =D69+D72 -> 0 | E74: =E69+E72 -> 0 | F74: =F69+F72 -> 0 | G74: =SUM(B74:F74) -> 0

Sheet Fixed Price
B6: Fixed Price Proposal & Quote
B8: Proposal To: | C8: =sponsor -> Enter Sponsor
B9: Project Title | C9: =proposaltitle -> Enter Title
B10: ECU Principal Investigator | C10: =piname -> PI Name
B11: Project Start Date | C11: =projstartdate -> Date | E11: Project End Date | G11: =projenddate -> Date
B12: Projected Cost | C12: ='Expenses & Summary'!G76 -> 0
B14: East Carolina University presents this Fixed Price Proposal & Quote on the above referenced project. This proposal represents the University's projected cost for meeting the milestones or providing the deliverables described in the attached scope of work. The University does not provide detail of its costs or expenditures, either in proposals or in subsequent invoices, nor will it accept restrictions on those expenditures under fixed price agreements. The University will negotiate payment terms on the basis of milestones or deliverables. This proposal has been reviewed by appropriate institutional personnel and enjoys the full support of the University, as indicated by the authorized signature below. ECU's price quote is firm for 90 days from the date of signature below. If the parties choose to proceed with this project, a sponsored program agreement will be negotiated and executed between the parties. In this process, the University will be represented by the Office of Research Administration (see the contact information below). If there are any questions about this proposal or any requests for additional documentation or revisions, please contact the Office of Research Administration using the information below.
B16: =IF(FARateY1<0.26,"Error - Fixed Price Proposals MUST use a Negotiated F&A Rate (Set on Start Tab)"," ") -> 
B18: Jullie B. Cole | C18: Date | E18: =sponsor -> Enter Sponsor | H18: Date
B19: Director, Office of Research Administration | E19: wishes to proceed with this project.
B20: Mail Stop 165
B21: East Carolina University | E21: ☐ | F21: Sponsor will provide agreement draft
B22: Greenville, NC 27858 | E22: ☐ | F22: ECU should provide agreement draft
B23: ora@ecu.edu
B24: 252.328.9540
B29: Budget Detail - DO NOT SEND TO SPONSOR
B30: Some sponsors, particularly for-profit entities, may indicate a preference for fixed price projects. In some instances the University prefers fixed price agreements rather than the standard cost-reimbursement agreements used by governmental agencies. If the Principal Investigator is contemplating a research project to be funded by business or industry, he/she should consult with his/her ORA Grants Officer to determine which type of project is more appropriate and what information should be included in the proposal. Fixed price agreements carry greater risk to the University, especially the possibility of cost overruns and penalties for failure to provide deliverables that are acceptable to the sponsor. However, they offer the advantage of streamlined financial administration for the Principal Investigator and the University. For fixed price agreements, the University does not present a line item budget to the sponsor; instead, the sponsor receives a price quote for specified milestones/deliverables. Although an internal budget is required for the project Banner fund, the PI can rebudget funds in a fixed price project at any time without sponsor approval. The University is not obligated to provide any financial reports or details of expenditures to the sponsor; invoices reflect only payments due based on completion of milestones/deliverables and are presented without detail. Typically, the milestones/deliverables take the place of interim and final progress reports, although a final report is often specified as a deliverable. A benefit of proposing a fixed price project, especially for business/industry sponsors, is that the university's F&A costs are not separately identified in a detailed budget. For-profit entities do not understand F&A and often misinterpret it as profit, a tax, or some other type of fee or add-on that is not necessary for the conduct of the work. They do not understand that F&A is overhead cost that is based on actual costs incurred by the institution in providing the infrastructure and services that supports sponsored project activity. The concept of a separate F&A rate for overhead, as opposed to overhead costs being built into quoted time and materials costs, is foreign to most companies. In a fixed price proposal, costs are not detailed, so industry's confusion about F&A is avoided. Fixed price projects should be costed internally in the same manner as cost-reimbursable projects; the full applicable F&A rate should be applied. However, only the total cost should be quoted to the sponsor as the fixed price. In rare cases in which a sponsor insists on a breakdown of costs behind a price quote, the ORA may authorize presentation of a simplified budget. In the budget for a fixed price project, costs are fully burdened, meaning the applicable F&A is added to each line item rather than appearing as a separate line item at the bottom of the budget. The following fully burdened budget may, with ORA authorization, be presented to the sponsor for this project, provided the text following the budget is included:
B32: Technical Note - to ensure the spreadsheet calculations capture all changes to budget figures, please either use the REFRESH DATA command in the data menu or simply close and reopen the spreadsheet.
C34: =Vars!AE4 -> Year 1 | D34: =Vars!AF4 -> Year 2 | E34: =Vars!AG4 -> Year 3 | F34: =Vars!AH4 -> Year 4 | G34: =Vars!AI4 -> Year 5 | H34: =Vars!AJ4 -> Total
B35: =Vars!AD5 -> Salary & Fringe | C35: =Vars!AE5 -> 0 | D35: =Vars!AF5 -> 0 | E35: =Vars!AG5 -> 0 | F35: =Vars!AH5 -> 0 | G35: =Vars!AI5 -> 0 | H35: =Vars!AJ5 -> 0
B36: =Vars!AD6 -> Equipment | C36: =Vars!AE6 -> 0 | D36: =Vars!AF6 -> 0 | E36: =Vars!AG6 -> 0 | F36: =Vars!AH6 -> 0 | G36: =Vars!AI6 -> 0 | H36: =Vars!AJ6 -> 0
B37: =Vars!AD7 -> Supplies | C37: =Vars!AE7 -> 0 | D37: =Vars!AF7 -> 0 | E37: =Vars!AG7 -> 0 | F37: =Vars!AH7 -> 0 | G37: =Vars!AI7 -> 0 | H37: =Vars!AJ7 -> 0
B38: =Vars!AD8 -> Travel & Meetings | C38: =Vars!AE8 -> 0 | D38: =Vars!AF8 -> 0 | E38: =Vars!AG8 -> 0 | F38: =Vars!AH8 -> 0 | G38: =Vars!AI8 -> 0 | H38: =Vars!AJ8 -> 0
B39: =Vars!AD9 -> Contracted Services | C39: =Vars!AE9 -> 0 | D39: =Vars!AF9 -> 0 | E39: =Vars!AG9 -> 0 | F39: =Vars!AH9 -> 0 | G39: =Vars!AI9 -> 0 | H39: =Vars!AJ9 -> 0
B40: =Vars!AD10 -> Participant Support | C40: =Vars!AE10 -> 0 | D40: =Vars!AF10 -> 0 | E40: =Vars!AG10 -> 0 | F40: =Vars!AH10 -> 0 | G40: =Vars!AI10 -> 0 | H40: =Vars!AJ10 -> 0
B41: =Vars!AD11 -> Tuition & Fees | C41: =Vars!AE11 -> 0 | D41: =Vars!AF11 -> 0 | E41: =Vars!AG11 -> 0 | F41: =Vars!AH11 -> 0 | G41: =Vars!AI11 -> 0 | H41: =Vars!AJ11 -> 0
B42: =Vars!AD12 -> Other | C42: =Vars!AE12 -> 0 | D42: =Vars!AF12 -> 0 | E42: =Vars!AG12 -> 0 | F42: =Vars!AH12 -> 0 | G42: =Vars!AI12 -> 0 | H42: =Vars!AJ12 -> 0
B43: =Vars!AD13 -> Total | C43: =Vars!AE13 -> 0 | D43: =Vars!AF13 -> 0 | E43: =Vars!AG13 -> 0 | F43: =Vars!AH13 -> 0 | G43: =Vars!AI13 -> 0 | H43: =Vars!AJ13 -> 0
B45: This summary budget is provided solely to explain the derivation of ECU's price quote. If this proposal is funded, the University will not provide financial reporting or cost accounting related to these line items. Rather, payments will be based upon milestones and deliverables as specificied in the formal funding agreement.

Sheet NIH Modular
A1: East Carolina University | D1: NIH Modular Summary
A2: =piname -> PI Name | E2: Creation Date: | F2: =creationdate -> Date | G2: RAMSeS ID: | H2: =ramsesid -> Enter # Here
A3: =proposaltitle -> Enter Title | D3: Project Period: | F3: =projstartdate -> Date | G3: to | H3: =projenddate -> Date
A4: =sponsor -> Enter Sponsor | D4: Projected Inflation | F4: =Inflation -> 0.03
C6: Budget Period | D6: Budget Period | E6: Budget Period | F6: Budget Period | G6: Budget Period | H6: Cumulative
C7: 1 | D7: 2 | E7: 3 | F7: 4 | G7: 5 | H7: Budget
A9: Direct Costs less Consortium F&A | C9: =tdcyear1 -> 0 | D9: =tdcyear2 -> 0 | E9: =tdcyear3 -> 0 | F9: =tdcyear4 -> 0 | G9: =tdcyear5 -> 0 | H9: =SUM(C9:G9) -> 0
A10: Consortium F&A | C10: =sub1fa -> 0 | D10: =sub2fa -> 0 | E10: =sub3fa -> 0 | F10: =sub4fa -> 0 | G10: =sub5fa -> 0 | H10: =subtotfa -> 0
A11: Total Direct Costs | C11: =SUM(C9:C10) -> 0 | D11: 0 | E11: 0 | F11: 0 | G11: 0 | H11: 0
A14: Indirect Cost (F&A) Base | C14: =MTDCYear1 -> 0 | D14: =mtdcyear2 -> 0 | E14: =mtdcyear3 -> 0 | F14: =mtdcyear4 -> 0 | G14: =mtdcyear5 -> 0 | H14: =SUM(C14:G14) -> 0
A15: Indirect Cost (F&A) Requested | C15: =fayear1 -> 0 | D15: =fayear2 -> 0 | E15: =fayear3 -> 0 | F15: =fayear4 -> 0 | G15: =fayear5 -> 0 | H15: =SUM(C15:G15) -> 0
A17: Total Funds Requested | C17: =SUM(C11+C15) -> 0 | D17: 0 | E17: 0 | F17: 0 | G17: 0 | H17: 0
A20: Additional Useful Information:
A21: DHHS Agreement Date: 12/21/2015
A22: Cognizant Audit Agency Info: | C22: Steven Zuraf DHHS
C23: PH: (301) 492-4855

Sheet GoalSeek
A1: This sheet is designed to allow the use of the GoalSeek function. Enter the personnel type, salary, and level of effort, the spreadsheet will calculate various salary figures. You can then use the GoalSeek function in Excel to optimize one of the calculated amounts by varying one of your parameters. See the example at the bottom.
E2: What is GoalSeek?
A5: Step 1 - Set Personnel Type --> | B5: EHRA Employees & Faculty
A6: Step 2 - Set Contract Type ---> | B6: 9-Month
A8: Step 3 - Set Parameters (Estimate The Target Parameter) | D8: Note On Precision - GoalSeek will fail if the parameter cells do not permit enough precision to reach the target "To Value" exactly. Once this tool provides the needed parameter value, that value should be rounded to a reasonable number before being used elsewhere in this spreadsheet.
A9: Base Salary | B9: 65000
A10: Months Worked | B10: 9
A11: Percent Effort | B11: 0.120571
A13: Calculations
A14: Prorata Salary | B14: =IF(B6="Select","9 or 12?",(B9/(IF(B6="12-Month",12,9))*B10)*B11) -> 7837
A15: Associated Fringe | B15: =(B14*A42)+(B42/IF(B6="12-Month",12,9)*B10*B11) -> 2413
A16: Total Salary & Fringe | B16: =SUM(B14:B15) -> 10250
A17: F&A | B17: =B16*(FARateY1) -> 4869
A18: Total Salary, Fringe, F&A | B18: =SUM(B16:B17) -> 15119
A20: Step 4 - Run GoalSeek
A21: PC - Look under What-If-Analysis on the Data Ribbon
A22: Mac - Look in the Tools Menu
A23: Direct "Set Cell" to one of the calculation cells
A24: Direct "To Value" to the target value
A25: Direct "By Changing Cell" to the target parameter cell
A28: Example
A29: To determine how much summer effort a PI (EPA - $65,000 salary) could devote to a project with a total budget cap of $25,000 (including F&A).
A30: Step 1 - Choose "EPA Summer" for Personnel Type
A31: Step 2 - Choose "9-Month" for Contract Type
A32: Step 3 - Enter "$65,000" for Base Salary, "1.0" (an estimate) for Months Worked, and "100%" for Percent Effort
A33: Run GoalSeek and Direct "Set Cell" to B18, Enter "To Value" of $25,000, and Direct "By Changing Cell" to B10.
A34: Excel will then vary B12 (Months Worked) in order to drive B20 (Total Salary) to $25,000. The result is 2.23 months of summer effort.
A39: These variables are driven by the personnel type and cannot be customized
A41: Fringe Rate | B41: Insurance
A42: =VLOOKUP(B5,FringeTable,3,FALSE) -> 0.214 | B42: =VLOOKUP(B5,FringeTable,2,FALSE) -> 6104

Sheet Accounts (hidden)
A1: East Carolina University | G1: Cost Sharing Accounts
A2: =piname -> PI Name | H2: Creation Date: | I2: =creationdate -> Date | J2: RAMSeS ID: | K2: =ramsesid -> Enter # Here
A3: =proposaltitle -> Enter Title | H3: Project Period | I3: =projstartdate -> Date | J3: to | K3: =projenddate -> Date
A4: =sponsor -> Enter Sponsor | H4: Projected Inflation | J4: =Inflation -> 0.03
D5: Sponsor Cost Share Requirement: | E5: enter ratio or $$$ amount here
E6: Grant Yr1 | F6: Grant Yr2 | G6: Grant Yr3 | H6: Grant Yr4 | I6: Grant Yr5 | J6: Total | K6: Notes
D8: Sponsor Funds Requested:
D9: Direct | E9: ='Expenses & Summary'!B69 -> 0 | F9: ='Expenses & Summary'!C69 -> 0 | G9: ='Expenses & Summary'!D69 -> 0 | H9: ='Expenses & Summary'!E69 -> 0 | I9: ='Expenses & Summary'!F69 -> 0 | J9: =SUM(E9:I9) -> 0
D10: F&A | E10: ='Expenses & Summary'!B74 -> 0 | F10: ='Expenses & Summary'!C74 -> 0 | G10: ='Expenses & Summary'!D74 -> 0 | H10: ='Expenses & Summary'!E74 -> 0 | I10: ='Expenses & Summary'!F74 -> 0 | J10: =SUM(E10:I10) -> 0
D11: Total Project Cost | E11: ='Expenses & Summary'!B76 -> 0 | F11: ='Expenses & Summary'!C76 -> 0 | G11: ='Expenses & Summary'!D76 -> 0 | H11: ='Expenses & Summary'!E76 -> 0 | I11: ='Expenses & Summary'!F76 -> 0 | J11: =SUM(E11:I11) -> 0
D13: Funds Subsidizing Project:
D14: Fund # | E14: 0 | F14: 0 | G14: 0 | H14: 0 | I14: 0 | J14: =SUM(E14:I14) -> 0
D15: Fund # | E15: 0 | F15: 0 | G15: 0 | H15: 0 | I15: 0 | J15: 0
D16: Fund # | E16: 0 | F16: 0 | G16: 0 | H16: 0 | I16: 0 | J16: 0
D17: Fund # | E17: 0 | F17: 0 | G17: 0 | H17: 0 | I17: 0 | J17: 0
D18: Unrecovered (Waived) F&A | E18: 0 | F18: 0 | G18: 0 | H18: 0 | I18: 0 | J18: 0
D19: F&A | E19: 0 | F19: 0 | G19: 0 | H19: 0 | I19: 0 | J19: 0
D20: Total | E20: =SUM(E14:E19) -> 0 | F20: 0 | G20: 0 | H20: 0 | I20: 0 | J20: 0
D22: Reportable Cost Sharing:
D23: Fund # | E23: 0 | F23: 0 | G23: 0 | H23: 0 | I23: 0 | J23: =SUM(E23:I23) -> 0
D24: Fund # | E24: 0 | F24: 0 | G24: 0 | H24: 0 | I24: 0 | J24: 0
D25: Fund # | E25: 0 | F25: 0 | G25: 0 | H25: 0 | I25: 0 | J25: 0
D26: Fund # | E26: 0 | F26: 0 | G26: 0 | H26: 0 | I26: 0 | J26: 0
D27: Unrecovered (Waived) F&A | E27: 0 | F27: 0 | G27: 0 | H27: 0 | I27: 0 | J27: 0
D28: F&A | E28: 0 | F28: 0 | G28: 0 | H28: 0 | I28: 0 | J28: 0
D29: Total | E29: =SUM(E23:E28) -> 0 | F29: 0 | G29: 0 | H29: 0 | I29: 0 | J29: 0
D32: Direct Cost | E32: =E9 -> 0 | F32: 0 | G32: 0 | H32: 0 | I32: 0 | J32: =SUM(E32:I32) -> 0
D33: F&A | E33: 0 | F33: 0 | G33: 0 | H33: 0 | I33: 0 | J33: =SUM(E33:I33) -> 0
D34: Total | E34: =SUM(E32:E33) -> 0 | F34: 0 | G34: 0 | H34: 0 | I34: 0 | J34: 0
A36: Notes: Reportable Cost Sharing total must match the total of Direct Cost and F&A

Sheet Post
A1: East Carolina University
A2: =piname -> PI Name | D2: Creation Date: | E2: =creationdate -> Date | F2: RAMSeS ID: | G2: =ramsesid -> Enter # Here
A3: =proposaltitle -> Enter Title | D3: Project Period | E3: =projstartdate -> Date | F3: to | G3: =projenddate -> Date
A4: =sponsor -> Enter Sponsor
B6: Total Cost-Share | D6: =TotalMatch -> 0
B8: Tuition | D8: ='Expenses & Summary'!G60 -> 0
B9: Participant Support | D9: ='Expenses & Summary'!G58 -> 0
B10: F&A Rate | C10: =RateSelection -> Research (On-Campus) - 47.5% | D10: =CustomRate -> 0
B13: F&A Splits | C13: Unit | D13: Fund | E13: ORG | F13: Percent | G13: Amount
B15: REDE | C15: ='Expenses & Summary'!B80 -> Institutional Portion | D15: 120001 | F15: ='Expenses & Summary'!D80 -> 0.7 | G15: ='Expenses & Summary'!E80 -> 0
B16: Research Clusters | C16: ='Expenses & Summary'!B81 ->  | D16: =IF($C16=" ",$C16,VLOOKUP($C16,ClusterFund,2,FALSE)) ->  | E16: =IF($C16=" ",$C16,VLOOKUP($C16,ClusterFund,3,FALSE)) ->  | F16: ='Expenses & Summary'!D81 -> 0 | G16: ='Expenses & Summary'!E81 -> 0
C17: ='Expenses & Summary'!B82 ->  | D17: =IF($C17=" ",$C17,VLOOKUP($C17,ClusterFund,2,FALSE)) ->  | E17: =IF($C17=" ",$C17,VLOOKUP($C17,ClusterFund,3,FALSE)) ->  | F17: ='Expenses & Summary'!D82 -> 0 | G17: ='Expenses & Summary'!E82 -> 0
B18: Affiliated Centers | C18: ='Expenses & Summary'!B83 ->  | D18: =IF($C18=" ",$C18,VLOOKUP($C18,CenterFund,2,FALSE)) ->  | E18: =IF($C18=" ",$C18,VLOOKUP($C18,CenterFund,3,FALSE)) ->  | F18: ='Expenses & Summary'!D83 -> 0 | G18: ='Expenses & Summary'!E83 -> 0
B19: Colleges | C19: ='Expenses & Summary'!B84 ->  | D19: =IF($C19=" ",$C19,VLOOKUP($C19,CollegeFund,2,FALSE)) ->  | E19: =IF($C19=" ",$C19,VLOOKUP($C19,CollegeFund,3,FALSE)) ->  | F19: ='Expenses & Summary'!D84 -> 0 | G19: ='Expenses & Summary'!E84 -> 0
C20: ='Expenses & Summary'!B85 ->  | D20: =IF($C20=" ",$C20,VLOOKUP($C20,CollegeFund,2,FALSE)) ->  | E20: =IF($C20=" ",$C20,VLOOKUP($C20,CollegeFund,3,FALSE)) ->  | F20: ='Expenses & Summary'!D85 -> 0 | G20: ='Expenses & Summary'!E85 -> 0
C21: ='Expenses & Summary'!B86 ->  | D21: =IF($C21=" ",$C21,VLOOKUP($C21,CollegeFund,2,FALSE)) ->  | E21: =IF($C21=" ",$C21,VLOOKUP($C21,CollegeFund,3,FALSE)) ->  | F21: ='Expenses & Summary'!D86 -> 0 | G21: ='Expenses & Summary'!E86 -> 0
C22: ='Expenses & Summary'!B87 ->  | D22: =IF($C22=" ",$C22,VLOOKUP($C22,CollegeFund,2,FALSE)) ->  | E22: =IF($C22=" ",$C22,VLOOKUP($C22,CollegeFund,3,FALSE)) ->  | F22: ='Expenses & Summary'!D87 -> 0 | G22: ='Expenses & Summary'!E87 -> 0
B23: Units/Departments | C23: ='Expenses & Summary'!B88 ->  | D23: =IF($C23=" ",$C23,VLOOKUP($C23,UnitFund,2,FALSE)) ->  | E23: =IF($C23=" ",$C23,VLOOKUP($C23,UnitFund,3,FALSE)) ->  | F23: ='Expenses & Summary'!D88 -> 0 | G23: ='Expenses & Summary'!E88 -> 0
C24: ='Expenses & Summary'!B89 ->  | F24: ='Expenses & Summary'!D89 -> 0 | G24: ='Expenses & Summary'!E89 -> 0
C25: ='Expenses & Summary'!B90 ->  | F25: ='Expenses & Summary'!D90 -> 0 | G25: ='Expenses & Summary'!E90 -> 0
C26: ='Expenses & Summary'!B91 ->  | F26: ='Expenses & Summary'!D91 -> 0 | G26: ='Expenses & Summary'!E91 -> 0
C27: ='Expenses & Summary'!B92 ->  | F27: ='Expenses & Summary'!D92 -> 0 | G27: ='Expenses & Summary'!E92 -> 0
C28: ='Expenses & Summary'!B93 ->  | F28: ='Expenses & Summary'!D93 -> 0 | G28: ='Expenses & Summary'!E93 -> 0
B29: Investigators | C29: ='Expenses & Summary'!B94 ->  | F29: ='Expenses & Summary'!D94 -> 0 | G29: ='Expenses & Summary'!E94 -> 0
C30: ='Expenses & Summary'!B95 ->  | F30: ='Expenses & Summary'!D95 -> 0 | G30: ='Expenses & Summary'!E95 -> 0
C31: ='Expenses & Summary'!B96 ->  | F31: ='Expenses & Summary'!D96 -> 0 | G31: ='Expenses & Summary'!E96 -> 0
C32: ='Expenses & Summary'!B97 ->  | F32: ='Expenses & Summary'!D97 -> 0 | G32: ='Expenses & Summary'!E97 -> 0
C33: ='Expenses & Summary'!B98 ->  | F33: ='Expenses & Summary'!D98 -> 0 | G33: ='Expenses & Summary'!E98 -> 0
C34: ='Expenses & Summary'!B99 ->  | F34: ='Expenses & Summary'!D99 -> 0 | G34: ='Expenses & Summary'!E99 -> 0
C35: ='Expenses & Summary'!B100 ->  | F35: ='Expenses & Summary'!D100 -> 0 | G35: ='Expenses & Summary'!E100 -> 0
C36: ='Expenses & Summary'!B101 ->  | F36: ='Expenses & Summary'!D101 -> 0 | G36: ='Expenses & Summary'!E101 -> 0
C37: ='Expenses & Summary'!B102 ->  | F37: ='Expenses & Summary'!D102 -> 0 | G37: ='Expenses & Summary'!E102 -> 0
C38: ='Expenses & Summary'!B103 ->  | F38: ='Expenses & Summary'!D103 -> 0 | G38: ='Expenses & Summary'!E103 -> 0
C39: Total | F39: =SUM(F15:F38) -> 0.7 | G39: =SUM(G15:G38) -> 0
B42: Credit Allocations | C42: Unit | D42: Fund | E42: ORG | F42: Percent | G42: Amount
B44: Units/Departments | C44: ='Expenses & Summary'!F94 ->  | D44: =IF($C44=" ",$C44,VLOOKUP($C44,UnitFund,2,FALSE)) ->  | E44: =IF($C44=" ",$C44,VLOOKUP($C44,UnitFund,3,FALSE)) ->  | F44: ='Expenses & Summary'!G94 -> 0 | G44: ='Expenses & Summary'!H94 -> 0
C45: ='Expenses & Summary'!F95 ->  | F45: ='Expenses & Summary'!G95 -> 0 | G45: ='Expenses & Summary'!H95 -> 0
C46: ='Expenses & Summary'!F96 ->  | F46: ='Expenses & Summary'!G96 -> 0 | G46: ='Expenses & Summary'!H96 -> 0
C47: ='Expenses & Summary'!F97 ->  | F47: ='Expenses & Summary'!G97 -> 0 | G47: ='Expenses & Summary'!H97 -> 0
C48: ='Expenses & Summary'!F98 ->  | F48: ='Expenses & Summary'!G98 -> 0 | G48: ='Expenses & Summary'!H98 -> 0
C49: ='Expenses & Summary'!F99 ->  | F49: ='Expenses & Summary'!G99 -> 0 | G49: ='Expenses & Summary'!H99 -> 0
C50: ='Expenses & Summary'!F100 ->  | F50: ='Expenses & Summary'!G100 -> 0 | G50: ='Expenses & Summary'!H100 -> 0
C51: ='Expenses & Summary'!F101 ->  | F51: ='Expenses & Summary'!G101 -> 0 | G51: ='Expenses & Summary'!H101 -> 0
C52: ='Expenses & Summary'!F102 ->  | F52: ='Expenses & Summary'!G102 -> 0 | G52: ='Expenses & Summary'!H102 -> 0
C53: ='Expenses & Summary'!F103 ->  | F53: ='Expenses & Summary'!G103 -> 0 | G53: ='Expenses & Summary'!H103 -> 0
C54: Total | F54: =SUM(F44:F53) -> 0 | G54: =SUM(G44:G53) -> 0
B58: The F&A split including the Research Clusters listed above is approved.
C62: Vice Chancellor, REDE | F62: Date

Sheet Vars
C1: Budget Period (Sheet) | AD1: This array takes values from the pivot table (on Pivot Table Tab) and adds F&A as approriate. Some lines in the pivot | AM1: This array - called CategoryArray - is copy linked from the Expenses and Summary Tab.
C2: =SheetY1 -> FY 18-19 | D2: =SheetY2 -> FY 19-20 | E2: =SheetY3 -> FY 20-21 | F2: =SheetY4 -> FY 21-22 | G2: =SheetY5 -> FY 22-23 | H2: =SheetY6 -> FY 23-24 | I2: =SheetY7 -> FY 24-25 | L2: Variables - Update Values Below When Needed | R2: Calculation Tables - Do Not Edit | AD2: table are grouped in the array below (Contracted Services & Other) to exempt some lines from F&A. | AM2: Y1 | AN2: Y2 | AO2: Y3 | AP2: Y4 | AQ2: Y5 | AR2: ='Expenses & Summary'!G6 -> Total | AS2: ='Expenses & Summary'!H6 -> Notes | AT2: ='Expenses & Summary'!I6 -> 0 | AU2: ='Expenses & Summary'!J6 -> 0 | AV2: ='Expenses & Summary'!K6 -> Expense Category
A3: Subcode | B3: Personnel Type | C3: 1 | D3: 2 | E3: 3 | F3: 4 | G3: 5 | H3: 6 | I3: 6 | AM3: ='Expenses & Summary'!B7 -> 0 | AN3: ='Expenses & Summary'!C7 -> 0 | AO3: ='Expenses & Summary'!D7 -> 0 | AP3: ='Expenses & Summary'!E7 -> 0 | AQ3: ='Expenses & Summary'!F7 -> 0 | AR3: ='Expenses & Summary'!G7 -> 0 | AS3: ='Expenses & Summary'!H7 -> 0 | AT3: ='Expenses & Summary'!I7 ->  | AU3: ='Expenses & Summary'!J7 -> 0 | AV3: ='Expenses & Summary'!K7 -> 0
A4: 1 | B4: EHRA Employees & Faculty | C4: =FICA+EPARate+FringeWC+FringeUI -> 0.214 | D4: =C4+FringeInflation -> 0.219 | E4: 0.224 | F4: 0.229 | G4: 0.234 | H4: 0.239 | I4: 0.244 | AE4: Year 1 | AF4: Year 2 | AG4: Year 3 | AH4: Year 4 | AI4: Year 5 | AJ4: Total | AM4: ='Expenses & Summary'!B8 -> 0 | AN4: ='Expenses & Summary'!C8 -> 0 | AO4: ='Expenses & Summary'!D8 -> 0 | AP4: ='Expenses & Summary'!E8 -> 0 | AQ4: ='Expenses & Summary'!F8 -> 0 | AR4: ='Expenses & Summary'!G8 -> 0 | AS4: ='Expenses & Summary'!H8 -> 0 | AT4: ='Expenses & Summary'!I8 -> 0 | AU4: ='Expenses & Summary'!J8 -> 0 | AV4: ='Expenses & Summary'!K8 -> 1
A5: 2 | B5: EHRA Summer Compensation | C5: =FICA+EPARate+FringeWC+FringeUI -> 0.214 | D5: 0.219 | E5: 0.224 | F5: 0.229 | G5: 0.234 | H5: 0.239 | I5: 0.244 | L5: PostDoc Health Insurance | R5: Inflation | AD5: =R63 -> Salary & Fringe | AE5: ='Pivot Tables'!C6*(1+FARateY1) -> 0 | AF5: ='Pivot Tables'!D6*(1+FARateY2) -> 0 | AG5: ='Pivot Tables'!E6*(1+FARateY3) -> 0 | AH5: ='Pivot Tables'!F6*(1+FARateY4) -> 0 | AI5: ='Pivot Tables'!G6*(1+FARateY5) -> 0 | AJ5: =SUM(AE5:AI5) -> 0 | AM5: ='Expenses & Summary'!B9 -> 0 | AN5: ='Expenses & Summary'!C9 -> 0 | AO5: ='Expenses & Summary'!D9 -> 0 | AP5: ='Expenses & Summary'!E9 -> 0 | AQ5: ='Expenses & Summary'!F9 -> 0 | AR5: ='Expenses & Summary'!G9 -> 0 | AS5: ='Expenses & Summary'!H9 -> 0 | AT5: ='Expenses & Summary'!I9 -> 0 | AU5: ='Expenses & Summary'!J9 -> 0 | AV5: ='Expenses & Summary'!K9 -> 1
A6: 3 | B6: SHRA/CSS Staff | C6: =FICA+SPARate+FringeWC+FringeUI -> 0.2659 | D6: 0.2709 | E6: 0.2759 | F6: 0.2809 | G6: 0.2859 | H6: 0.2909 | I6: 0.2959 | L6: Monthly Premium | N6: 328.23 | R6: =1 -> 1 | S6: This array calculates out year inflation rates to | AD6: =R64 -> Equipment | AE6: ='Pivot Tables'!C7*IF(RateBase="TDC - Total Direct Costs",1+FARateY1,1) -> 0 | AF6: ='Pivot Tables'!D7*IF(RateBase="TDC - Total Direct Costs",1+FARateY2,1) -> 0 | AG6: ='Pivot Tables'!E7*IF(RateBase="TDC - Total Direct Costs",1+FARateY3,1) -> 0 | AH6: ='Pivot Tables'!F7*IF(RateBase="TDC - Total Direct Costs",1+FARateY4,1) -> 0 | AI6: ='Pivot Tables'!G7*IF(RateBase="TDC - Total Direct Costs",1+FARateY5,1) -> 0 | AJ6: 0 | AM6: ='Expenses & Summary'!B10 -> 0 | AN6: ='Expenses & Summary'!C10 -> 0 | AO6: ='Expenses & Summary'!D10 -> 0 | AP6: ='Expenses & Summary'!E10 -> 0 | AQ6: ='Expenses & Summary'!F10 -> 0 | AR6: ='Expenses & Summary'!G10 -> 0 | AS6: ='Expenses & Summary'!H10 -> 0 | AT6: ='Expenses & Summary'!I10 -> 0 | AU6: ='Expenses & Summary'!J10 -> 0 | AV6: ='Expenses & Summary'!K10 -> 1
A7: 4 | B7: Hourly/Temporary/Undergraduates | C7: =FICA+FringeWC+FringeUI -> 0.0815 | D7: 0.0815 | E7: 0.0815 | F7: 0.0815 | G7: 0.0815 | H7: 0.0815 | I7: 0.0815 | L7: Annual Premium | N7: =N6*12 -> 3939 | R7: =R6*(1+Inflation) -> 1.03 | S7: populate InflaitonY2, Inflation Y2, etc. | AD7: =R65 -> Supplies | AE7: ='Pivot Tables'!C8*(1+FARateY1) -> 0 | AF7: ='Pivot Tables'!D8*(1+FARateY2) -> 0 | AG7: ='Pivot Tables'!E8*(1+FARateY3) -> 0 | AH7: ='Pivot Tables'!F8*(1+FARateY4) -> 0 | AI7: ='Pivot Tables'!G8*(1+FARateY5) -> 0 | AJ7: 0 | AM7: ='Expenses & Summary'!B11 -> 0 | AN7: ='Expenses & Summary'!C11 -> 0 | AO7: ='Expenses & Summary'!D11 -> 0 | AP7: ='Expenses & Summary'!E11 -> 0 | AQ7: ='Expenses & Summary'!F11 -> 0 | AR7: ='Expenses & Summary'!G11 -> 0 | AS7: ='Expenses & Summary'!H11 -> 0 | AT7: ='Expenses & Summary'!I11 -> 0 | AU7: ='Expenses & Summary'!J11 -> 0 | AV7: ='Expenses & Summary'!K11 -> 1
A8: 5 | B8: Post Doctoral Associates | C8: 0.0815 | D8: 0.0815 | E8: 0.0815 | F8: 0.0815 | G8: 0.0815 | H8: 0.0815 | I8: 0.0815 | L8: Student Health Fee | R8: =R7*(1+Inflation) -> 1.0609 | AD8: =R66 -> Travel & Meetings | AE8: ='Pivot Tables'!C9*(1+FARateY1) -> 0 | AF8: ='Pivot Tables'!D9*(1+FARateY2) -> 0 | AG8: ='Pivot Tables'!E9*(1+FARateY3) -> 0 | AH8: ='Pivot Tables'!F9*(1+FARateY4) -> 0 | AI8: ='Pivot Tables'!G9*(1+FARateY5) -> 0 | AJ8: 0 | AM8: ='Expenses & Summary'!B12 -> 0 | AN8: ='Expenses & Summary'!C12 -> 0 | AO8: ='Expenses & Summary'!D12 -> 0 | AP8: ='Expenses & Summary'!E12 -> 0 | AQ8: ='Expenses & Summary'!F12 -> 0 | AR8: ='Expenses & Summary'!G12 -> 0 | AS8: ='Expenses & Summary'!H12 -> 0 | AT8: ='Expenses & Summary'!I12 -> 0 | AU8: ='Expenses & Summary'!J12 -> 0 | AV8: ='Expenses & Summary'!K12 -> 1
A9: 6 | B9: Graduate Student | C9: 0.0815 | D9: 0.0815 | E9: 0.0815 | F9: 0.0815 | G9: 0.0815 | H9: 0.0815 | I9: 0.0815 | M9: Fall | N9: =26.25*4.5 -> 118 | R9: =R8*(1+Inflation) -> 1.0927 | AD9: =R67 -> Contracted Services | AE9: ='Pivot Tables'!C10*(1+FARateY1)+('Pivot Tables'!C11*IF(RateBase="TDC - Total Direct Costs",1+FARateY1,1)) -> 0 | AF9: ='Pivot Tables'!D10*(1+FARateY2)+('Pivot Tables'!D11*IF(RateBase="TDC - Total Direct Costs",1+FARateY2,1)) -> 0 | AG9: ='Pivot Tables'!E10*(1+FARateY3)+('Pivot Tables'!E11*IF(RateBase="TDC - Total Direct Costs",1+FARateY3,1)) -> 0 | AH9: ='Pivot Tables'!F10*(1+FARateY4)+('Pivot Tables'!F11*IF(RateBase="TDC - Total Direct Costs",1+FARateY4,1)) -> 0 | AI9: ='Pivot Tables'!G10*(1+FARateY5)+('Pivot Tables'!G11*IF(RateBase="TDC - Total Direct Costs",1+FARateY5,1)) -> 0 | AJ9: 0 | AM9: ='Expenses & Summary'!B13 -> 0 | AN9: ='Expenses & Summary'!C13 -> 0 | AO9: ='Expenses & Summary'!D13 -> 0 | AP9: ='Expenses & Summary'!E13 -> 0 | AQ9: ='Expenses & Summary'!F13 -> 0 | AR9: ='Expenses & Summary'!G13 -> 0 | AS9: ='Expenses & Summary'!H13 -> 0 | AT9: ='Expenses & Summary'!I13 -> 0 | AU9: ='Expenses & Summary'!J13 -> 0 | AV9: ='Expenses & Summary'!K13 -> 1
M10: Spring | N10: =26.25*4.5 -> 118 | R10: =R9*(1+Inflation) -> 1.1255 | S10: Inflation precision should remain expanded to insure accurate calculation. | AD10: =R69 -> Participant Support | AE10: ='Pivot Tables'!C12*IF(RateBase="TDC - Total Direct Costs",1+FARateY1,1) -> 0 | AF10: ='Pivot Tables'!D12*IF(RateBase="TDC - Total Direct Costs",1+FARateY2,1) -> 0 | AG10: ='Pivot Tables'!E12*IF(RateBase="TDC - Total Direct Costs",1+FARateY3,1) -> 0 | AH10: ='Pivot Tables'!F12*IF(RateBase="TDC - Total Direct Costs",1+FARateY4,1) -> 0 | AI10: ='Pivot Tables'!G12*IF(RateBase="TDC - Total Direct Costs",1+FARateY5,1) -> 0 | AJ10: 0 | AM10: ='Expenses & Summary'!B14 -> 0 | AN10: ='Expenses & Summary'!C14 -> 0 | AO10: ='Expenses & Summary'!D14 -> 0 | AP10: ='Expenses & Summary'!E14 -> 0 | AQ10: ='Expenses & Summary'!F14 -> 0 | AR10: ='Expenses & Summary'!G14 -> 0 | AS10: ='Expenses & Summary'!H14 -> 0 | AT10: ='Expenses & Summary'!I14 -> 0 | AU10: ='Expenses & Summary'!J14 -> 0 | AV10: ='Expenses & Summary'!K14 -> 0
M11: Summer | N11: =26.25*3 -> 79 | AD11: =R70 -> Tuition & Fees | AE11: ='Pivot Tables'!C13*IF(RateBase="TDC - Total Direct Costs",1+FARateY1,1) -> 0 | AF11: ='Pivot Tables'!D13*IF(RateBase="TDC - Total Direct Costs",1+FARateY2,1) -> 0 | AG11: ='Pivot Tables'!E13*IF(RateBase="TDC - Total Direct Costs",1+FARateY3,1) -> 0 | AH11: ='Pivot Tables'!F13*IF(RateBase="TDC - Total Direct Costs",1+FARateY4,1) -> 0 | AI11: ='Pivot Tables'!G13*IF(RateBase="TDC - Total Direct Costs",1+FARateY5,1) -> 0 | AJ11: 0 | AM11: ='Expenses & Summary'!B15 -> 0 | AN11: ='Expenses & Summary'!C15 -> 0 | AO11: ='Expenses & Summary'!D15 -> 0 | AP11: ='Expenses & Summary'!E15 -> 0 | AQ11: ='Expenses & Summary'!F15 -> 0 | AR11: ='Expenses & Summary'!G15 -> 0 | AS11: ='Expenses & Summary'!H15 -> 0 | AT11: ='Expenses & Summary'!I15 -> 0 | AU11: ='Expenses & Summary'!J15 -> 0 | AV11: ='Expenses & Summary'!K15 -> 0
N12: =SUM(N7:N11) -> 4254 | AD12: =R71 -> Other | AE12: ='Pivot Tables'!C14*(1+FARateY1)+'Pivot Tables'!C15*IF(RateBase="TDC - Total Direct Costs",1+FARateY1,1) -> 0 | AF12: ='Pivot Tables'!D14*(1+FARateY2)+'Pivot Tables'!D15*IF(RateBase="TDC - Total Direct Costs",1+FARateY2,1) -> 0 | AG12: ='Pivot Tables'!E14*(1+FARateY3)+'Pivot Tables'!E15*IF(RateBase="TDC - Total Direct Costs",1+FARateY3,1) -> 0 | AH12: ='Pivot Tables'!F14*(1+FARateY4)+'Pivot Tables'!F15*IF(RateBase="TDC - Total Direct Costs",1+FARateY4,1) -> 0 | AI12: ='Pivot Tables'!G14*(1+FARateY5)+'Pivot Tables'!G15*IF(RateBase="TDC - Total Direct Costs",1+FARateY5,1) -> 0 | AJ12: 0 | AM12: ='Expenses & Summary'!B16 -> 0 | AN12: ='Expenses & Summary'!C16 -> 0 | AO12: ='Expenses & Summary'!D16 -> 0 | AP12: ='Expenses & Summary'!E16 -> 0 | AQ12: ='Expenses & Summary'!F16 -> 0 | AR12: ='Expenses & Summary'!G16 -> 0 | AS12: ='Expenses & Summary'!H16 -> 0 | AT12: ='Expenses & Summary'!I16 -> 0 | AU12: ='Expenses & Summary'!J16 -> 0 | AV12: ='Expenses & Summary'!K16 -> 1
AD13: Total | AE13: =SUM(AE5:AE12) -> 0 | AF13: =SUM(AF5:AF12) -> 0 | AG13: =SUM(AG5:AG12) -> 0 | AH13: =SUM(AH5:AH12) -> 0 | AI13: =SUM(AI5:AI12) -> 0 | AJ13: 0 | AM13: ='Expenses & Summary'!B17 -> 0 | AN13: ='Expenses & Summary'!C17 -> 0 | AO13: ='Expenses & Summary'!D17 -> 0 | AP13: ='Expenses & Summary'!E17 -> 0 | AQ13: ='Expenses & Summary'!F17 -> 0 | AR13: ='Expenses & Summary'!G17 -> 0 | AS13: ='Expenses & Summary'!H17 -> 0 | AT13: ='Expenses & Summary'!I17 -> 0 | AU13: ='Expenses & Summary'!J17 -> 0 | AV13: ='Expenses & Summary'!K17 -> 0
L14: Graduate Tuition | R14: Select | S14: Select | T14: These two arrays populate PickLists for | AM14: ='Expenses & Summary'!B18 -> 0 | AN14: ='Expenses & Summary'!C18 -> 0 | AO14: ='Expenses & Summary'!D18 -> 0 | AP14: ='Expenses & Summary'!E18 -> 0 | AQ14: ='Expenses & Summary'!F18 -> 0 | AR14: ='Expenses & Summary'!G18 -> 0 | AS14: ='Expenses & Summary'!H18 -> 0 | AT14: ='Expenses & Summary'!I18 -> 0 | AU14: ='Expenses & Summary'!J18 -> 0 | AV14: ='Expenses & Summary'!K18 -> 0
L15: Tution | N15: =2374.5*2 -> 4749 | R15: Masters | S15: 9-Month | T15: the personnel screen | AD15: Totals From Summary Sheet | AE15: ='Expenses & Summary'!B76 -> 0 | AF15: ='Expenses & Summary'!C76 -> 0 | AG15: ='Expenses & Summary'!D76 -> 0 | AH15: ='Expenses & Summary'!E76 -> 0 | AI15: ='Expenses & Summary'!F76 -> 0 | AJ15: ='Expenses & Summary'!G76 -> 0 | AM15: ='Expenses & Summary'!B19 -> 0 | AN15: ='Expenses & Summary'!C19 -> 0 | AO15: ='Expenses & Summary'!D19 -> 0 | AP15: ='Expenses & Summary'!E19 -> 0 | AQ15: ='Expenses & Summary'!F19 -> 0 | AR15: ='Expenses & Summary'!G19 -> 0 | AS15: ='Expenses & Summary'!H19 -> 0 | AT15: ='Expenses & Summary'!I19 -> 0 | AU15: ='Expenses & Summary'!J19 -> 0 | AV15: ='Expenses & Summary'!K19 -> 0
A16: Code: | B16: Rates Description: | C16: Rates | L16: University Fees | N16: =1001.5*2 -> 2003 | R16: PhD | S16: 12-Month | AD16: (For error detection) | AM16: ='Expenses & Summary'!B20 -> 0 | AN16: ='Expenses & Summary'!C20 -> 0 | AO16: ='Expenses & Summary'!D20 -> 0 | AP16: ='Expenses & Summary'!E20 -> 0 | AQ16: ='Expenses & Summary'!F20 -> 0 | AR16: ='Expenses & Summary'!G20 -> 0 | AS16: ='Expenses & Summary'!H20 -> 0 | AT16: ='Expenses & Summary'!I20 ->  | AU16: ='Expenses & Summary'!J20 -> 0 | AV16: ='Expenses & Summary'!K20 -> 3
C17: =SheetY1 -> FY 18-19 | D17: =SheetY2 -> FY 19-20 | E17: =SheetY3 -> FY 20-21 | F17: =SheetY4 -> FY 21-22 | G17: =SheetY5 -> FY 22-23 | H17: =SheetY6 -> FY 23-24 | I17: =SheetY7 -> FY 24-25 | L17: Tech Fee | N17: =197.5*2 -> 395 | AM17: ='Expenses & Summary'!B21 -> 0 | AN17: ='Expenses & Summary'!C21 -> 0 | AO17: ='Expenses & Summary'!D21 -> 0 | AP17: ='Expenses & Summary'!E21 -> 0 | AQ17: ='Expenses & Summary'!F21 -> 0 | AR17: ='Expenses & Summary'!G21 -> 0 | AS17: ='Expenses & Summary'!H21 -> 0 | AT17: ='Expenses & Summary'!I21 -> 0 | AU17: ='Expenses & Summary'!J21 -> 0 | AV17: ='Expenses & Summary'!K21 -> 3
A18: 1 | B18: Research (On-Campus) - 47.5% | C18: 0.475 | D18: 0.475 | E18: 0.475 | F18: 0.475 | G18: 0.475 | H18: 0.475 | I18: 0.475 | L18: Health Service | N18: =131.5*2 -> 263 | AM18: ='Expenses & Summary'!B22 -> 0 | AN18: ='Expenses & Summary'!C22 -> 0 | AO18: ='Expenses & Summary'!D22 -> 0 | AP18: ='Expenses & Summary'!E22 -> 0 | AQ18: ='Expenses & Summary'!F22 -> 0 | AR18: ='Expenses & Summary'!G22 -> 0 | AS18: ='Expenses & Summary'!H22 -> 0 | AT18: ='Expenses & Summary'!I22 -> 0 | AU18: ='Expenses & Summary'!J22 -> 0 | AV18: ='Expenses & Summary'!K22 -> 3
A19: 2 | B19: Research (Off-Campus Adjacent) - 27.7% | C19: 0.277 | D19: 0.277 | E19: 0.277 | F19: 0.277 | G19: 0.277 | H19: 0.277 | I19: 0.277 | L19: Safety Fee | N19: =15*2 -> 30 | AM19: ='Expenses & Summary'!B23 -> 0 | AN19: ='Expenses & Summary'!C23 -> 0 | AO19: ='Expenses & Summary'!D23 -> 0 | AP19: ='Expenses & Summary'!E23 -> 0 | AQ19: ='Expenses & Summary'!F23 -> 0 | AR19: ='Expenses & Summary'!G23 -> 0 | AS19: ='Expenses & Summary'!H23 -> 0 | AT19: ='Expenses & Summary'!I23 -> 0 | AU19: ='Expenses & Summary'!J23 -> 0 | AV19: ='Expenses & Summary'!K23 -> 3
A20: 3 | B20: Instruction (On-Campus) - 50% | C20: 0.5 | D20: 0.5 | E20: 0.5 | F20: 0.5 | G20: 0.5 | H20: 0.5 | I20: 0.5 | L20: Total | N20: =SUM(N15:N19) -> 7440 | R20: Select | AM20: ='Expenses & Summary'!B24 -> 0 | AN20: ='Expenses & Summary'!C24 -> 0 | AO20: ='Expenses & Summary'!D24 -> 0 | AP20: ='Expenses & Summary'!E24 -> 0 | AQ20: ='Expenses & Summary'!F24 -> 0 | AR20: ='Expenses & Summary'!G24 -> 0 | AS20: ='Expenses & Summary'!H24 -> 0 | AT20: ='Expenses & Summary'!I24 ->  | AU20: ='Expenses & Summary'!J24 -> 0 | AV20: ='Expenses & Summary'!K24 -> 3
A21: 4 | B21: Other Activity (On-Campus) - 44.5% | C21: 0.445 | D21: 0.445 | E21: 0.445 | F21: 0.445 | G21: 0.445 | H21: 0.445 | I21: 0.445 | R21: =B4 -> EHRA Employees & Faculty | S21: =HealthInsurance -> 6104 | T21: =EPAFringY1 -> 0.214 | V21: This array populates a | AM21: ='Expenses & Summary'!B25 -> 0 | AN21: ='Expenses & Summary'!C25 -> 0 | AO21: ='Expenses & Summary'!D25 -> 0 | AP21: ='Expenses & Summary'!E25 -> 0 | AQ21: ='Expenses & Summary'!F25 -> 0 | AR21: ='Expenses & Summary'!G25 -> 0 | AS21: ='Expenses & Summary'!H25 -> 0 | AT21: ='Expenses & Summary'!I25 -> 0 | AU21: ='Expenses & Summary'!J25 -> 0 | AV21: ='Expenses & Summary'!K25 -> 3
A22: 5 | B22: Off-Campus (Remote-All Types) - 26% | C22: 0.26 | D22: 0.26 | E22: 0.26 | F22: 0.26 | G22: 0.26 | H22: 0.26 | I22: 0.26 | L22: PHD Candidate Insurance | N22: =1294*2 -> 2588 | R22: EHRA Summer Compensation | S22: 0 | T22: =SummerFringY1 -> 0.214 | V22: PickList for the GoalSeek | AM22: ='Expenses & Summary'!B26 -> 0 | AN22: ='Expenses & Summary'!C26 -> 0 | AO22: ='Expenses & Summary'!D26 -> 0 | AP22: ='Expenses & Summary'!E26 -> 0 | AQ22: ='Expenses & Summary'!F26 -> 0 | AR22: ='Expenses & Summary'!G26 -> 0 | AS22: ='Expenses & Summary'!H26 -> 0 | AT22: ='Expenses & Summary'!I26 -> 0 | AU22: ='Expenses & Summary'!J26 -> 0 | AV22: ='Expenses & Summary'!K26 -> 3
A23: 6 | B23: No F&A - 0% | C23: 0 | D23: 0 | E23: 0 | F23: 0 | G23: 0 | H23: 0 | I23: 0 | L23: Equal to normal student health insurance | R23: SHRA/CSS Staff | S23: =HealthInsurance -> 6104 | T23: =SPAFringeY1 -> 0.2659 | V23: tab. | AM23: ='Expenses & Summary'!B27 -> 0 | AN23: ='Expenses & Summary'!C27 -> 0 | AO23: ='Expenses & Summary'!D27 -> 0 | AP23: ='Expenses & Summary'!E27 -> 0 | AQ23: ='Expenses & Summary'!F27 -> 0 | AR23: ='Expenses & Summary'!G27 -> 0 | AS23: ='Expenses & Summary'!H27 -> 0 | AT23: ='Expenses & Summary'!I27 -> 0 | AU23: ='Expenses & Summary'!J27 -> 0 | AV23: ='Expenses & Summary'!K27 -> 3
A24: 7 | B24: Custom Rate - Enter Rate Here -----------> | C24: 0 | D24: 0 | E24: 0 | F24: 0 | G24: 0 | H24: 0 | I24: 0 | R24: Hourly/Temporary/Undergraduates | S24: 0 | T24: =FICA -> 0.0765 | AM24: ='Expenses & Summary'!B28 -> 0 | AN24: ='Expenses & Summary'!C28 -> 0 | AO24: ='Expenses & Summary'!D28 -> 0 | AP24: ='Expenses & Summary'!E28 -> 0 | AQ24: ='Expenses & Summary'!F28 -> 0 | AR24: ='Expenses & Summary'!G28 -> 0 | AS24: ='Expenses & Summary'!H28 -> 0 | AT24: ='Expenses & Summary'!I28 ->  | AU24: ='Expenses & Summary'!J28 -> 0 | AV24: ='Expenses & Summary'!K28 -> 3
A25: 8 | B25: % of Total Costs - Enter Percent Here -----------> | R25: Post Doctoral Associates | S25: =PostDocIns -> 4254 | T25: =FICA -> 0.0765 | AM25: ='Expenses & Summary'!B29 -> 0 | AN25: ='Expenses & Summary'!C29 -> 0 | AO25: ='Expenses & Summary'!D29 -> 0 | AP25: ='Expenses & Summary'!E29 -> 0 | AQ25: ='Expenses & Summary'!F29 -> 0 | AR25: ='Expenses & Summary'!G29 -> 0 | AS25: ='Expenses & Summary'!H29 -> 0 | AT25: ='Expenses & Summary'!I29 -> 0 | AU25: ='Expenses & Summary'!J29 -> 0 | AV25: ='Expenses & Summary'!K29 -> 0
L26: NIH Salary Cap | N26: 192300 | R26: Graduate Student | S26: =PHDIns -> 2588 | T26: =FICA -> 0.0765 | AM26: ='Expenses & Summary'!B30 -> 0 | AN26: ='Expenses & Summary'!C30 -> 0 | AO26: ='Expenses & Summary'!D30 -> 0 | AP26: ='Expenses & Summary'!E30 -> 0 | AQ26: ='Expenses & Summary'!F30 -> 0 | AR26: ='Expenses & Summary'!G30 -> 0 | AS26: ='Expenses & Summary'!H30 -> 0 | AT26: ='Expenses & Summary'!I30 -> 0 | AU26: ='Expenses & Summary'!J30 -> 0 | AV26: ='Expenses & Summary'!K30 -> 0
B27: Rate Base Options | F27: A custom F&A rate requires either a published sponsor policy or an F&A waiver. E-mail ora@ecu.edu at the beginning of budget preparation. | AM27: ='Expenses & Summary'!B31 -> 0 | AN27: ='Expenses & Summary'!C31 -> 0 | AO27: ='Expenses & Summary'!D31 -> 0 | AP27: ='Expenses & Summary'!E31 -> 0 | AQ27: ='Expenses & Summary'!F31 -> 0 | AR27: ='Expenses & Summary'!G31 -> 0 | AS27: ='Expenses & Summary'!H31 -> 0 | AT27: ='Expenses & Summary'!I31 -> 0 | AU27: ='Expenses & Summary'!J31 -> 0 | AV27: ='Expenses & Summary'!K31 -> 4
B28: MTDC - Modified Total Direct Costs | L28: Fringe Benefit Rates | AM28: ='Expenses & Summary'!B32 -> 0 | AN28: ='Expenses & Summary'!C32 -> 0 | AO28: ='Expenses & Summary'!D32 -> 0 | AP28: ='Expenses & Summary'!E32 -> 0 | AQ28: ='Expenses & Summary'!F32 -> 0 | AR28: ='Expenses & Summary'!G32 -> 0 | AS28: ='Expenses & Summary'!H32 -> 0 | AT28: ='Expenses & Summary'!I32 -> 0 | AU28: ='Expenses & Summary'!J32 -> 0 | AV28: ='Expenses & Summary'!K32 -> 4
B29: TDC - Total Direct Costs | L29: FICA | N29: 0.0765 | AM29: ='Expenses & Summary'!B33 -> 0 | AN29: ='Expenses & Summary'!C33 -> 0 | AO29: ='Expenses & Summary'!D33 -> 0 | AP29: ='Expenses & Summary'!E33 -> 0 | AQ29: ='Expenses & Summary'!F33 -> 0 | AR29: ='Expenses & Summary'!G33 -> 0 | AS29: ='Expenses & Summary'!H33 -> 0 | AT29: ='Expenses & Summary'!I33 -> 0 | AU29: ='Expenses & Summary'!J33 -> 0 | AV29: ='Expenses & Summary'!K33 -> 0
B30: Other Base - See Worksheet Below Instructions | F30: A 0% F&A rate requires either a published sponsor policy or an F&A waiver. E-mail ora@ecu.edu at the beginning of budget preparation. | L30: EPA Retirement | N30: 0.1325 | R30: Code | S30: Fiscal Year | T30: Code | U30: Rate Column | W30: These two arrays contain FYLookUp and FYLookUp2. | AM30: ='Expenses & Summary'!B34 -> 0 | AN30: ='Expenses & Summary'!C34 -> 0 | AO30: ='Expenses & Summary'!D34 -> 0 | AP30: ='Expenses & Summary'!E34 -> 0 | AQ30: ='Expenses & Summary'!F34 -> 0 | AR30: ='Expenses & Summary'!G34 -> 0 | AS30: ='Expenses & Summary'!H34 -> 0 | AT30: ='Expenses & Summary'!I34 -> 0 | AU30: ='Expenses & Summary'!J34 -> 0 | AV30: ='Expenses & Summary'!K34 -> 0
L31: SPA/CSS Retirement | N31: 0.1844 | R31: 1 | S31: =SheetY1 -> FY 18-19 | T31: 1 | U31: 2 | W31: It converts the Initial Fiscal Year selected on the | AM31: ='Expenses & Summary'!B35 -> 0 | AN31: ='Expenses & Summary'!C35 -> 0 | AO31: ='Expenses & Summary'!D35 -> 0 | AP31: ='Expenses & Summary'!E35 -> 0 | AQ31: ='Expenses & Summary'!F35 -> 0 | AR31: ='Expenses & Summary'!G35 -> 0 | AS31: ='Expenses & Summary'!H35 -> 0 | AT31: ='Expenses & Summary'!I35 -> 0 | AU31: ='Expenses & Summary'!J35 -> 0 | AV31: ='Expenses & Summary'!K35 -> 9
L32: State Health Insurance | N32: 6104 | R32: 2 | S32: =SheetY2 -> FY 19-20 | T32: 2 | U32: 3 | W32: Start tab into a two digit code that can be easily | AM32: ='Expenses & Summary'!B36 -> 0 | AN32: ='Expenses & Summary'!C36 -> 0 | AO32: ='Expenses & Summary'!D36 -> 0 | AP32: ='Expenses & Summary'!E36 -> 0 | AQ32: ='Expenses & Summary'!F36 -> 0 | AR32: ='Expenses & Summary'!G36 -> 0 | AS32: ='Expenses & Summary'!H36 -> 0 | AT32: ='Expenses & Summary'!I36 -> 0 | AU32: ='Expenses & Summary'!J36 -> 0 | AV32: ='Expenses & Summary'!K36 -> 4
B33: Research Cluster (Choose from List) | C33: Cluster F&A Fund | F33: Use of an Off-Campus Rate requires approval of the Office of Research Administration. E-mail ora@ecu.edu at the beginning of budget preparation. | L33: Allowance for Worker's Compensation | N33: 0.0025 | R33: 3 | S33: =SheetY3 -> FY 20-21 | T33: 3 | U33: 4 | W33: incremented (+1) and then converts the increments | AM33: ='Expenses & Summary'!B37 -> 0 | AN33: ='Expenses & Summary'!C37 -> 0 | AO33: ='Expenses & Summary'!D37 -> 0 | AP33: ='Expenses & Summary'!E37 -> 0 | AQ33: ='Expenses & Summary'!F37 -> 0 | AR33: ='Expenses & Summary'!G37 -> 0 | AS33: ='Expenses & Summary'!H37 -> 0 | AT33: ='Expenses & Summary'!I37 -> 0 | AU33: ='Expenses & Summary'!J37 -> 0 | AV33: ='Expenses & Summary'!K37 -> 9
B34: Big Data & Analytics Cluster | C34: 121450 | L34: Allowance for Unemployment Insurance | N34: 0.0025 | R34: 4 | S34: =SheetY4 -> FY 21-22 | T34: 4 | U34: 5 | W34: into FY2, FY3, FY4, etc. | AM34: ='Expenses & Summary'!B38 -> 0 | AN34: ='Expenses & Summary'!C38 -> 0 | AO34: ='Expenses & Summary'!D38 -> 0 | AP34: ='Expenses & Summary'!E38 -> 0 | AQ34: ='Expenses & Summary'!F38 -> 0 | AR34: ='Expenses & Summary'!G38 -> 0 | AS34: ='Expenses & Summary'!H38 -> 0 | AT34: ='Expenses & Summary'!I38 -> 0 | AU34: ='Expenses & Summary'!J38 -> 0 | AV34: ='Expenses & Summary'!K38 -> 4
B35: Bio-Med Sciences & Engineering Cluster | L35: Annual Fringe Inflation Rate (Retirement Only) | N35: 0.005 | R35: 5 | S35: =SheetY5 -> FY 22-23 | T35: 5 | U35: 6 | AM35: ='Expenses & Summary'!B39 -> 0 | AN35: ='Expenses & Summary'!C39 -> 0 | AO35: ='Expenses & Summary'!D39 -> 0 | AP35: ='Expenses & Summary'!E39 -> 0 | AQ35: ='Expenses & Summary'!F39 -> 0 | AR35: ='Expenses & Summary'!G39 -> 0 | AS35: ='Expenses & Summary'!H39 -> 0 | AT35: ='Expenses & Summary'!I39 -> 0 | AU35: ='Expenses & Summary'!J39 -> 0 | AV35: ='Expenses & Summary'!K39 -> 5
B36: Marine and Coastal Systems Cluster | C36: 121250 | F36: If F&A is capped at a % of Total Project Budget, the F&A rate will equal: Allowed F&A % divided by (1 minus Allowed F&A %). Based the entry above, the spreadsheet will use this rate -------> | R36: 6 | S36: =SheetY6 -> FY 23-24 | T36: 6 | U36: 7 | AM36: ='Expenses & Summary'!B40 -> 0 | AN36: ='Expenses & Summary'!C40 -> 0 | AO36: ='Expenses & Summary'!D40 -> 0 | AP36: ='Expenses & Summary'!E40 -> 0 | AQ36: ='Expenses & Summary'!F40 -> 0 | AR36: ='Expenses & Summary'!G40 -> 0 | AS36: ='Expenses & Summary'!H40 -> 0 | AT36: ='Expenses & Summary'!I40 -> 0 | AU36: ='Expenses & Summary'!J40 -> 0 | AV36: ='Expenses & Summary'!K40 -> 5
B37: Health Behavior Cluster | C37: 121050 | R37: 7 | S37: =SheetY7 -> FY 24-25 | T37: 7 | U37: 8 | AM37: ='Expenses & Summary'!B41 -> 0 | AN37: ='Expenses & Summary'!C41 -> 0 | AO37: ='Expenses & Summary'!D41 -> 0 | AP37: ='Expenses & Summary'!E41 -> 0 | AQ37: ='Expenses & Summary'!F41 -> 0 | AR37: ='Expenses & Summary'!G41 -> 0 | AS37: ='Expenses & Summary'!H41 -> 0 | AT37: ='Expenses & Summary'!I41 -> 0 | AU37: ='Expenses & Summary'!J41 -> 0 | AV37: ='Expenses & Summary'!K41 -> 7
B38: Human Health and Disease Cluster | C38: 121750 | L38: Available Fiscal Years | R38: 8 | S38: Beyond End of Sheet | T38: 8 | U38: 9 | AM38: ='Expenses & Summary'!B42 -> 0 | AN38: ='Expenses & Summary'!C42 -> 0 | AO38: ='Expenses & Summary'!D42 -> 0 | AP38: ='Expenses & Summary'!E42 -> 0 | AQ38: ='Expenses & Summary'!F42 -> 0 | AR38: ='Expenses & Summary'!G42 -> 0 | AS38: ='Expenses & Summary'!H42 -> 0 | AT38: ='Expenses & Summary'!I42 -> 0 | AU38: ='Expenses & Summary'!J42 -> 0 | AV38: ='Expenses & Summary'!K42 -> 9
B39: Natural Resources & the Environment | C39: 121550 | M39: FY 18-19 | R39: 9 | S39: Beyond End of Sheet | T39: 9 | U39: 10 | AM39: ='Expenses & Summary'!B43 -> 0 | AN39: ='Expenses & Summary'!C43 -> 0 | AO39: ='Expenses & Summary'!D43 -> 0 | AP39: ='Expenses & Summary'!E43 -> 0 | AQ39: ='Expenses & Summary'!F43 -> 0 | AR39: ='Expenses & Summary'!G43 -> 0 | AS39: ='Expenses & Summary'!H43 -> 0 | AT39: ='Expenses & Summary'!I43 -> 0 | AU39: ='Expenses & Summary'!J43 -> 0 | AV39: ='Expenses & Summary'!K43 -> 9
B40: Precision Health Cluster | C40: 121650 | M40: FY 19-20 | AM40: ='Expenses & Summary'!B44 -> 0 | AN40: ='Expenses & Summary'!C44 -> 0 | AO40: ='Expenses & Summary'!D44 -> 0 | AP40: ='Expenses & Summary'!E44 -> 0 | AQ40: ='Expenses & Summary'!F44 -> 0 | AR40: ='Expenses & Summary'!G44 -> 0 | AS40: ='Expenses & Summary'!H44 -> 0 | AT40: ='Expenses & Summary'!I44 -> 0 | AU40: ='Expenses & Summary'!J44 -> 0 | AV40: ='Expenses & Summary'!K44 -> 9
B41: STEAM Education Cluster | C41: 121150 | M41: FY 20-21 | R41: Fiscal Year 1 | S41: =VLOOKUP(InitialFY,FYLookUp2,2,1) -> 1 | T41: =VLOOKUP(S41,FYLookUp,2,1) -> FY 18-19 | W41: The references to FY_1, FY_2, etc are here | AM41: ='Expenses & Summary'!B45 -> 0 | AN41: ='Expenses & Summary'!C45 -> 0 | AO41: ='Expenses & Summary'!D45 -> 0 | AP41: ='Expenses & Summary'!E45 -> 0 | AQ41: ='Expenses & Summary'!F45 -> 0 | AR41: ='Expenses & Summary'!G45 -> 0 | AS41: ='Expenses & Summary'!H45 -> 0 | AT41: ='Expenses & Summary'!I45 -> 0 | AU41: ='Expenses & Summary'!J45 -> 0 | AV41: ='Expenses & Summary'!K45 -> 4
M42: FY 21-22 | R42: Fiscal Year 2 | S42: =S41+1 -> 2 | T42: FY 19-20 | AM42: ='Expenses & Summary'!B46 -> 0 | AN42: ='Expenses & Summary'!C46 -> 0 | AO42: ='Expenses & Summary'!D46 -> 0 | AP42: ='Expenses & Summary'!E46 -> 0 | AQ42: ='Expenses & Summary'!F46 -> 0 | AR42: ='Expenses & Summary'!G46 -> 0 | AS42: ='Expenses & Summary'!H46 -> 0 | AT42: ='Expenses & Summary'!I46 -> 0 | AU42: ='Expenses & Summary'!J46 -> 0 | AV42: ='Expenses & Summary'!K46 -> 9
M43: FY 22-23 | R43: Fiscal Year 3 | S43: 3 | T43: FY 20-21 | AM43: ='Expenses & Summary'!B47 -> 0 | AN43: ='Expenses & Summary'!C47 -> 0 | AO43: ='Expenses & Summary'!D47 -> 0 | AP43: ='Expenses & Summary'!E47 -> 0 | AQ43: ='Expenses & Summary'!F47 -> 0 | AR43: ='Expenses & Summary'!G47 -> 0 | AS43: ='Expenses & Summary'!H47 -> 0 | AT43: ='Expenses & Summary'!I47 -> 0 | AU43: ='Expenses & Summary'!J47 -> 0 | AV43: ='Expenses & Summary'!K47 -> 9
M44: FY 23-24 | R44: Fiscal Year 4 | S44: 4 | T44: FY 21-22 | AM44: ='Expenses & Summary'!B48 -> 0 | AN44: ='Expenses & Summary'!C48 -> 0 | AO44: ='Expenses & Summary'!D48 -> 0 | AP44: ='Expenses & Summary'!E48 -> 0 | AQ44: ='Expenses & Summary'!F48 -> 0 | AR44: ='Expenses & Summary'!G48 -> 0 | AS44: ='Expenses & Summary'!H48 -> 0 | AT44: ='Expenses & Summary'!I48 -> 0 | AU44: ='Expenses & Summary'!J48 -> 0 | AV44: ='Expenses & Summary'!K48 -> 9
B45: Affiliated Center (Choose from List) | C45: Center F&A Fund | D45: <--This range is called FACenters | M45: FY 24-25 | R45: Fiscal Year 5 | S45: 5 | T45: FY 22-23 | AM45: ='Expenses & Summary'!B49 -> 0 | AN45: ='Expenses & Summary'!C49 -> 0 | AO45: ='Expenses & Summary'!D49 -> 0 | AP45: ='Expenses & Summary'!E49 -> 0 | AQ45: ='Expenses & Summary'!F49 -> 0 | AR45: ='Expenses & Summary'!G49 -> 0 | AS45: ='Expenses & Summary'!H49 -> 0 | AT45: ='Expenses & Summary'!I49 -> 0 | AU45: ='Expenses & Summary'!J49 -> 0 | AV45: ='Expenses & Summary'!K49 -> 9
B46: Center for Health Disparities | C46: 888001 | L46: Change these to revise range of years used in the spreadsheet. | R46: Fiscal Year 6 | S46: 6 | T46: FY 23-24 | AM46: ='Expenses & Summary'!B50 -> 0 | AN46: ='Expenses & Summary'!C50 -> 0 | AO46: ='Expenses & Summary'!D50 -> 0 | AP46: ='Expenses & Summary'!E50 -> 0 | AQ46: ='Expenses & Summary'!F50 -> 0 | AR46: ='Expenses & Summary'!G50 -> 0 | AS46: ='Expenses & Summary'!H50 -> 0 | AT46: ='Expenses & Summary'!I50 -> 0 | AU46: ='Expenses & Summary'!J50 -> 0 | AV46: ='Expenses & Summary'!K50 -> 0
B47: Center for Natural Hazards Research | C47: 888002 | R47: Fiscal Year 7 | S47: 7 | T47: FY 24-25 | AM47: ='Expenses & Summary'!B51 -> 0 | AN47: ='Expenses & Summary'!C51 -> 0 | AO47: ='Expenses & Summary'!D51 -> 0 | AP47: ='Expenses & Summary'!E51 -> 0 | AQ47: ='Expenses & Summary'!F51 -> 0 | AR47: ='Expenses & Summary'!G51 -> 0 | AS47: ='Expenses & Summary'!H51 -> 0 | AT47: ='Expenses & Summary'!I51 -> 0 | AU47: ='Expenses & Summary'!J51 -> 0 | AV47: ='Expenses & Summary'!K51 -> 0
B48: Center for STEM Education | C48: 888003 | AM48: ='Expenses & Summary'!B52 -> 0 | AN48: ='Expenses & Summary'!C52 -> 0 | AO48: ='Expenses & Summary'!D52 -> 0 | AP48: ='Expenses & Summary'!E52 -> 0 | AQ48: ='Expenses & Summary'!F52 -> 0 | AR48: ='Expenses & Summary'!G52 -> 0 | AS48: ='Expenses & Summary'!H52 -> 0 | AT48: ='Expenses & Summary'!I52 -> 0 | AU48: ='Expenses & Summary'!J52 -> 0 | AV48: ='Expenses & Summary'!K52 -> 0
B49: Center for Sustainable Energy & Envionmental Engineering | C49: 888004 | L49: Available Start Years | AM49: ='Expenses & Summary'!B53 -> 0 | AN49: ='Expenses & Summary'!C53 -> 0 | AO49: ='Expenses & Summary'!D53 -> 0 | AP49: ='Expenses & Summary'!E53 -> 0 | AQ49: ='Expenses & Summary'!F53 -> 0 | AR49: ='Expenses & Summary'!G53 -> 0 | AS49: ='Expenses & Summary'!H53 -> 0 | AT49: ='Expenses & Summary'!I53 -> 0 | AU49: ='Expenses & Summary'!J53 -> 0 | AV49: ='Expenses & Summary'!K53 -> 5
B50: Coastal Studies Institute | C50: 120158 | M50: FY 18-19 | AM50: ='Expenses & Summary'!B54 -> 0 | AN50: ='Expenses & Summary'!C54 -> 0 | AO50: ='Expenses & Summary'!D54 -> 0 | AP50: ='Expenses & Summary'!E54 -> 0 | AQ50: ='Expenses & Summary'!F54 -> 0 | AR50: ='Expenses & Summary'!G54 -> 0 | AS50: ='Expenses & Summary'!H54 -> 0 | AT50: ='Expenses & Summary'!I54 -> 0 | AU50: ='Expenses & Summary'!J54 -> 0 | AV50: ='Expenses & Summary'!K54 -> 6
B51: East Carolina Diabetes & Obesity Institute | C51: 888005 | M51: FY 19-20 | R51: F&A Rate Y1 | T51: =IF(RateSelection=RateOptionCustom,CustomRate,IF(RateSelection=RateOptionPercentTotalCost,FAConverted,VLOOKUP(RateSelection,RatesData,VLOOKUP(FY_1,FYLookUp2,3),FALSE))) -> 0.475 | V51: This array takes the names of the Fiscal Years - as determined | AM51: ='Expenses & Summary'!B55 -> 0 | AN51: ='Expenses & Summary'!C55 -> 0 | AO51: ='Expenses & Summary'!D55 -> 0 | AP51: ='Expenses & Summary'!E55 -> 0 | AQ51: ='Expenses & Summary'!F55 -> 0 | AR51: ='Expenses & Summary'!G55 -> 0 | AS51: ='Expenses & Summary'!H55 -> 0 | AT51: ='Expenses & Summary'!I55 -> 0 | AU51: ='Expenses & Summary'!J55 -> 0 | AV51: ='Expenses & Summary'!K55 -> 0
B52: North Carolina Agromedicine Institute | C52: 888007 | M52: FY 20-21 | R52: F&A Rate Y2 | T52: =IF(RateSelection=RateOptionCustom,CustomRate,IF(RateSelection=RateOptionPercentTotalCost,FAConverted,VLOOKUP(RateSelection,RatesData,VLOOKUP(FY_2,FYLookUp2,3),FALSE))) -> 0.475 | V52: by user selection of Initial Fiscal Year on the Start tab and the | AM52: ='Expenses & Summary'!B56 -> 0 | AN52: ='Expenses & Summary'!C56 -> 0 | AO52: ='Expenses & Summary'!D56 -> 0 | AP52: ='Expenses & Summary'!E56 -> 0 | AQ52: ='Expenses & Summary'!F56 -> 0 | AR52: ='Expenses & Summary'!G56 -> 0 | AS52: ='Expenses & Summary'!H56 -> 0 | AT52: ='Expenses & Summary'!I56 -> 0 | AU52: ='Expenses & Summary'!J56 -> 0 | AV52: ='Expenses & Summary'!K56 -> 0
B53: Small Business Institute | C53: 888008 | L53: Change these to populate the Initial Fiscal Year choice on Start Tab | R53: F&A Rate Y3 | T53: =IF(RateSelection=RateOptionCustom,CustomRate,IF(RateSelection=RateOptionPercentTotalCost,FAConverted,VLOOKUP(RateSelection,RatesData,VLOOKUP(FY_3,FYLookUp2,3),FALSE))) -> 0.475 | V53: calculated out years from the array above. These years are | AM53: ='Expenses & Summary'!B57 -> 0 | AN53: ='Expenses & Summary'!C57 -> 0 | AO53: ='Expenses & Summary'!D57 -> 0 | AP53: ='Expenses & Summary'!E57 -> 0 | AQ53: ='Expenses & Summary'!F57 -> 0 | AR53: ='Expenses & Summary'!G57 -> 0 | AS53: ='Expenses & Summary'!H57 -> 0 | AT53: ='Expenses & Summary'!I57 -> 0 | AU53: ='Expenses & Summary'!J57 -> 0 | AV53: ='Expenses & Summary'!K57 -> 0
R54: F&A Rate Y4 | T54: =IF(RateSelection=RateOptionCustom,CustomRate,IF(RateSelection=RateOptionPercentTotalCost,FAConverted,VLOOKUP(RateSelection,RatesData,VLOOKUP(FY_4,FYLookUp2,3),FALSE))) -> 0.475 | V54: converted to column numbers above in the RatesData table to find | AM54: ='Expenses & Summary'!B58 -> 0 | AN54: ='Expenses & Summary'!C58 -> 0 | AO54: ='Expenses & Summary'!D58 -> 0 | AP54: ='Expenses & Summary'!E58 -> 0 | AQ54: ='Expenses & Summary'!F58 -> 0 | AR54: ='Expenses & Summary'!G58 -> 0 | AS54: ='Expenses & Summary'!H58 -> 0 | AT54: ='Expenses & Summary'!I58 -> 0 | AU54: ='Expenses & Summary'!J58 -> 0 | AV54: ='Expenses & Summary'!K58 -> 7
R55: F&A Rate Y5 | T55: =IF(RateSelection=RateOptionCustom,CustomRate,IF(RateSelection=RateOptionPercentTotalCost,FAConverted,VLOOKUP(RateSelection,RatesData,VLOOKUP(FY_5,FYLookUp2,3),FALSE))) -> 0.475 | V55: the appropriate rate for each out year. | AM55: ='Expenses & Summary'!B59 -> 0 | AN55: ='Expenses & Summary'!C59 -> 0 | AO55: ='Expenses & Summary'!D59 -> 0 | AP55: ='Expenses & Summary'!E59 -> 0 | AQ55: ='Expenses & Summary'!F59 -> 0 | AR55: ='Expenses & Summary'!G59 -> 0 | AS55: ='Expenses & Summary'!H59 -> 0 | AT55: ='Expenses & Summary'!I59 ->  | AU55: ='Expenses & Summary'!J59 -> 0 | AV55: ='Expenses & Summary'!K59 -> 2
L56: Below is a list of Colleges in RAMSeS - this range is titled CollegeList | AM56: ='Expenses & Summary'!B60 -> 0 | AN56: ='Expenses & Summary'!C60 -> 0 | AO56: ='Expenses & Summary'!D60 -> 0 | AP56: ='Expenses & Summary'!E60 -> 0 | AQ56: ='Expenses & Summary'!F60 -> 0 | AR56: ='Expenses & Summary'!G60 -> 0 | AS56: ='Expenses & Summary'!H60 -> 0 | AT56: ='Expenses & Summary'!I60 -> 0 | AU56: ='Expenses & Summary'!J60 -> 0 | AV56: ='Expenses & Summary'!K60 -> 8
L57: Fund & Org numbers pull from table on BannerCW tab (enter changes there) | V57: References to FARateY1, FARateY2, etc are here. | AM57: ='Expenses & Summary'!B61 -> 0 | AN57: ='Expenses & Summary'!C61 -> 0 | AO57: ='Expenses & Summary'!D61 -> 0 | AP57: ='Expenses & Summary'!E61 -> 0 | AQ57: ='Expenses & Summary'!F61 -> 0 | AR57: ='Expenses & Summary'!G61 -> 0 | AS57: ='Expenses & Summary'!H61 -> 0 | AT57: ='Expenses & Summary'!I61 -> 0 | AU57: ='Expenses & Summary'!J61 -> 0 | AV57: ='Expenses & Summary'!K61 -> 8
AM58: ='Expenses & Summary'!B62 -> 0 | AN58: ='Expenses & Summary'!C62 -> 0 | AO58: ='Expenses & Summary'!D62 -> 0 | AP58: ='Expenses & Summary'!E62 -> 0 | AQ58: ='Expenses & Summary'!F62 -> 0 | AR58: ='Expenses & Summary'!G62 -> 0 | AS58: ='Expenses & Summary'!H62 -> 0 | AT58: ='Expenses & Summary'!I62 -> 0 | AU58: ='Expenses & Summary'!J62 -> 0 | AV58: ='Expenses & Summary'!K62 -> 6
L59: Choose College | M59: F&A Fund | N59: Org | AM59: ='Expenses & Summary'!B63 -> 0 | AN59: ='Expenses & Summary'!C63 -> 0 | AO59: ='Expenses & Summary'!D63 -> 0 | AP59: ='Expenses & Summary'!E63 -> 0 | AQ59: ='Expenses & Summary'!F63 -> 0 | AR59: ='Expenses & Summary'!G63 -> 0 | AS59: ='Expenses & Summary'!H63 -> 0 | AT59: ='Expenses & Summary'!I63 -> 0 | AU59: ='Expenses & Summary'!J63 -> 0 | AV59: ='Expenses & Summary'!K63 -> 6
L60: A&S - College of Arts and Sciences | M60: =VLOOKUP(L60,crosswalk,3,FALSE) -> 120020 | N60: =VLOOKUP(L60,crosswalk,4,FALSE) -> 591101 | AM60: ='Expenses & Summary'!B64 -> 0 | AN60: ='Expenses & Summary'!C64 -> 0 | AO60: ='Expenses & Summary'!D64 -> 0 | AP60: ='Expenses & Summary'!E64 -> 0 | AQ60: ='Expenses & Summary'!F64 -> 0 | AR60: ='Expenses & Summary'!G64 -> 0 | AS60: ='Expenses & Summary'!H64 -> 0 | AT60: ='Expenses & Summary'!I64 -> 0 | AU60: ='Expenses & Summary'!J64 -> 0 | AV60: ='Expenses & Summary'!K64 -> 8
L61: AA - Division of Academic Affairs | M61: 120089 | N61: 511101 | R61: Expense Grouping Categories | V61: Individual expense lines are grouped together for use on | AM61: ='Expenses & Summary'!B65 -> 0 | AN61: ='Expenses & Summary'!C65 -> 0 | AO61: ='Expenses & Summary'!D65 -> 0 | AP61: ='Expenses & Summary'!E65 -> 0 | AQ61: ='Expenses & Summary'!F65 -> 0 | AR61: ='Expenses & Summary'!G65 -> 0 | AS61: ='Expenses & Summary'!H65 -> 0 | AT61: ='Expenses & Summary'!I65 -> 0 | AU61: ='Expenses & Summary'!J65 -> 0 | AV61: ='Expenses & Summary'!K65 -> 10
L62: AF - Division of Finance and Administration | M62: 120198 | N62: 210101 | V62: the short form budget on the FixedPrice tab. Each expense | AM62: ='Expenses & Summary'!B66 -> 0 | AN62: ='Expenses & Summary'!C66 -> 0 | AO62: ='Expenses & Summary'!D66 -> 0 | AP62: ='Expenses & Summary'!E66 -> 0 | AQ62: ='Expenses & Summary'!F66 -> 0 | AR62: ='Expenses & Summary'!G66 -> 0 | AS62: ='Expenses & Summary'!H66 -> 0 | AT62: ='Expenses & Summary'!I66 -> 0 | AU62: ='Expenses & Summary'!J66 -> 0 | AV62: ='Expenses & Summary'!K66 -> 10
L63: AHS - College of Allied Health Sciences | M63: 120042 | N63: 640001 | R63: Salary & Fringe | S63: 1 | V63: line on the Expenses and Summary tab are assigned a | AM63: ='Expenses & Summary'!B67 -> 0 | AN63: ='Expenses & Summary'!C67 -> 0 | AO63: ='Expenses & Summary'!D67 -> 0 | AP63: ='Expenses & Summary'!E67 -> 0 | AQ63: ='Expenses & Summary'!F67 -> 0 | AR63: ='Expenses & Summary'!G67 -> 0 | AS63: ='Expenses & Summary'!H67 -> 0 | AT63: ='Expenses & Summary'!I67 -> 0 | AU63: ='Expenses & Summary'!J67 -> 0 | AV63: ='Expenses & Summary'!K67 -> 0
L64: AT - Athletics | R64: Equipment | S64: 2 | V64: group from the left (in column K - hidden).
L65: CET - College of Engineering and Technology | M65: 120007 | N65: 580101 | R65: Supplies | S65: 3
L66: CH - Chancellor's Division | R66: Travel & Meetings | S66: 4 | V66: The values from the Expenses and Summary tab are
L67: COB - College of Business | M67: 120011 | N67: 530101 | R67: Contracted Services | S67: 5 | V67: copy linked to columns AT-BC on this VARS tab. A pivot
L68: COE - College of Education | M68: 120008 | N68: 540101 | R68: Contracted Services (Exempt) | S68: 6 | V68: table (on the Pivot Table tab) is used to group all expenses into
L69: DEN - College of Dental Medicine | M69: 120301 | N69: 670001 | R69: Participant Support | S69: 7 | V69: these groupings. F&A is then assigned as appropriate in
L70: ECHI - East Carolina Heart Institute | M70: 120577 | N70: 650001 | R70: Tuition & Fees | S70: 8 | V70: the array at AD4:AJ15. The short form budget on
L71: FAC - College of Fine Arts and Communications | M71: 120115 | N71: 550101 | R71: Other | S71: 9 | V71: the FixedPrice tab is pulled from this array.
L72: HHP - College of Health and Human Performance | M72: 120600 | N72: 560101 | R72: Other (F&A Exempt) | S72: 10
L73: HS - Office of the Vice Chancellor for Health Sciences | M73: 120056 | N73: 610001
L74: HSL - Laupus Library
L75: ICP - Integrated Coastal Programs | M75: =VLOOKUP(L75,crosswalk,3,FALSE) -> 120187 | N75: =VLOOKUP(L75,crosswalk,4,FALSE) -> 888006
L76: LIB - Joyner Library | M76: 120072 | N76: 520101
L77: NUR - College of Nursing | M77: 120041 | N77: 634001
L78: REDE - Vice Chancellors Office | M78: 120191 | N78: 710101
L79: SA - Division of Student Affairs | M79: 120018 | N79: 410101
L80: SOM - Brody School of Medicine | M80: 120050 | N80: 660001
L81: UA - Division of University Advancement
L85: Below is a list of Units in RAMSeS - this range is titled UnitList
L86: Fund & Org numbers pull from table on BannerCW tab (enter changes there)
L88: Choose Unit | M88: F&A Fund | N88: ORG
L89: A&S - Anthropology | M89: =VLOOKUP(L89,crosswalk,3,FALSE) -> 120004 | N89: =VLOOKUP(L89,crosswalk,4,FALSE) -> 592501
L90: A&S - Biology | M90: 120021 | N90: 591201
L91: A&S - Center for Applied Computational Studies (Affiliate Only)
L92: A&S - Center for Biodiversity (Affiliate Only)
L93: A&S - Center for Diversity and Inequality Research (Affiliate Only)
L94: A&S - Center for Hazard Research (Affiliate Only)
L95: A&S - Center for Survey Research (Affiliate Only)
L96: A&S - Center for Water Resources (Affiliate Only) | M96: =VLOOKUP(L96,crosswalk,3,FALSE) ->  | N96: =VLOOKUP(L96,crosswalk,4,FALSE) -> 
L97: A&S - Chemistry | M97: 120022 | N97: 591300
L98: A&S - Criminal Justice | M98: 120139 | N98: 570301
L99: A&S - College of Arts and Sciences | M99: 120020 | N99: 591101
L100: A&S - Economics | M100: 120017 | N100: 592601
L101: A&S - English | M101: 120006 | N101: 592101
L102: A&S - Foreign Languages | M102: 120144 | N102: 591401
L103: A&S - Geography and Planning | M103: 120005 | N103: 591501
L104: A&S - Geology | M104: 120023 | N104: 591601
L105: A&S - History | M105: 120168 | N105: 592203
L106: A&S - Math | M106: 120029 | N106: 592301
L107: A&S - Philosophy
L108: A&S - Physics | M108: 120024 | N108: 591801
L109: A&S - Political Science | M109: 120143 | N109: 591901
L110: A&S - Psychology | M110: 120025 | N110: 592001
L111: A&S - Sociology | M111: 120016 | N111: 592401
L112: AA - Academic Outreach Initiatives
L113: AA - Academic Programs
L114: AA - Center for International Study | M114: 120085 | N114: 513201
L115: AA - Enrollment Services | M115: 120073 | N115: 512108
L116: AA - Honors
L117: AA - Institutional Planning Assessment & Research
L118: AA - OETAS | M118: 120015 | N118: 511115
L119: AA - Office of Equity Diversity and Community Relations
L120: AA - Office of the Provost
L121: AA - Undergraduate Studies
L122: AF - Business Services
L123: AF - Campus Operations | M123: 120033 | N123: 252101
L124: AF - Division of Finance and Administration | M124: 120198 | N124: 210101
L125: AF - Financial Services
L126: AF - Human Resources
L127: AF - Parking and Traffic
L128: AF - University Functions
L129: AF- Information Technology Comp Serv
L130: AHS - Biostatistics | M130: 120511 | N130: 642501
L131: AHS - Clinical Lab Science | M131: 120507 | N131: 643001
L132: AHS - College of Allied Health Sciences | M132: 120042 | N132: 640001
L133: AHS - Commucation Sciences And Disorders | M133: 120509 | N133: 640501
L134: AHS - Community Health
L135: AHS - Health Services And Information Management | M135: 120505 | N135: 644001
L136: AHS - Nutrition | M136: 120160 | N136: 570701
L137: AHS - Occupational Therapy | M137: 120508 | N137: 643501
L138: AHS - Physical Therapy | M138: 120510 | N138: 641001
L139: AHS - Physician Assistant Studies | M139: 120169 | N139: 644501
L140: AHS - Rehabilitation Studies | M140: 120506 | N140: 641501
L141: AT - Athletics
L142: AT - Athletics Other
L143: AT - Game Operations
L144: AT - Sports
L145: CET - Center for Innovation in Technology & Engineering
L146: CET - Center for Sustainable Energy & Environmental Engineering | M146: 120167 | N146: 710111
L147: CET - College of Engineering and Technology | M147: 120007 | N147: 580101
L148: CET - Computer Science | M148: 120002 | N148: 580401
L149: CET - Construction Management | M149: 120027 | N149: 580301
L150: CET - Engineering | M150: 120003 | N150: 580601
L151: CET - Technology Systems | M151: 120010 | N151: 580201
L152: CH - Assistant to Chancellor Operations
L153: CH - Athletic Compliance
L154: CH - Chief of Staff | M154: =VLOOKUP(L154,crosswalk,3,FALSE) ->  | N154: =VLOOKUP(L154,crosswalk,4,FALSE) -> 
L155: CH - Environmental Health and Campus Safety
L156: CH - Faculty Senate
L157: CH - Internal Auditor
L158: CH - Public Service & Community Relations
L159: CH - University Attorney
L160: CH - University Communications
L161: COB - Accounting | M161: 120011 | N161: 530101
L162: COB - Bureau of Business Research | M162: 120011 | N162: 530101
L163: COB - Center for Student Success | M163: 120011 | N163: 530101
L164: COB - College of Business | M164: 120011 | N164: 530101
L165: COB - Finance | M165: 120011 | N165: 530101
L166: COB - Hospitality Leadership | M166: 120138 | N166: 570501
L167: COB - Management | M167: 120011 | N167: 530101
L168: COB - Management Information Systems | M168: 120011 | N168: 530101
L169: COB - Marketing | M169: 120011 | N169: 530101
L170: COB - Professional Services | M170: 120011 | N170: 530101
L171: COB - Small Business Institute (Affiliate Only) | M171: 120011 | N171: 530101
L172: COB - Technology, Information and Operations | M172: 120011 | N172: 530101
L173: COE - Business and Info Technologies Ed | M173: 120011 | N173: 530101
L174: COE - College of Education | M174: 120008 | N174: 540101
L175: COE - Educational Leadership | M175: 120117 | N175: 540403
L176: COE - Elementary and Middle Grades Education | M176: 120120 | N176: 540444
L177: COE - Interdisciplinary Profession | M177: 120136 | N177: 540491
L178: COE - Literacy Studies English Education and History Education
L179: COE - Math, Science, and Instructional Technology | M179: 120026 | N179: 540408
L180: COE - NC Teaching Fellows
L181: COE - Rural Education Institute (Affiliate Only)
L182: COE - Special Education, Foundations and Research | M182: 120074 | N182: 540410
L183: COE - Start Up Funds
L184: COE - STEM Center | M184: 120087 | N184: 545101
L185: COE - Teacher Education | M185: 120118 | N185: 540310
L186: DEN - College of Dental Medicine | M186: 120301 | N186: 670001
L187: DEN - Community Clinics
L188: DEN - Dental Education & Informatics
L189: DEN - Faculty Practice
L190: DEN - Foundation Sciences
L191: DEN - General Dentistry
L192: DEN - Innovation & Discovery | M192: 120302 | N192: 670611
L193: DEN - Pediatrics and Orthodontics
L194: DEN - Ross Clinics
L195: DEN - Surgical Sciences
L196: ECHI - East Carolina Heart Institute | M196: 120577 | N196: 650001
L197: FA - AVC & Military Affairs | M197: 120115 | N197: 550101
L198: FAC - College of Fine Arts and Communications | M198: 120115 | N198: 550101
L199: FAC - Institute of Outdoor Theatre (Affiliate Only) | M199: 120115 | N199: 550101
L200: FAC - Playhouse | M200: 120115 | N200: 550101
L201: FAC - School of Art and Design | M201: 120115 | N201: 550101
L202: FAC - School of Communication | M202: 120115 | N202: 550101
L203: FAC - School of Music | M203: 120116 | N203: 550401
L204: FAC - School of Theatre and Dance | M204: 120115 | N204: 550101
... 91 more rows

Sheet BannerCW
A1: RAMSeS Name | B1: Banner Name | C1: Banner F&A Fund | D1: F&A ORG
A2: A&S - Anthropology | B2: AA Anthropology | C2: 120004 | D2: 592501
A3: A&S - Biology | B3: AA Biology | C3: 120021 | D3: 591201
A4: A&S - Center for Applied Computational Studies (Affiliate Only)
A5: A&S - Center for Biodiversity (Affiliate Only)
A6: A&S - Center for Diversity and Inequality Research (Affiliate Only)
A7: A&S - Center for Hazard Research (Affiliate Only)
A8: A&S - Center for Survey Research (Affiliate Only)
A9: A&S - Center for Water Resources (Affiliate Only)
A10: A&S - Chemistry | B10: AA Chemistry | C10: 120022 | D10: 591300
A11: A&S - College of Arts and Sciences | B11: AA College of Arts and Sci Admin | C11: 120020 | D11: 591101
A12: A&S - Criminal Justice | B12: AA Criminal Justice | C12: 120139 | D12: 570301
A13: A&S - Economics | B13: AA Economics | C13: 120017 | D13: 592601
A14: A&S - English | B14: AA English | C14: 120006 | D14: 592101
A15: A&S - Foreign Languages | B15: AA Foreign Languages | C15: 120144 | D15: 591401
A16: A&S - Geography and Planning | B16: AA Geography Planning Environment | C16: 120005 | D16: 591501
A17: A&S - Geology | B17: AA Geology | C17: 120023 | D17: 591601
A18: A&S - History | B18: AA History | C18: 120168 | D18: 592203
A19: A&S - Math | B19: AA Math | C19: 120029 | D19: 592301
A20: A&S - Philosophy
A21: A&S - Physics | B21: AA Physics | C21: 120024 | D21: 591801
A22: A&S - Political Science | B22: AA Political Science | C22: 120143 | D22: 591901
A23: A&S - Psychology | B23: AA Psychology | C23: 120025 | D23: 592001
A24: A&S - Sociology | B24: AA Sociology | C24: 120016 | D24: 592401
A25: AA - Academic Outreach Initiatives
A26: AA - Academic Programs
A27: AA - Center for International Study | B27: AA Office of Global Affairs | C27: 120085 | D27: 513201
A28: AA - Division of Academic Affairs | B28: AA Academic Affairs Administration | C28: 120089 | D28: 511101
A29: AA - Enrollment Services | B29: AA Enrollment Services | C29: 120073 | D29: 512108
A30: AA - Honors
A31: AA - Institutional Planning Assessment & Research
A32: AA - OETAS | B32: AA FA OETAS | C32: 120015 | D32: 511115
A33: AA - Office of Equity Diversity and Community Relations
A34: AA - Undergraduate Studies
A35: AF - Business Services
A36: AF - Campus Operations | B36: AF Campus Operations Aux Accounts | C36: 120033 | D36: 252101
A37: AF - Division of Finance and Administration | B37: AFH Administration and Finance Admn | C37: 120198 | D37: 210101
A38: AF - Financial Services
A39: AF - Human Resources
A40: AF - Parking and Traffic
A41: AF - University Functions
A42: AF- Information Technology Comp Serv
A43: AHS - Biostatistics | B43: HS Al Hlth Biostatistics | C43: 120511 | D43: 642501
A44: AHS - Clinical Lab Science | B44: HS Al Hlth Clinical Lab Science | C44: 120507 | D44: 643001
A45: AHS - College of Allied Health Sciences | B45: HS Al Hlth Admin | C45: 120042 | D45: 640001
A46: AHS - Commucation Sciences And Disorders | B46: HS Al Hlth Commu Sci And Disord | C46: 120509 | D46: 640501
A47: AHS - Community Health
A48: AHS - Health Services And Information Management | B48: HS Al Hlth Service And Info Mgmt | C48: 120505 | D48: 644001
A49: AHS - Nutrition | B49: HS AH Nutrition Science | C49: 120160 | D49: 570701
A50: AHS - Occupational Therapy | B50: HS Al Hlth Occupational Therapy | C50: 120508 | D50: 643501
A51: AHS - Physical Therapy | B51: HS Al Hlth Phys Therapy | C51: 120510 | D51: 641001
A52: AHS - Physician Assistant Studies | B52: HS Al Hlth Phys Assist Studies | C52: 120169 | D52: 644501
A53: AHS - Rehabilitation Studies | B53: HS Al Hlth Rehabilitation Studie | C53: 120506 | D53: 641501
A54: AT - Athletics
A55: AT - Athletics Other
A56: AT - Game Operations
A57: AT - Sports
A58: CET - Center for Innovation in Technology & Engineering
A59: CET - Center for Sustainable Energy & Environmental Engineering | B59: AA CET Center for Sustainability | C59: 120167 | D59: 710111
A60: CET - College of Engineering and Technology | B60: AA College of Eng and Tech Admin | C60: 120007 | D60: 580101
A61: CET - Computer Science | B61: AA CET Computer Science | C61: 120002 | D61: 580401
A62: CET - Construction Management | B62: AA CET Construction Management | C62: 120027 | D62: 580301
A63: CET - Engineering | B63: AA CET Engineering | C63: 120003 | D63: 580601
A64: CET - Technology Systems | B64: AA CET Technology Systems | C64: 120010 | D64: 580201
A65: CH - Assistant to Chancellor Operations
A66: CH - Athletic Compliance
A67: CH - Chief of Staff
A68: CH - Environmental Health and Campus Safety
A69: CH - Faculty Senate
A70: CH - Internal Auditor
A71: CH - Public Service & Community Relations
A72: CH - University Attorney
A73: CH - University Communications
A74: COB - Accounting | C74: 120011 | D74: 530101
A75: COB - Bureau of Business Research | C75: 120011 | D75: 530101
A76: COB - Center for Student Success | C76: 120011 | D76: 530101
A77: COB - College of Business | B77: AA College of Business Admin | C77: 120011 | D77: 530101
A78: COB - Finance | C78: 120011 | D78: 530101
A79: COB - Hospitality Leadership | B79: AA School of Hospitality Leadership | C79: 120138 | D79: 570501
A80: COB - Management | C80: 120011 | D80: 530101
A81: COB - Management Information Systems | C81: 120011 | D81: 530101
A82: COB - Marketing | C82: 120011 | D82: 530101
A83: COB - Professional Services | C83: 120011 | D83: 530101
A84: COB - Small Business Institute (Affiliate Only) | C84: 120011 | D84: 530101
A85: COB - Technology, Information and Operations | C85: 120011 | D85: 530101
A86: COE - Business and Info Technologies Ed | C86: 120011 | D86: 530101
A87: COE - College of Education | B87: AA College of Education Admin | C87: 120008 | D87: 540101
A88: COE - Educational Leadership | B88: AA COE Educational Leadership | C88: 120117 | D88: 540403
A89: COE - Elementary and Middle Grades Education | B89: AA COE Elementary and Mid Grade Edu | C89: 120120 | D89: 540444
A90: COE - Interdisciplinary Profession | B90: AA COE Interdisciplinary Profession | C90: 120136 | D90: 540491
A91: COE - Literacy Studies English Education and History Education
A92: COE - Math, Science, and Instructional Technology | B92: AA COE Math Sci and Instr Tech Educ | C92: 120026 | D92: 540408
A93: COE - NC Teaching Fellows
A94: COE - Rural Education Institute (Affiliate Only)
A95: COE - Special Education, Foundations and Research | B95: AA COE Special Educ Fdns and Rsrch | C95: 120074 | D95: 540410
A96: COE - Start Up Funds
A97: COE - STEM Center | B97: AA COE STEM Center | C97: 120087 | D97: 545101
A98: COE - Teacher Education | B98: AA COE Teacher Education | C98: 120118 | D98: 540310
A99: DEN - College of Dental Medicine | B99: HS SODM Administration | C99: 120301 | D99: 670001
A100: DEN - Community Clinics
A101: DEN - Dental Education & Informatics
A102: DEN - Faculty Practice
A103: DEN - Foundation Sciences
A104: DEN - General Dentistry
A105: DEN - Innovation & Discovery | B105: HS SODM Resrch Innovation Discov | C105: 120302 | D105: 670611
A106: DEN - Pediatrics and Orthodontics
A107: DEN - Ross Clinics
A108: DEN - Surgical Sciences
A109: ECHI - East Carolina Heart Institute | B109: HS ECHI Administration | C109: 120577 | D109: 650001
A110: FA - AVC & Military Affairs | C110: 120115 | D110: 550101
A111: FAC - College of Fine Arts and Communications | B111: AA Coll Fine Arts and Commun Admin | C111: 120115 | D111: 550101
A112: FAC - Institute of Outdoor Theatre (Affiliate Only) | C112: 120115 | D112: 550101
A113: FAC - Playhouse | C113: 120115 | D113: 550101
A114: FAC - School of Art and Design | C114: 120115 | D114: 550101
A115: FAC - School of Communication | C115: 120115 | D115: 550101
A116: FAC - School of Music | B116: AA School of Music | C116: 120116 | D116: 550401
A117: FAC - School of Theatre and Dance | C117: 120115 | D117: 550101
A118: FAC - Summer Theatre | C118: 120115 | D118: 550101
A119: FD - Foundations
A120: HHP - Center for Applied Psychophysiology (Affiliate Only)
A121: HHP - College of Health and Human Performance | B121: AA Col of Health and Human Perf Adm | C121: 120600 | D121: 560101
A122: HHP - Health Education and Promotion | B122: AA Health Education and Promotion | C122: 120602 | D122: 560401
A123: HHP - Human Development and Family Science | B123: AA Human Develop and Family Science | C123: 120137 | D123: 570201
A124: HHP - Human Performance Lab | B124: AA Human Performance Lab | C124: 120603 | D124: 560301
A125: HHP - Interior Design | B125: AA Interior Design | C125: 120130 | D125: 570401
A126: HHP - Kinesiology | B126: AA CHHP Kinesiology | C126: 120601 | D126: 560201
A127: HHP - Military Affairs | C127: 120600 | D127: 560101
A128: HHP - Recreation and Leisure Studies | B128: AA Recreation and Leisure Studies | C128: 120605 | D128: 560501
A129: HHP - Social Work | B129: AA School of Social Work | C129: 120013 | D129: 570601
A130: HS - Agromedicine Institute | B130: HS Agromedicine | C130: 120156 | D130: 730101
A131: HS - Clinical Skills
A132: HS - DHS Graduate Programs
A133: HS - East Carolina Diabetes and Obesity Institute | B133: HS ECU Diabetes and Obesity Institu | C133: 120520 | D133: 617501
A134: HS - Interdisciplinary Health | B134: HS Interdisplinary Training | C134: 120572 | D134: 663001
A135: HS - Multimedia and Tech Services | B135: HS Multimedia and Tech Services | C135: 120537 | D135: 613530
A136: HS - Office of the Vice Chancellor for Health Sciences | B136: HS Vice Chancellor Administration | C136: 120056 | D136: 610001
A137: HS - Prospective Health | B137: HS Prospective Health | C137: 120057 | D137: 614001
A138: HSL - Country Doctor Museum
A139: HSL - Laupus Library
A140: ICP - Coastal Studies Institute | B140: AA Coastal Studies Institute | C140: 120158 | D140: 740101
A141: ICP - Integrated Coastal Programs | B141: AA Inst Coastal Science and Policy | C141: 120187 | D141: 888006
A142: LIB - Joyner Library | B142: AA Library Services | C142: 120072 | D142: 520101
A143: NUR - Advanced Nursing Practice & Education | C143: 120041 | D143: 634001
A144: NUR - Center for Nursing Leadership (Affiliate Only) | C144: 120041 | D144: 634001
A145: NUR - College of Nursing | C145: 120041 | D145: 634001
A146: NUR - Program Evaluation | C146: 120041 | D146: 634001
A147: NUR - Technology | C147: 120041 | D147: 634001
A148: NUR - Baccalaureate Education | C148: 120041 | D148: 634001
A149: NUR - Nursing Science | C149: 120041 | D149: 634001
A150: NUR - Nursing Support Services | C150: 120041 | D150: 634001
A151: REDE - Center for Coastal Systems Information and Modeling
A152: REDE - Economic and Community Development | C152: 120071 | D152: 112001
A153: REDE - Engagement, Innovation, Economic Development | B153: RGH Innovation and Econ Dev Admin | C153: 120071 | D153: 112001
A154: REDE - Graduate School | B154: AAH Graduate School | C154: 120194 | D154: 720101
A155: REDE - Grants and Contracts Administration | B155: RGH Grants Admin | C155: 120773 | D155: 240801
A156: REDE - Office of Technology Transfer | B156: RGH Office of Technology Transfer | C156: 120086 | D156: 710401
A157: REDE - Research Compliance
A158: REDE - Research Integrity and Compliance | B158: RGH Rsrch Integrity and Compliance | C158: 120190 | D158: 614501
A159: REDE - Small Business and Technology Development
A160: REDE - Sponsored Programs | B160: RGH Sponsored Programs | C160: 120150 | D160: 710201
A161: REDE - UMC IRB
A162: REDE - Vice Chancellors Office | B162: RGH Rsrch Econ Dev Engagement Adm | C162: 120191 | D162: 710101
A163: SA - Dean of Students | C163: 120018 | D163: 410101
A164: SA - Division of Student Affairs | B164: SAH Student Affairs | C164: 120018 | D164: 410101
A165: SA - Housing and Dining | C165: 120018 | D165: 410101
A166: SA - Marketing and Communications | C166: 120018 | D166: 410101
A167: SA - Recreation Services | C167: 120018 | D167: 410101
A168: SA - Student Government Association | C168: 120018 | D168: 410101
A169: SA - Student Involvement & Leadership | C169: 120018 | D169: 410101
A170: SA - Student Transitions | C170: 120018 | D170: 410101
A171: SOM - Academic Affairs | B171: HS Academic Affairs | C171: 120567 | D171: 660225
A172: SOM - Administration And Finance | B172: HS Administration and Finance | C172: 120093 | D172: 661301
A173: SOM - Anatomy and Cell Biology | B173: HS Anatomy | C173: 120049 | D173: 668501
A174: SOM - Biochemistry | B174: HS Biochemistry | C174: 120058 | D174: 668601
A175: SOM - Bioethics and Interdisciplinary Studies | B175: HS Bioethics and Interdisc Studies | C175: 120538 | D175: 669101
A176: SOM - Brody School of Medicine | C176: 120050 | D176: 660001
A177: SOM - Cardiovascular Sciences
A178: SOM - Center for Health Systems Research and Development (Affiliate Only)
A179: SOM - Center for Telepsychiatry (Affiliate Only)
A180: SOM - Clinical Fin Admin
A181: SOM - Comparative Medicine | B181: HS Comparative Medicine | C181: 120034 | D181: 668801
A182: SOM - Compliance
A183: SOM - Continuing Medical Education
A184: SOM - Emergency Medicine | B184: HS Emergency Medicine | C184: 120095 | D184: 665007
A185: SOM - Family Medicine | B185: HS Family Medicine | C185: 120062 | D185: 665201
A186: SOM - Graduate Medical Education
A187: SOM - Group Practice Administration
A188: SOM - Health Disparities | B188: HS Center for Health Disparities | C188: 120192 | D188: 710108
A189: SOM - Internal Medicine | B189: HS Internal Medicine | C189: 120582 | D189: 664271
A190: SOM - Microbiology | B190: HS Microbiology | C190: 120064 | D190: 668701
A191: SOM - Obstetrics and Gynecology Department | B191: HS ObGyn Department | C191: 120568 | D191: 664801
A192: SOM - Pathology | B192: HS Pathology | C192: 120065 | D192: 666201
A193: SOM - Pediatric Health Weight and Research (Affiliate Only)
A194: SOM - Pediatrics | B194: HS Pediatrics | C194: 120066 | D194: 664601
A195: SOM - Pharmacology | B195: HS Pharmacology | C195: 120067 | D195: 668901
A196: SOM - Pharmacy
A197: SOM - Physiology | B197: HS Physiology | C197: 120593 | D197: 669001
A198: SOM - Psychiatric Medicine | B198: HS Psychiatric Medicine | C198: 120069 | D198: 664401
A199: SOM - Public Health | B199: HS Public Health | C199: 120566 | D199: 613001
A200: SOM - Radiation And Oncology | B200: HS Radiation Oncology | C200: 120090 | D200: 666431
... 10 more rows

Sheet Pivot Tables
A1: Pivot tables will not refresh on Protected tabs - so all needed pivot tables are located on this tab.
B3: This table summarizes the array on tab Vars in columns AM-AV.
C4: Values
B5: Row Labels | C5: Sum of Y1 | D5: Sum of Y2 | E5: Sum of Y3 | F5: Sum of Y4 | G5: Sum of Y5
A6: =Vars!R63 -> Salary & Fringe | B6: 1 | C6: 0 | D6: 0 | E6: 0 | F6: 0 | G6: 0
A7: =Vars!R64 -> Equipment | B7: 2 | C7: 0 | D7: 0 | E7: 0 | F7: 0 | G7: 0
A8: =Vars!R65 -> Supplies | B8: 3 | C8: 0 | D8: 0 | E8: 0 | F8: 0 | G8: 0
A9: =Vars!R66 -> Travel & Meetings | B9: 4 | C9: 0 | D9: 0 | E9: 0 | F9: 0 | G9: 0
A10: =Vars!R67 -> Contracted Services | B10: 5 | C10: 0 | D10: 0 | E10: 0 | F10: 0 | G10: 0
A11: =Vars!R68 -> Contracted Services (Exempt) | B11: 6 | C11: 0 | D11: 0 | E11: 0 | F11: 0 | G11: 0
A12: =Vars!R69 -> Participant Support | B12: 7 | C12: 0 | D12: 0 | E12: 0 | F12: 0 | G12: 0
A13: =Vars!R70 -> Tuition & Fees | B13: 8 | C13: 0 | D13: 0 | E13: 0 | F13: 0 | G13: 0
A14: =Vars!R71 -> Other | B14: 9 | C14: 0 | D14: 0 | E14: 0 | F14: 0 | G14: 0
A15: =Vars!R72 -> Other (F&A Exempt) | B15: 10 | C15: 0 | D15: 0 | E15: 0 | F15: 0 | G15: 0
B16: Grand Total | C16: 0 | D16: 0 | E16: 0 | F16: 0 | G16: 0
A18: Totals From Summary Sheet | C18: =tdcyear1 -> 0 | D18: =tdcyear2 -> 0 | E18: =tdcyear3 -> 0 | F18: =tdcyear4 -> 0 | G18: =tdcyear5 -> 0
A19: (For error detection)
A22: Row Labels | B22: Sum of x10 | D22: Use Tag | F22: Row Labels | G22: Sum of x10 | I22: Use Tag | K22: =Allocations!C27 -> College | L22: =Allocations!E27 -> Unit | M22: =Allocations!F27 -> Percent | N22: x10 | P22: <---This array is called FAAllocations
A23: Choose Unit | B23: 0 | D23: =IF(B23=0,"No","Yes") -> No | F23: Choose College | G23: 0 | I23: =IF(G23=0,"No","Yes") -> No | K23: =Allocations!C28 -> Choose College | L23: =Allocations!E28 -> Choose Unit | M23: =Allocations!F28 -> 0 | N23: =M23*10 -> 0
D24: =IF(B24=0,"No","Yes") -> No | I24: =IF(G24=0,"No","Yes") -> No | K24: =Allocations!C29 -> Choose College | L24: =Allocations!E29 -> Choose Unit | M24: =Allocations!F29 -> 0 | N24: =M24*10 -> 0
D25: No | I25: No | K25: =Allocations!C30 -> Choose College | L25: =Allocations!E30 -> Choose Unit | M25: =Allocations!F30 -> 0 | N25: 0
D26: No | I26: No | K26: =Allocations!C31 -> Choose College | L26: =Allocations!E31 -> Choose Unit | M26: =Allocations!F31 -> 0 | N26: 0
D27: No | I27: No | K27: =Allocations!C32 -> Choose College | L27: =Allocations!E32 -> Choose Unit | M27: =Allocations!F32 -> 0 | N27: 0
D28: No | I28: No | K28: =Allocations!C33 -> Choose College | L28: =Allocations!E33 -> Choose Unit | M28: =Allocations!F33 -> 0 | N28: 0
D29: No | I29: No | K29: =Allocations!C34 -> Choose College | L29: =Allocations!E34 -> Choose Unit | M29: =Allocations!F34 -> 0 | N29: 0
D30: No | I30: No | K30: =Allocations!C35 -> Choose College | L30: =Allocations!E35 -> Choose Unit | M30: =Allocations!F35 -> 0 | N30: 0
D31: No | I31: No | K31: =Allocations!C36 -> Choose College | L31: =Allocations!E36 -> Choose Unit | M31: =Allocations!F36 -> 0 | N31: 0
D32: No | I32: No | K32: =Allocations!C37 -> Choose College | L32: =Allocations!E37 -> Choose Unit | M32: =Allocations!F37 -> 0 | N32: 0
A36: Row Labels | B36: Sum of Percent | D36: Use Tag | K36: Person | L36: Unit | M36: Percent | P36: <---This array is called CollegeAllocations
A37: Choose Unit | B37: 0 | D37: =IF(B37=0,"No","Yes") -> No | K37: =Allocations!K11 -> Investigator 1 | L37: =Allocations!L11 -> Choose Unit | M37: =Allocations!N11 -> 0
D38: No | K38: =Allocations!K12 -> Investigator 2 | L38: =Allocations!L12 -> Choose Unit | M38: =Allocations!N12 -> 0
D39: No | K39: =Allocations!K13 -> Investigator 3 | L39: =Allocations!L13 -> Choose Unit | M39: =Allocations!N13 -> 0
D40: No | K40: =Allocations!K14 -> Investigator 4 | L40: =Allocations!L14 -> Choose Unit | M40: =Allocations!N14 -> 0
D41: No | K41: =Allocations!K15 -> Investigator 5 | L41: =Allocations!L15 -> Choose Unit | M41: =Allocations!N15 -> 0
D42: No | K42: =Allocations!K16 -> Investigator 6 | L42: =Allocations!L16 -> Choose Unit | M42: =Allocations!N16 -> 0
D43: No | K43: =Allocations!K17 -> Investigator 7 | L43: =Allocations!L17 -> Choose Unit | M43: =Allocations!N17 -> 0
D44: No | K44: =Allocations!K18 -> Investigator 8 | L44: =Allocations!L18 -> Choose Unit | M44: =Allocations!N18 -> 0
D45: No | K45: =Allocations!K19 -> Investigator 9 | L45: =Allocations!L19 -> Choose Unit | M45: =Allocations!N19 -> 0
D46: No | K46: =Allocations!K20 -> Investigator 10 | L46: =Allocations!L20 -> Choose Unit | M46: =Allocations!N20 -> 0
